TRANS.No,Service Area Categorisation,Service Division Categorisation,Responsible Unit,Unit Code,Expenses Type,Expenses Sub Type,Expense Code,Narrative,Amount,Invoice Date,Cap/rev,Supplier Name
1,Central Services,SupS Customer Services and Dev,Data protection,A01016,Supplies & Services           ,Services                      ,DF03,Consultants                             ,"1,245.83",30/09/2014,REV,SOLUTIONS HEALTH & SOCIAL CARE
2,Central Services,SupS Chief Execs,Local Involvement Network,A01039,Third Party Payments          ,Private Contractors           ,EH10,Contract Payments                       ,"10,423.75",03/10/2014,REV,MERTON VOLUNTARY SERV COUNCIL 
3,Cultural Env Reg&Plan Services,Comm Safety (Crime Reduction),Crime and Strategy Team,A01100,Third Party Payments          ,Private Contractors           ,EH02,Miscellaneous Hired Services            ,"8,200.00",23/09/2014,REV,MERTON AND SUTTON MEDIATION   
4,Cultural Env Reg&Plan Services,Comm Safety (Crime Reduction),CCTV,A01200,Supplies & Services           ,Equip Furniture/Materials     ,DA01,Equipment - R & M                       ,"3,448.84",16/09/2014,REV,EUROVIA INFRASTRUCTURE LTD    
5,Cultural Env Reg&Plan Services,Comm Safety (Crime Reduction),CCTV,A01200,Supplies & Services           ,Equip Furniture/Materials     ,DA01,Equipment - R & M                       ,"1,137.40",09/08/2014,REV,EUROVIA INFRASTRUCTURE LTD    
6,Cultural Env Reg&Plan Services,Comm Safety (Crime Reduction),CCTV,A01200,Supplies & Services           ,Equip Furniture/Materials     ,DA01,Equipment - R & M                       ,"1,614.47",25/07/2014,REV,EUROVIA INFRASTRUCTURE LTD    
7,Cultural Env Reg&Plan Services,Comm Safety (Crime Reduction),CCTV,A01200,Supplies & Services           ,Comms and Computing           ,DG15,Network Maintenance                     ,965.4,04/03/2014,REV,BT REDCARE                    
8,Cultural Env Reg&Plan Services,Comm Safety (Crime Reduction),CCTV,A01200,Supplies & Services           ,Comms and Computing           ,DG15,Network Maintenance                     ,"19,209.47",02/09/2014,REV,BT REDCARE                    
9,Cultural Env Reg&Plan Services,Comm Safety (Crime Reduction),CCTV,A01200,Supplies & Services           ,Comms and Computing           ,DG15,Network Maintenance                     ,800,01/03/2014,REV,VIRGIN MEDIA PAYMENTS LTD     
10,Cultural Env Reg&Plan Services,Comm Safety (Crime Reduction),CCTV,A01200,Supplies & Services           ,Comms and Computing           ,DG15,Network Maintenance                     ,"2,787.49",02/10/2014,REV,BT REDCARE                    
11,Cultural Env Reg&Plan Services,Comm Safety (Crime Reduction),CCTV,A01200,Supplies & Services           ,Comms and Computing           ,DG15,Network Maintenance                     ,800,01/03/2013,REV,VIRGIN MEDIA PAYMENTS LTD     
12,Cultural Env Reg&Plan Services,Comm Safety (Crime Reduction),CCTV,A01200,Supplies & Services           ,Comms and Computing           ,DG15,Network Maintenance                     ,800,01/03/2012,REV,VIRGIN MEDIA PAYMENTS LTD     
13,Cultural Env Reg&Plan Services,Comm Safety (Crime Reduction),Anti-Social Behaviour,A01202,Supplies & Services           ,Comms and Computing           ,DG02,Software Licences                       ,"3,603.31",02/10/2014,REV,VANTAGE TECHNOLOGIES LIMITED  
14,Central Services,SupS Chief Execs,NON-STATUTORY MARKETING & COMM,A02019,Premises Related Expenditure  ,Rents                         ,BC03,Room/venue rental hire                  ,"4,088.25",07/10/2014,REV,REDACTED
15,Central Services,SupS Chief Execs,NON-STATUTORY MARKETING & COMM,A02019,Supplies & Services           ,Services                      ,DF02,Misc Advertising/Publicity              ,537.5,30/09/2014,REV,JCDECAUX UNITED KINGDOM       
16,Central Services,SupS Chief Execs,NON-STATUTORY MARKETING & COMM,A02019,Supplies & Services           ,Services                      ,DF02,Misc Advertising/Publicity              ,602,15/09/2014,REV,BAAF REGISTERED CHARITY       
17,Central Services,SupS Chief Execs,NON-STATUTORY MARKETING & COMM,A02019,Supplies & Services           ,Services                      ,DF02,Misc Advertising/Publicity              ,537.5,30/09/2014,REV,JCDECAUX UNITED KINGDOM       
18,Central Services,SupS Chief Execs,NON-STATUTORY MARKETING & COMM,A02019,Supplies & Services           ,Services                      ,DF35,Graphic Design                          ,750,06/10/2014,REV,TA2                           
19,Central Services,SupS Chief Execs,NON-STATUTORY MARKETING & COMM,A02019,Supplies & Services           ,Services                      ,DF35,Graphic Design                          ,"4,575.00",21/10/2014,REV,THE BIG IDEA 
20,Central Services,SupS Chief Execs,NON-STATUTORY MARKETING & COMM,A02019,Supplies & Services           ,Services                      ,DF35,Graphic Design                          ,720,06/10/2014,REV,TA2                           
21,Central Services,SupS Chief Execs,NON-STATUTORY MARKETING & COMM,A02019,Supplies & Services           ,Grants and Subscriptions      ,DJ04,Subscriptions                           ,686.16,25/09/2014,REV,PANACEA SOFTWARE LTD          
22,Central Services,SupS Chief Execs,NON-STATUTORY MARKETING & COMM,A02019,Supplies & Services           ,Grants and Subscriptions      ,DJ04,Subscriptions                           ,750,14/10/2014,REV,PANACEA SOFTWARE LTD          
23,Central Services,SupS Chief Execs,Democratic Services,A02023,Employees                     ,Direct Employee Expenses      ,AA17,Agency Staff & Casual Paymts            ,719.85,30/09/2014,REV,REDACTED
24,Central Services,SupS Chief Execs,Press and Public Relations.,A02026,Supplies & Services           ,Expenses                      ,DH21,Christma Lights                         ,"3,040.00",17/09/2014,REV,BLACHERE ILLUMINATION         
25,Central Services,,Sales and Marketing                     ,A02034,Employees                     ,Indirect Employee Expenses    ,AB02,Recruitment Adverts                     ,"8,000.00",29/09/2014,REV,ODGERS RAY & BERNDTSON INTERIM
26,Central Services,,Sales and Marketing                     ,A02034,Employees                     ,Indirect Employee Expenses    ,AB02,Recruitment Adverts                     ,"1,410.00",08/10/2014,REV,ODGERS RAY & BERNDTSON INTERIM
27,CS -Oth Operating Inc & Expend,T/A Corporate Services,Prtng Jobs - Ext Agncy,A03041,Supplies & Services           ,Prntng Stnry Gen Off Exp      ,DE01,External Printing                       ,"9,288.00",09/10/2014,REV,ULTIMATE INVOICE FINANCE LTD  
28,CS -Oth Operating Inc & Expend,T/A Corporate Services,Prtng Jobs - Ext Agncy,A03041,Supplies & Services           ,Prntng Stnry Gen Off Exp      ,DE01,External Printing                       ,"1,908.00",30/09/2014,REV,IMPRESS PRINT SERVICES LTD    
29,CS -Oth Operating Inc & Expend,T/A Corporate Services,PrintUnit-HighVolPhtcopying,A03042,Supplies & Services           ,Equip Furniture/Materials     ,DA06,Paper-Internal Print Jobs               ,"7,500.00",16/10/2014,REV,RAINBOW OFFICE SUPPLIES LTD   
30,Central Services,SupS Comm and Member Services,COMMUNITY ENGAGAMENT,A04057,Supplies & Services           ,Services                      ,DF32,Customer Survey                         ,"22,625.00",24/09/2014,REV,TNS UK LTD                    
31,Central Services,SupS Comm and Member Services,PROGRAMME OFFICE,A04068,Employees                     ,Indirect Employee Expenses    ,AB02,RECRUITMENT ADVERTS                     ,"2,065.00",30/09/2014,REV,PENNA COMMUNICATIONS (NO 2 A/C
32,Central Services,Grants - Voluntary Groups,VOLUNTARY SECTOR COORDINATION,A04082,Supplies & Services           ,Grants and Subscriptions      ,DJ01,Grants                                  ,"177,878.00",01/10/2014,REV,MERTON CITIZEN ADVICE BUREAU  
33,Central Services,Grants - Voluntary Groups,VOLUNTARY SECTOR COORDINATION,A04082,Supplies & Services           ,Grants and Subscriptions      ,DJ01,Grants                                  ,"5,000.00",01/10/2014,REV,COMMONSIDE COMMUNITY DEV TRUST
34,Central Services,Grants - Voluntary Groups,VOLUNTARY SECTOR COORDINATION,A04082,Supplies & Services           ,Grants and Subscriptions      ,DJ01,Grants                                  ,"11,155.00",01/10/2014,REV,MERTON VOLUNTARY SERV COUNCIL 
35,Central Services,Grants - Voluntary Groups,VOLUNTARY SECTOR COORDINATION,A04082,Supplies & Services           ,Grants and Subscriptions      ,DJ01,Grants                                  ,"4,375.00",11/09/2014,REV,THE DIVERSITY PRACTICE        
36,Central Services,Grants - Voluntary Groups,VOLUNTARY SECTOR COORDINATION,A04082,Supplies & Services           ,Grants and Subscriptions      ,DJ01,Grants                                  ,"8,530.00",01/10/2014,REV,MERTON CIL                    
37,Central Services,Grants - Voluntary Groups,VOLUNTARY SECTOR COORDINATION,A04082,Supplies & Services           ,Grants and Subscriptions      ,DJ01,Grants                                  ,"27,000.00",01/10/2014,REV,SW LONDON LAW CENTRES         
38,Central Services,Grants - Voluntary Groups,VOLUNTARY SECTOR COORDINATION,A04082,Supplies & Services           ,Grants and Subscriptions      ,DJ01,Grants                                  ,"10,000.00",01/10/2014,REV,MERTON COMMUNITY TRANSPORT    
39,Central Services,Grants - Voluntary Groups,VOLUNTARY SECTOR COORDINATION,A04082,Supplies & Services           ,Grants and Subscriptions      ,DJ01,Grants                                  ,"31,636.00",01/10/2014,REV,SPRINGFIELD LAW CENTRE LTD
40,Central Services,SupS Comm and Member Services,COMMERICIAL SERVICES,A04085,Employees                     ,Direct Employee Expenses      ,AA17,Agency Staff & Casual Paymts            ,"2,712.00",22/10/2014,REV,HAYS RECRUITING EXPERTS       
41,Central Services,SupS Comm and Member Services,COMMERICIAL SERVICES,A04085,Employees                     ,Direct Employee Expenses      ,AA17,Agency Staff & Casual Paymts            ,"3,390.00",01/10/2014,REV,HAYS RECRUITING EXPERTS       
42,Central Services,SupS Comm and Member Services,COMMERICIAL SERVICES,A04085,Employees                     ,Direct Employee Expenses      ,AA17,Agency Staff & Casual Paymts            ,"3,390.00",08/10/2014,REV,HAYS RECRUITING EXPERTS       
43,Central Services,SupS Comm and Member Services,COMMERICIAL SERVICES,A04085,Employees                     ,Direct Employee Expenses      ,AA17,Agency Staff & Casual Paymts            ,"13,878.19",25/09/2014,REV,V4 SERVICES LIMITED           
44,Central Services,SupS Comm and Member Services,COMMERICIAL SERVICES,A04085,Employees                     ,Direct Employee Expenses      ,AA17,Agency Staff & Casual Paymts            ,"3,624.25",24/09/2014,REV,REDACTED
45,Central Services,SupS Comm and Member Services,COMMERICIAL SERVICES,A04085,Employees                     ,Direct Employee Expenses      ,AA17,Agency Staff & Casual Paymts            ,"13,799.40",22/08/2014,REV,V4 SERVICES LIMITED           
46,Central Services,SupS Comm and Member Services,COMMERICIAL SERVICES,A04085,Employees                     ,Direct Employee Expenses      ,AA17,Agency Staff & Casual Paymts            ,"3,390.00",15/10/2014,REV,HAYS RECRUITING EXPERTS       
47,Highways & Transport Services,On-street parking,Blue Badge Service,A04088,Supplies & Services           ,Services                      ,DF14,Doctors and Other Fees                  ,600,22/09/2014,REV,ACCESS INDEPENDENT            
48,Central Services,SupS Health & Safety,Learning and Development,B06146,Employees                     ,Indirect Employee Expenses    ,AB57,EXTERNAL TRAINING COSTS                 ,720,18/09/2014,REV,OUTDOOR EDUC. ADVISERS PANEL  
49,Central Services,SupS Health & Safety,Learning and Development,B06146,Employees                     ,Indirect Employee Expenses    ,AB57,EXTERNAL TRAINING COSTS                 ,"2,200.00",08/08/2014,REV,CIPFA                         
50,Central Services,SupS Health & Safety,Learning and Development,B06146,Employees                     ,Indirect Employee Expenses    ,AB57,EXTERNAL TRAINING COSTS                 ,575,19/09/2014,REV,BOURNEMOUTH UNIVERSITY        
51,Central Services,SupS Health & Safety,Learning and Development,B06146,Employees                     ,Indirect Employee Expenses    ,AB57,EXTERNAL TRAINING COSTS                 ,"1,450.00",19/09/2014,REV,CROFT MANAGEMENT CENTRE       
52,Central Services,SupS Health & Safety,Learning and Development,B06146,Employees                     ,Indirect Employee Expenses    ,AB57,EXTERNAL TRAINING COSTS                 ,"1,120.00",14/10/2014,REV,CIPFA                         
53,Central Services,SupS Health & Safety,Learning and Development,B06146,Employees                     ,Indirect Employee Expenses    ,AB57,EXTERNAL TRAINING COSTS                 ,"1,715.00",10/09/2014,REV,CIPFA                         
54,Central Services,SupS Health & Safety,Learning and Development,B06146,Employees                     ,Indirect Employee Expenses    ,AB57,EXTERNAL TRAINING COSTS                 ,675,26/09/2014,REV,HBINFO LTD                    
55,Central Services,SupS Health & Safety,Learning and Development,B06146,Employees                     ,Indirect Employee Expenses    ,AB57,EXTERNAL TRAINING COSTS                 ,"1,200.00",30/09/2014,REV,TRANSITIONAL SPACE LTD        
56,Central Services,SupS Health & Safety,Learning and Development,B06146,Employees                     ,Indirect Employee Expenses    ,AB57,EXTERNAL TRAINING COSTS                 ,"2,200.00",22/10/2014,REV,CIPFA BUSINESS LTD            
57,Central Services,SupS Health & Safety,Learning and Development,B06146,Employees                     ,Indirect Employee Expenses    ,AB57,EXTERNAL TRAINING COSTS                 ,"1,200.00",15/10/2014,REV,THE PRESCRIPTION TRAINING COMP
58,Central Services,SupS Health & Safety,Learning and Development,B06146,Employees                     ,Indirect Employee Expenses    ,AB57,EXTERNAL TRAINING COSTS                 ,875,27/09/2014,REV,DODS PARLIAMENTRY COMM LTD    
59,Central Services,SupS Health & Safety,Learning and Development,B06146,Employees                     ,Indirect Employee Expenses    ,AB57,EXTERNAL TRAINING COSTS                 ,888.25,15/10/2014,REV,OPP UNLOCKING POTENTIAL       
60,Central Services,SupS Health & Safety,Learning and Development,B06146,Employees                     ,Indirect Employee Expenses    ,AB57,EXTERNAL TRAINING COSTS                 ,"1,596.00",14/08/2014,REV,WAVE PEOPLE CONSULTING        
61,Central Services,SupS Health & Safety,Learning and Development,B06146,Employees                     ,Indirect Employee Expenses    ,AB57,EXTERNAL TRAINING COSTS                 ,695,13/10/2014,REV,PURPLE GRIFFON LIMITED        
62,Central Services,SupS Health & Safety,Learning and Development,B06146,Employees                     ,Indirect Employee Expenses    ,AB57,EXTERNAL TRAINING COSTS                 ,"2,755.00",09/07/2014,REV,SERCO LTD                     
63,Central Services,SupS Health & Safety,Learning and Development,B06146,Employees                     ,Indirect Employee Expenses    ,AB57,EXTERNAL TRAINING COSTS                 ,500,30/07/2014,REV,CNC'L 4 LEARNING O.SIDE CLASS 
64,Central Services,SupS Health & Safety,Learning and Development,B06146,Employees                     ,Indirect Employee Expenses    ,AB57,EXTERNAL TRAINING COSTS                 ,984,17/03/2014,REV,WAVE PEOPLE CONSULTING        
65,Central Services,SupS Health & Safety,Learning and Development,B06146,Employees                     ,Indirect Employee Expenses    ,AB57,EXTERNAL TRAINING COSTS                 ,995,30/09/2014,REV,THE PRESCRIPTION TRAINING COMP
66,Central Services,SupS Health & Safety,Learning and Development,B06146,Employees                     ,Indirect Employee Expenses    ,AB57,EXTERNAL TRAINING COSTS                 ,"2,410.00",01/07/2014,REV,STROMA ACCREDITATION LTD      
67,Central Services,SupS Health & Safety,Learning and Development,B06146,Employees                     ,Indirect Employee Expenses    ,AB57,EXTERNAL TRAINING COSTS                 ,"1,210.00",15/10/2014,REV,OPP UNLOCKING POTENTIAL       
68,Central Services,SupS Health & Safety,Learning and Development,B06146,Employees                     ,Indirect Employee Expenses    ,AB57,EXTERNAL TRAINING COSTS                 ,605,03/10/2014,REV,LONDON SCHOOL OF FIRST AID    
69,Central Services,SupS Health & Safety,Learning and Development,B06146,Employees                     ,Indirect Employee Expenses    ,AB57,EXTERNAL TRAINING COSTS                 ,"1,800.00",20/10/2014,REV,CHANGE CONSULTANCY            
70,Central Services,SupS Health & Safety,Learning and Development,B06146,Employees                     ,Indirect Employee Expenses    ,AB57,EXTERNAL TRAINING COSTS                 ,960,17/03/2014,REV,WAVE PEOPLE CONSULTING        
71,Central Services,SupS Health & Safety,Learning and Development,B06146,Supplies & Services           ,Expenses                      ,DH60,Members Training AP Creditors           ,643,03/10/2014,REV,THE BAIKIE-WOOD CONSULT'CY LTD
72,Central Services,SupS Health & Safety,Departmental HR - CSF,B06148,Employees                     ,Indirect Employee Expenses    ,AB02,Recruitment Adverts                     ,"1,200.00",20/08/2014,REV,LONDON BOROUGH OF SUTTON      
73,Central Services,SupS Health & Safety,Strategic Personnel Management,B06151,Third Party Payments          ,Other Local Authorities       ,EB01,Payments to OLAs                        ,"-87,500.00",13/10/2014,REV,LONDON BOROUGH OF SUTTON      
74,Central Services,SupS Health & Safety,Strategic Personnel Management,B06151,Third Party Payments          ,Other Local Authorities       ,EB01,Payments to OLAs                        ,"87,500.00",13/10/2014,REV,LONDON BOROUGH OF SUTTON      
157,,,Disabled Facilities Grant               ,CC022RA,Other Capital Expenditure,0,E1,Grants                                  ,"1,796.62",30/10/2014,CAP,STAYING FIRST                 
158,,,Disabled Facilities Grant               ,CC022RA,Other Capital Expenditure,0,E1,Grants                                  ,"1,796.62",30/10/2014,CAP,STAYING FIRST                 
159,,,Disabled Facilities Grant               ,CC022RA,Other Capital Expenditure,0,E1,Grants                                  ,"10,359.00",29/10/2014,CAP,WESSEX LIFT COMPANY LTD       
160,,,Disabled Facilities Grant DCLG          ,CE004RA,Other Capital Expenditure,0,E1,Grants                                  ,"1,670.96",08/10/2014,CAP,STAYING FIRST                 
161,,,Disabled Facilities Grant DCLG          ,CE004RA,Other Capital Expenditure,0,E1,Grants                                  ,"2,265.00",08/10/2014,CAP,ASCENDIT LIFTS LTD            
162,,,Disabled Facilities Grant DCLG          ,CE004RA,Other Capital Expenditure,0,E1,Grants                                  ,"9,225.54",08/10/2014,CAP,FREEWAY LIFT SERVICES LTD     
163,,,Disabled Facilities Grant DCLG          ,CE004RA,Other Capital Expenditure,0,E1,Grants                                  ,"9,225.54",08/10/2014,CAP,FREEWAY LIFT SERVICES LTD     
164,,,Disabled Facilities Grant DCLG          ,CE004RA,Other Capital Expenditure,0,E1,Grants                                  ,"1,218.75",17/10/2014,CAP,HARDING DESIGN LIMITED        
165,,,Disabled Facilities Grant DCLG          ,CE004RA,Other Capital Expenditure,0,E1,Grants                                  ,"5,973.00",09/10/2014,CAP,W C EVANS LTD                 
166,,,Disabled Facilities Grant DCLG          ,CE004RA,Other Capital Expenditure,0,E1,Grants                                  ,"1,710.82",08/10/2014,CAP,STAYING FIRST                 
167,,,Disabled Facilities Grant DCLG          ,CE004RA,Other Capital Expenditure,0,E1,Grants                                  ,"5,310.00",17/10/2014,CAP,WEIR BUILDING SERVICES        
168,,,Disabled Facilities Grant DCLG          ,CE004RA,Other Capital Expenditure,0,E1,Grants                                  ,"1,753.43",08/10/2014,CAP,STAYING FIRST                 
169,,,Disabled Facilities Grant DCLG          ,CE004RA,Other Capital Expenditure,0,E1,Grants                                  ,"4,443.98",17/10/2014,CAP,AQUANEED LIMITED              
170,,,Disabled Facilities Grant DCLG          ,CE004RA,Other Capital Expenditure,0,E1,Grants                                  ,"1,279.50",17/10/2014,CAP,HARDING DESIGN LIMITED        
171,,,Disabled Facilities Grant DCLG          ,CE004RA,Other Capital Expenditure,0,E1,Grants                                  ,"2,483.32",08/10/2014,CAP,STAYING FIRST                 
172,,,Parks Investment                        ,CE013SA,New Construction Conversion and Renovation,0,B4,Contractor - Site works                 ,"27,687.00",25/09/2014,CAP,PARK LEISURE LTD              
173,,,Parks Investment                        ,CE013SA,New Construction Conversion and Renovation,0,B4,Contractor - Site works                 ,785,02/10/2014,CAP,REDACTED
174,,,Parks Investment                        ,CE013SA,New Construction Conversion and Renovation,0,B4,Contractor - Site works                 ,"3,500.00",06/10/2014,CAP,LONDON BOROUGH OF SUTTON      
175,,,Parks Investment                        ,CE013SA,New Construction Conversion and Renovation,0,B4,Contractor - Site works                 ,"6,597.00",19/09/2014,CAP,RTC SAFETY SURFACE LTD        
176,,,Parks Investment                        ,CE013SA,New Construction Conversion and Renovation,0,B4,Contractor - Site works                 ,552,24/10/2014,CAP,MORTON FAIRVIEW ELEC SERVICES 
177,,,Parks Investment                        ,CE013SA,New Construction Conversion and Renovation,0,B4,Contractor - Site works                 ,575,24/10/2014,CAP,MORTON FAIRVIEW ELEC SERVICES 
178,,,Restoration of South Park Gdns          ,CE015CA,New Construction Conversion and Renovation,0,B4,Contractor - Site works                 ,"37,354.00",09/10/2014,CAP,MOY CONSTRUCTION CO LTD       
179,,,B595 Colliers Wd Rec-play area          ,CE022CC,New Construction Conversion and Renovation,0,B4,Contractor - Site works                 ,"6,438.00",19/09/2014,CAP,RTC SAFETY SURFACE LTD        
180,,,Surface Water Drainage                  ,CE024FA,New Construction Conversion and Renovation,0,B4,Contractor - Site works                 ,"3,835.48",02/10/2014,CAP,FM CONWAY LTD                 
181,,,Highways bridges & structures           ,CE025FA,New Construction Conversion and Renovation,0,B2,Site Surveys D&S Structure              ,"5,171.63",29/09/2014,CAP,AECOM LIMITED                 
182,,,Borough Roads Maintenance               ,CE026FA,New Construction Conversion and Renovation,0,B4,Contractor - Site works                 ,"1,835.83",17/10/2014,CAP,FM CONWAY LTD                 
183,,,Borough Roads Maintenance               ,CE026FA,New Construction Conversion and Renovation,0,B4,Contractor - Site works                 ,"47,200.28",22/10/2014,CAP,FM CONWAY LTD                 
184,,,Maintain AntiSkid and Coloured          ,CE027FA,New Construction Conversion and Renovation,0,B4,Contractor - Site works                 ,"13,116.26",17/10/2014,CAP,FM CONWAY LTD                 
185,,,Maintain AntiSkid and Coloured          ,CE027FA,New Construction Conversion and Renovation,0,B4,Contractor - Site works                 ,"14,371.83",17/10/2014,CAP,FM CONWAY LTD                 
186,,,Repairs to Footways                     ,CE029FA,New Construction Conversion and Renovation,0,B4,Contractor - Site works                 ,"25,000.00",08/10/2014,CAP,FM CONWAY LTD                 
187,,,Repairs to Footways                     ,CE029FA,New Construction Conversion and Renovation,0,B4,Contractor - Site works                 ,"2,441.08",16/10/2014,CAP,MAY GURNEY LTD T/A CARTLEDGE  
188,,,Repairs to Footways                     ,CE029FA,New Construction Conversion and Renovation,0,B4,Contractor - Site works                 ,"15,000.00",08/10/2014,CAP,FM CONWAY LTD                 
189,,,Repairs to Footways                     ,CE029FA,New Construction Conversion and Renovation,0,B4,Contractor - Site works                 ,"25,000.00",08/10/2014,CAP,FM CONWAY LTD                 
190,,,Repairs to Footways                     ,CE029FA,New Construction Conversion and Renovation,0,B4,Contractor - Site works                 ,"3,910.42",17/10/2014,CAP,FM CONWAY LTD                 
191,,,Repairs to Footways                     ,CE029FA,New Construction Conversion and Renovation,0,B4,Contractor - Site works                 ,"28,000.00",08/10/2014,CAP,FM CONWAY LTD                 
192,,,Repairs to Footways                     ,CE029FA,New Construction Conversion and Renovation,0,B4,Contractor - Site works                 ,"1,682.17",17/10/2014,CAP,FM CONWAY LTD                 
193,,,River Wandle Footbridge                 ,CE036FA,New Construction Conversion and Renovation,0,B1,Consultants Fees D&S Structure          ,560,26/08/2014,CAP,HYDER CONSULTING (UK) LTD     
194,,,Street scene enhancements               ,CE066FE,New Construction Conversion and Renovation,0,B4,Contractor - Site works                 ,"4,150.00",20/10/2014,CAP,REDACTED
195,,,Street Lighting Replacement Pr          ,CE068FA,New Construction Conversion and Renovation,0,B4,Contractor - Site works                 ,804.96,22/10/2014,CAP,FM CONWAY LTD                 
196,,,Street Lighting Replacement Pr          ,CE068FA,New Construction Conversion and Renovation,0,B6,Other Costs - Site works                ,"1,074.00",03/10/2014,CAP,UK POWER NETWORKS (OPERATIONS)
197,,,Street Lighting Replacement Pr          ,CE068FA,New Construction Conversion and Renovation,0,B6,Other Costs - Site works                ,"1,176.00",02/10/2014,CAP,UK POWER NETWORKS (OPERATIONS)
198,,,Street Lighting Replacement Pr          ,CE068FA,New Construction Conversion and Renovation,0,B6,Other Costs - Site works                ,"1,716.00",22/09/2014,CAP,UK POWER NETWORKS (OPERATIONS)
199,,,Street Lighting Replacement Pr          ,CE068FA,New Construction Conversion and Renovation,0,B6,Other Costs - Site works                ,"1,176.00",14/10/2014,CAP,UK POWER NETWORKS (OPERATIONS)
200,,,Street Lighting Replacement Pr          ,CE068FA,New Construction Conversion and Renovation,0,B6,Other Costs - Site works                ,642,02/10/2014,CAP,UK POWER NETWORKS (OPERATIONS)
201,,,Street Lighting Replacement Pr          ,CE068FA,New Construction Conversion and Renovation,0,B6,Other Costs - Site works                ,642,02/10/2014,CAP,UK POWER NETWORKS (OPERATIONS)
202,,,Street Lighting Replacement Pr          ,CE068FA,New Construction Conversion and Renovation,0,B6,Other Costs - Site works                ,642,02/10/2014,CAP,UK POWER NETWORKS (OPERATIONS)
203,,,Street Lighting Replacement Pr          ,CE068FA,New Construction Conversion and Renovation,0,B6,Other Costs - Site works                ,"-1,716.00",03/10/2014,CAP,UK POWER NETWORKS (OPERATIONS)
204,,,Replacement of Fleet Vehicles           ,CE082EA,New Construction Conversion and Renovation,0,B4,Contractor - Site works                 ,"29,309.42",18/09/2014,CAP,OAKLAND BUILDING SERVICES LTD 
205,,,Accesibility Programme                  ,CE104FD,New Construction Conversion and Renovation,0,B4,Contractor - Site works                 ,"2,418.95",17/10/2014,CAP,FM CONWAY LTD                 
206,,,Mitcham Town Centre                     ,CE104FP,New Construction Conversion and Renovation,0,B4,Contractor - Site works                 ,"36,849.87",21/10/2014,CAP,BT OPENREACH                  
207,,,Casualty Reduction & Schools            ,CE104RA,New Construction Conversion and Renovation,0,B4,Contractor - Site works                 ,"7,197.76",17/10/2014,CAP,FM CONWAY LTD                 
208,,,Tamworth Paddling Pool                  ,CE110CL,New Construction Conversion and Renovation,0,B4,Contractor - Site works                 ,"6,645.00",24/09/2014,CAP,USTIGATE LTD                  
209,,,B626a-c Cottnhm Prk&Hollnd Gdn          ,CE110SG,New Construction Conversion and Renovation,0,B4,Contractor - Site works                 ,"5,103.00",06/10/2014,CAP,MORTON FAIRVIEW ELEC SERVICES 
210,,,Pollution PH Funding                    ,CE110SJ,New Construction Conversion and Renovation,0,B2,Site Surveys D&S Structure              ,"3,800.00",16/10/2014,CAP,A.COLEBROOK ARBORICULTURE CON.
211,,,Civic Centre Windows                    ,CF001AK,New Construction Conversion and Renovation,0,B4,Contractor - Site works                 ,"27,697.80",07/10/2014,CAP,HAZLEMERE WINDOW CO LIMITED   
212,,,Civic Centre Windows                    ,CF001AK,New Construction Conversion and Renovation,0,B4,Contractor - Site works                 ,"3,290.00",09/10/2014,CAP,SSD LIMITED                   
213,,,Repair and Maintenance                  ,CF004SA,New Construction Conversion and Renovation,0,B4,Contractor - Site works                 ,"1,770.00",22/09/2014,CAP,NATIONCARE WINDOWS LTD        
214,,,Repair and Maintenance                  ,CF004SA,New Construction Conversion and Renovation,0,B4,Contractor - Site works                 ,"8,954.00",22/09/2014,CAP,NATIONCARE WINDOWS LTD        
215,,,DFG Mandatory,CNE634G,Other Capital Expenditure,0,4A,Grants                                  ,"1,597.99",23/10/2014,CAP,STAYING FIRST                 
216,,,DFG Mandatory,CNE634G,Other Capital Expenditure,0,4A,Grants                                  ,"10,906.89",23/10/2014,CAP,AMWELL CONSTRUCTION           
217,,,DFG Mandatory,CNE634G,Other Capital Expenditure,0,4A,Grants                                  ,"1,670.96",23/10/2014,CAP,STAYING FIRST                 
218,,,DFG Mandatory,CNE634G,Other Capital Expenditure,0,4A,Grants                                  ,"2,200.00",22/10/2014,CAP,FREEWAY LIFT SERVICES LTD     
219,,,DFG Mandatory,CNE634G,Other Capital Expenditure,0,4A,Grants                                  ,"4,770.00",22/10/2014,CAP,FREEWAY LIFT SERVICES LTD     
220,,,DFG Mandatory,CNE634G,Other Capital Expenditure,0,4A,Grants                                  ,"7,131.00",22/10/2014,CAP,EFFECTABLE LTD.               
221,,,St Mary's expansion                     ,CS008RA,New Construction Conversion and Renovation,0,B1,Consultants Fees D&S Structure          ,"4,152.00",29/09/2014,CAP,NPS PROPERTY CONSULTANTS LTD  
222,,,St Mary's expansion                     ,CS008RA,New Construction Conversion and Renovation,0,B4,Contractor - Site works                 ,"250,535.48",19/09/2014,CAP,MANSELL CONSTRUCTION SERVICES 
223,,,Cranmer expansion                       ,CS010AA,New Construction Conversion and Renovation,0,B1,Consultants Fees D&S Structure          ,"3,863.07",25/09/2014,CAP,ATKINS LIMITED                
224,,,Joseph Hood Permanent Expansn           ,CS012AA,New Construction Conversion and Renovation,0,B1,Consultants Fees D&S Structure          ,"1,350.00",30/09/2014,CAP,CBG CONSULTANTS LTD           
225,,,Joseph Hood Permanent Expansn           ,CS012AA,New Construction Conversion and Renovation,0,B4,Contractor - Site works                 ,"7,500.00",15/10/2014,CAP,GEE CONSTRUCTION LTD          
226,,,Hillcross School Expansion              ,CS020AC,New Construction Conversion and Renovation,0,B4,Contractor - Site works                 ,"271,548.30",29/09/2014,CAP,MANSELL CONSTRUCTION SERVICES 
227,,,Merton Abbey Temp Accomodation          ,CS022AC,New Construction Conversion and Renovation,0,B1,Consultants Fees D&S Structure          ,750,31/07/2014,CAP,STACE LLP                     
228,,,Merton Abbey Temp Accomodation          ,CS022AC,New Construction Conversion and Renovation,0,B1,Consultants Fees D&S Structure          ,-750,11/08/2014,CAP,STACE LLP                     
229,,,Merton Abbey Temp Accomodation          ,CS022AC,New Construction Conversion and Renovation,0,B1,Consultants Fees D&S Structure          ,"3,764.12",29/09/2014,CAP,PELLINGS LLP                  
230,,,Merton Abbey Temp Accomodation          ,CS022AC,New Construction Conversion and Renovation,0,B2,Site Surveys D&S Structure              ,"1,025.00",30/09/2014,CAP,KEEGANS LIMITED               
231,,,Merton Abbey Temp Accomodation          ,CS022AC,New Construction Conversion and Renovation,0,B4,Contractor - Site works                 ,"378,500.64",02/10/2014,CAP,MANSELL CONSTRUCTION SERVICES 
232,,,Pelham School Expansion                 ,CS023AC,New Construction Conversion and Renovation,0,B1,Consultants Fees D&S Structure          ,"1,975.00",16/10/2014,CAP,STACE LLP                     
233,,,Pelham School Expansion                 ,CS023AC,New Construction Conversion and Renovation,0,B1,Consultants Fees D&S Structure          ,"2,267.50",03/07/2014,CAP,STACE LLP                     
234,,,Pelham School Expansion                 ,CS023AC,New Construction Conversion and Renovation,0,B2,Site Surveys D&S Structure              ,720,30/09/2014,CAP,ADAMS ENVIRONMENTAL LTD       
235,,,Pelham School Expansion                 ,CS023AC,New Construction Conversion and Renovation,0,B4,Contractor - Site works                 ,"183,804.96",29/09/2014,CAP,MANSELL CONSTRUCTION SERVICES 
236,,,Dundonald expansion                     ,CS031AC,New Construction Conversion and Renovation,0,B1,Consultants Fees D&S Structure          ,"1,570.00",30/09/2014,CAP,SYNERGY CPC LLP               
237,,,Free School Meals                       ,CS033AB,Vehicles Plant Equipment and Machinery,0,D3,Equipment                               ,"9,962.00",12/06/2014,CAP,DF20 LTD                      
238,,,Free School Meals                       ,CS033AB,Vehicles Plant Equipment and Machinery,0,D3,Equipment                               ,"56,234.00",26/08/2014,CAP,DF20 LTD                      
239,,,Poplar Permanent Expansion              ,CS034AB,New Construction Conversion and Renovation,0,B1,Consultants Fees D&S Structure          ,"-1,000.00",11/08/2014,CAP,STACE LLP                     
240,,,Poplar Permanent Expansion              ,CS034AB,New Construction Conversion and Renovation,0,B1,Consultants Fees D&S Structure          ,"3,312.12",29/09/2014,CAP,PELLINGS LLP                  
241,,,Poplar Permanent Expansion              ,CS034AB,New Construction Conversion and Renovation,0,B1,Consultants Fees D&S Structure          ,"1,000.00",31/07/2014,CAP,STACE LLP                     
242,,,Poplar Permanent Expansion              ,CS034AB,New Construction Conversion and Renovation,0,B2,Site Surveys D&S Structure              ,592.5,30/09/2014,CAP,KEEGANS LIMITED               
243,,,Poplar Permanent Expansion              ,CS034AB,New Construction Conversion and Renovation,0,B4,Contractor - Site works                 ,"257,428.94",01/10/2014,CAP,MANSELL CONSTRUCTION SERVICES 
244,,,Singlegate expansion                    ,CS049AA,New Construction Conversion and Renovation,0,B4,Contractor - Site works                 ,"196,221.30",18/09/2014,CAP,MANSELL CONSTRUCTION SERVICES 
245,,,Singlegate expansion                    ,CS049AA,New Construction Conversion and Renovation,0,B4,Contractor - Site works                 ,"374,392.84",20/10/2014,CAP,MANSELL CONSTRUCTION SERVICES 
246,,,Wimbledon Park expansion                ,CS050AA,New Construction Conversion and Renovation,0,B1,Consultants Fees D&S Structure          ,"1,295.00",30/09/2014,CAP,SYNERGY CPC LLP               
247,,,Wimbledon Park expansion                ,CS050AA,New Construction Conversion and Renovation,0,B1,Consultants Fees D&S Structure          ,"1,000.00",30/09/2014,CAP,SYNERGY CPC LLP               
248,,,Wimbledon Park expansion                ,CS050AA,New Construction Conversion and Renovation,0,B1,Consultants Fees D&S Structure          ,"1,215.00",10/10/2014,CAP,RJF LANDSCAPE CONSULTANTS     
249,,,Schs Cap Maint & Accessibility          ,CS080SD,New Construction Conversion and Renovation,0,B4,Contractor - Site works                 ,"14,806.55",29/09/2014,CAP,CABLESHEER CONSTRUCTION LTD   
250,,,Schs Cap Maint & Accessibility          ,CS080SD,New Construction Conversion and Renovation,0,B4,Contractor - Site works                 ,"28,898.29",29/09/2014,CAP,CABLESHEER CONSTRUCTION LTD   
251,,,Schs Cap Maint & Accessibility          ,CS080SD,New Construction Conversion and Renovation,0,B4,Contractor - Site works                 ,"1,964.87",29/09/2014,CAP,CABLESHEER CONSTRUCTION LTD   
252,,,Schs Cap Maint & Accessibility          ,CS080SD,New Construction Conversion and Renovation,0,B4,Contractor - Site works                 ,686,26/09/2014,CAP,KC DRAINS LTD                 
253,,,Schs Cap Maint & Accessibility          ,CS080SD,New Construction Conversion and Renovation,0,B4,Contractor - Site works                 ,"31,396.77",14/10/2014,CAP,T BROWN LTD                   
254,,,Schs Cap Maint & Accessibility          ,CS080SD,New Construction Conversion and Renovation,0,B4,Contractor - Site works                 ,"48,486.10",17/09/2014,CAP,CABLESHEER CONSTRUCTION LTD   
255,,,Schs Cap Maint & Accessibility          ,CS080SD,New Construction Conversion and Renovation,0,B6,Other Costs - Site works                ,"3,814.32",13/10/2014,CAP,PURLEY POOLS (UK) LTD         
256,,,Hatfield                                ,CS081SA,New Construction Conversion and Renovation,0,B1,Consultants Fees D&S Structure          ,"7,985.25",29/09/2014,CAP,NPS PROPERTY CONSULTANTS LTD  
257,,,Hatfield                                ,CS081SA,New Construction Conversion and Renovation,0,B2,Site Surveys D&S Structure              ,800,25/09/2014,CAP,ASHDOWN SITE INVESTIGATION    
258,,,Hatfield                                ,CS081SA,New Construction Conversion and Renovation,0,B2,Site Surveys D&S Structure              ,"2,870.00",11/09/2014,CAP,MK SURVEYS                    
259,,,Hatfield                                ,CS081SA,New Construction Conversion and Renovation,0,B2,Site Surveys D&S Structure              ,"2,500.00",24/09/2014,CAP,J P CHICK & PARTNERS LTD      
260,,,Hatfield                                ,CS081SA,New Construction Conversion and Renovation,0,B2,Site Surveys D&S Structure              ,"2,605.00",28/08/2014,CAP,ASHDOWN SITE INVESTIGATION    
261,,,Perseid                                 ,CS092AA,New Construction Conversion and Renovation,0,B2,Site Surveys D&S Structure              ,790,12/09/2014,CAP,ASHDOWN SITE INVESTIGATION    
262,,,Replacement Social Care System          ,CT007EA,Vehicles Plant Equipment and Machinery,0,D5,Software                                ,"58,536.00",29/08/2014,CAP,CORELOGIC                     
263,Central Services,Council tax collection,Local Taxation Services,E02100,Supplies & Services           ,Services                      ,DF11,Counsel's Fees                          ,"1,030.00",28/10/2014,REV,WELBECK LAW LLP               
264,Central Services,Council tax collection,Local Taxation Services,E02100,Supplies & Services           ,Services                      ,DF11,Counsel's Fees                          ,-575,04/08/2014,REV,REDACTED
265,Central Services,Council tax collection,Local Taxation Services,E02100,Supplies & Services           ,Services                      ,DF11,Counsel's Fees                          ,845.68,20/10/2014,REV,WELBECK LAW LLP               
266,Central Services,Council tax collection,Local Taxation Services,E02100,Supplies & Services           ,Services                      ,DF11,Counsel's Fees                          ,573.22,09/06/2014,REV,WELBECK LAW LLP               
267,Central Services,Council tax collection,Local Taxation Services,E02100,Supplies & Services           ,Services                      ,DF11,Counsel's Fees                          ,575,04/08/2014,REV,REDACTED
268,Central Services,Council tax collection,Local Taxation Services,E02100,Supplies & Services           ,Services                      ,DF11,Counsel's Fees                          ,"1,030.00",15/10/2014,REV,WELBECK LAW LLP               
269,Central Services,Council tax collection,Local Taxation Services,E02100,Supplies & Services           ,Services                      ,DF11,Counsel's Fees                          ,905.68,21/10/2014,REV,WELBECK LAW LLP               
270,Central Services,Council tax collection,Local Taxation Services,E02100,Supplies & Services           ,Comms and Computing           ,DG09,Computer Purchases - Misc               ,"4,005.86",30/09/2014,REV,CIVICA UK LIMITED             
271,Central Services,Council tax collection,Local Taxation Bailiffs,E02101,Supplies & Services           ,Equip Furniture/Materials     ,DA09,Equip-Purchases                         ,532.65,17/10/2014,REV,REDACTED
272,Central Services,Council tax collection,Local Taxation Bailiffs,E02101,Supplies & Services           ,Services                      ,DF18,Bailiffs' fees                          ,541.71,30/09/2014,REV,HPI LIMITED                   
273,Housing Services,HB Administration,Benefits Administration,E02120,Supplies & Services           ,Comms and Computing           ,DG09,Computer Purchases - Misc               ,"2,353.54",30/09/2014,REV,CIVICA UK LIMITED             
274,Housing Services,HB Administration,Local Welfare Support,E02123,Transfer Payments             ,Housing Benefits              ,FA95,Other Payments                          ,"20,000.00",01/10/2014,REV,POST OFFICE LTD -POSTAL CLIENT
275,Housing Services,HB Administration,Local Welfare Support,E02123,Transfer Payments             ,Housing Benefits              ,FA95,Other Payments                          ,520.61,20/10/2014,REV,THE VINE PROJECT              
276,Housing Services,HB Administration,Local Welfare Support,E02123,Transfer Payments             ,Housing Benefits              ,FA95,Other Payments                          ,558.24,28/10/2014,REV,THE VINE PROJECT              
277,Central Services,SupS Payroll,Payroll,E02140,Third Party Payments          ,Private Contractors           ,EH10,Contract Payments                       ,"12,579.59",06/10/2014,REV,LONDON BOROUGH OF SUTTON      
278,Central Services,SupS Payroll,Payroll,E02140,Third Party Payments          ,Private Contractors           ,EH10,Contract Payments                       ,"27,142.80",17/10/2014,REV,LONDON BOROUGH OF SUTTON      
279,Central Services,SupS Payroll,Payroll,E02140,Third Party Payments          ,Private Contractors           ,EH10,Contract Payments                       ,"5,744.60",06/10/2014,REV,LONDON BOROUGH OF SUTTON      
280,Central Services,SupS Payroll,Payroll,E02140,Third Party Payments          ,Private Contractors           ,EH10,Contract Payments                       ,"14,804.63",21/10/2014,REV,LONDON BOROUGH OF SUTTON      
281,Central Services,SupS Payroll,Payroll,E02140,Third Party Payments          ,Private Contractors           ,EH10,Contract Payments                       ,"19,965.47",21/10/2014,REV,LONDON BOROUGH OF SUTTON      
282,Central Services,SupS Payroll,Trinity Project,E02141,Supplies & Services           ,Services                      ,DF03,Consultants                             ,"2,460.00",27/10/2014,REV,LONDON BOROUGH OF SUTTON      
283,Central Services,SupS Pensions,Pensions,E02160,Third Party Payments          ,Other Local Authorities       ,EB01,Payments to OLAs                        ,"33,252.00",09/09/2014,REV,WANDSWORTH BOROUGH COUNCIL    
284,Central Services,SupS Pensions,Pensions,E02160,Third Party Payments          ,Other Local Authorities       ,EB01,Payments to OLAs                        ,"33,252.00",09/09/2014,REV,WANDSWORTH BOROUGH COUNCIL    
285,Central Services,SupS Facilities,Post Room,E02220,Supplies & Services           ,Comms and Computing           ,DG04,Postage - General                       ,"1,040.80",15/09/2014,REV,STREETWISE COURIERS           
286,Central Services,SupS Facilities,Post Room,E02220,Supplies & Services           ,Comms and Computing           ,DG04,Postage - General                       ,791.85,22/09/2014,REV,STREETWISE COURIERS           
287,Central Services,SupS Facilities,Post Room,E02220,Supplies & Services           ,Comms and Computing           ,DG04,Postage - General                       ,685.91,06/10/2014,REV,STREETWISE COURIERS           
288,Central Services,SupS Facilities,Security Services,E02221,Employees                     ,Direct Employee Expenses      ,AA17,Agency Staff & Casual Paymts            ,"2,796.30",01/10/2014,REV,REDACTED
289,Central Services,SupS Facilities,Security Services,E02221,Employees                     ,Direct Employee Expenses      ,AA17,Agency Staff & Casual Paymts            ,"2,059.20",01/10/2014,REV,REDACTED
290,Central Services,SupS Facilities,Security Services,E02221,Employees                     ,Direct Employee Expenses      ,AA17,Agency Staff & Casual Paymts            ,"2,106.00",01/10/2014,REV,REDACTED
291,Central Services,SupS Facilities,Security Services,E02221,Employees                     ,Direct Employee Expenses      ,AA17,Agency Staff & Casual Paymts            ,"1,123.20",01/10/2014,REV,REDACTED
292,Central Services,SupS Facilities,Security Services,E02221,Employees                     ,Direct Employee Expenses      ,AA17,Agency Staff & Casual Paymts            ,"2,495.03",01/10/2014,REV,REDACTED
293,Central Services,SupS Facilities,Civic Centre,E02222,Premises Related Expenditure  ,RepairsAlterations&MtceOfBldgs,BA29,BUILD MAINT MGT FEES                    ,"1,157.52",18/09/2014,REV,UNIQUE OFFICE SOLUTIONS LTD   
294,Central Services,SupS Facilities,Civic Centre,E02222,Premises Related Expenditure  ,RepairsAlterations&MtceOfBldgs,BA29,BUILD MAINT MGT FEES                    ,"1,157.52",18/09/2014,REV,UNIQUE OFFICE SOLUTIONS LTD   
295,Central Services,SupS Facilities,Civic Centre,E02222,Premises Related Expenditure  ,RepairsAlterations&MtceOfBldgs,BA29,BUILD MAINT MGT FEES                    ,"1,490.00",21/10/2014,REV,TOTAL COMPUTER NETWORKS       
296,Central Services,SupS Facilities,Civic Centre,E02222,Premises Related Expenditure  ,RepairsAlterations&MtceOfBldgs,BA29,BUILD MAINT MGT FEES                    ,741.5,30/09/2014,REV,EDE'S (U.K.) LTD              
297,Central Services,SupS Facilities,Civic Centre,E02222,Supplies & Services           ,Equip Furniture/Materials     ,DA09,Equip-Purchases                         ,"8,631.25",30/09/2014,REV,REDACTED
298,Central Services,SupS Facilities,Facilities,E02231,Premises Related Expenditure  ,RepairsAlterations&MtceOfBldgs,BA02,ENERGY CONSERVATION                     ,"1,749.87",06/10/2014,REV,BERGEN ENERGI                 
299,Central Services,SupS Facilities,Facilities,E02231,Premises Related Expenditure  ,RepairsAlterations&MtceOfBldgs,BA02,ENERGY CONSERVATION                     ,"1,125.00",25/09/2014,REV,SYSTEMS LINK                  
300,Central Services,SupS Facilities,Facilities,E02231,Premises Related Expenditure  ,RepairsAlterations&MtceOfBldgs,BA02,ENERGY CONSERVATION                     ,"1,917.00",01/10/2014,REV,BERGEN ENERGI                 
301,Central Services,SupS Facilities,Facilities,E02231,Premises Related Expenditure  ,RepairsAlterations&MtceOfBldgs,BA29,Build Maint Mgt Fees                    ,"3,495.00",16/10/2014,REV,COMPLEMENT CONSULTING LIMITED 
302,Central Services,SupS Facilities,Corporate Services Buildings,E02240,Premises Related Expenditure  ,RepairsAlterations&MtceOfBldgs,BA03,DDM - Mechanical                        ,508.49,31/07/2014,REV,EUROPA NATIONWIDE TECH.SER.LTD
303,Central Services,SupS Facilities,Corporate Services Buildings,E02240,Premises Related Expenditure  ,RepairsAlterations&MtceOfBldgs,BA03,DDM - Mechanical                        ,"3,875.61",16/10/2014,REV,EUROPA NATIONWIDE TECH.SER.LTD
304,Central Services,SupS Facilities,Corporate Services Buildings,E02240,Premises Related Expenditure  ,RepairsAlterations&MtceOfBldgs,BA03,DDM - Mechanical                        ,"1,422.74",31/07/2014,REV,EUROPA NATIONWIDE TECH.SER.LTD
305,Central Services,SupS Facilities,Corporate Services Buildings,E02240,Premises Related Expenditure  ,RepairsAlterations&MtceOfBldgs,BA03,DDM - Mechanical                        ,500,31/07/2014,REV,EUROPA NATIONWIDE TECH.SER.LTD
306,Central Services,SupS Facilities,Corporate Services Buildings,E02240,Premises Related Expenditure  ,RepairsAlterations&MtceOfBldgs,BA03,DDM - Mechanical                        ,"2,891.54",29/08/2014,REV,EUROPA NATIONWIDE TECH.SER.LTD
307,Central Services,SupS Facilities,Corporate Services Buildings,E02240,Premises Related Expenditure  ,RepairsAlterations&MtceOfBldgs,BA03,DDM - Mechanical                        ,"3,875.61",15/09/2014,REV,EUROPA NATIONWIDE TECH.SER.LTD
308,Central Services,SupS Facilities,Corporate Services Buildings,E02240,Premises Related Expenditure  ,RepairsAlterations&MtceOfBldgs,BA03,DDM - Mechanical                        ,695.86,31/07/2014,REV,EUROPA NATIONWIDE TECH.SER.LTD
309,Central Services,SupS Facilities,Corporate Services Buildings,E02240,Premises Related Expenditure  ,RepairsAlterations&MtceOfBldgs,BA06,Repairs & Maintenance General           ,995,19/09/2014,REV,CARDS & SPECIALIST SVS LTD.   
310,Central Services,SupS Facilities,Corporate Services Buildings,E02240,Premises Related Expenditure  ,RepairsAlterations&MtceOfBldgs,BA06,Repairs & Maintenance General           ,"3,500.00",03/10/2014,REV,CARDS & SPECIALIST SVS LTD.   
311,Central Services,SupS Facilities,Corporate Services Buildings,E02240,Premises Related Expenditure  ,RepairsAlterations&MtceOfBldgs,BA29,Build Maint Mgt Fees                    ,"2,518.61",16/10/2014,REV,EUROPA NATIONWIDE TECH.SER.LTD
312,Central Services,SupS Facilities,Corporate Services Buildings,E02240,Premises Related Expenditure  ,RepairsAlterations&MtceOfBldgs,BA29,Build Maint Mgt Fees                    ,700,28/09/2014,REV,KH FLOORING LTD               
313,Central Services,SupS Facilities,Corporate Services Buildings,E02240,Premises Related Expenditure  ,RepairsAlterations&MtceOfBldgs,BA29,Build Maint Mgt Fees                    ,"1,645.00",23/09/2014,REV,KH FLOORING LTD               
314,Central Services,SupS Facilities,Corporate Services Buildings,E02240,Premises Related Expenditure  ,Energy Costs                  ,BB02,Electricity                             ,"11,054.42",17/10/2014,REV,SCOTTISHPOWER                 
315,Central Services,SupS Facilities,Corporate Services Buildings,E02240,Premises Related Expenditure  ,Energy Costs                  ,BB03,Gas (incl. Butane)                      ,"7,251.11",06/10/2014,REV,GAZPROM MARKETING&TRADING LTD 
316,Central Services,SupS Facilities,Corporate Services Buildings,E02240,Premises Related Expenditure  ,Water Services                ,BE01,Use of Water (Metered)                  ,"1,155.90",26/09/2014,REV,SUTTON AND EAST SURREY WATER  
317,Childrens & Education Services,Strategic Management,PDC,E02254,Premises Related Expenditure  ,Energy Costs                  ,BB02,Electricity                             ,656.26,01/10/2014,REV,SCOTTISHPOWER                 
318,Adult Social Care,OP 65 & Over Day Care,Pollards Hill Day Centre,E02270,Premises Related Expenditure  ,Cleaning and Domestic Supplies,BH01,Cleaning Materials                      ,537.6,25/09/2014,REV,GREENHAM TRADING LTD          
319,Adult Social Care,OP 65 & Over Day Care,Pollards Hill Day Centre,E02270,Premises Related Expenditure  ,Cleaning and Domestic Supplies,BH03,Cleaning Services                       ,"1,222.20",01/10/2014,REV,BIRKIN CLEANING SERVICES LTD  
320,Adult Social Care,OP 65 & Over Day Care,Pollards Hill Day Centre,E02270,Premises Related Expenditure  ,Cleaning and Domestic Supplies,BH03,Cleaning Services                       ,"1,421.80",01/10/2014,REV,BIRKIN CLEANING SERVICES LTD  
321,Adult Social Care,OP 65 & Over Day Care,Pollards Hill Day Centre,E02270,Premises Related Expenditure  ,Cleaning and Domestic Supplies,BH03,Cleaning Services                       ,"1,239.08",01/10/2014,REV,BIRKIN CLEANING SERVICES LTD  
322,Adult Social Care,OP 65 & Over Day Care,Pollards Hill Day Centre,E02270,Premises Related Expenditure  ,Cleaning and Domestic Supplies,BH03,Cleaning Services                       ,"1,540.02",01/10/2014,REV,BIRKIN CLEANING SERVICES LTD  
323,Adult Social Care,OP 65 & Over Day Care,Pollards Hill Day Centre,E02270,Premises Related Expenditure  ,Cleaning and Domestic Supplies,BH03,Cleaning Services                       ,"1,673.61",01/10/2014,REV,BIRKIN CLEANING SERVICES LTD  
324,Adult Social Care,OP 65 & Over Day Care,Pollards Hill Day Centre,E02270,Premises Related Expenditure  ,Cleaning and Domestic Supplies,BH03,Cleaning Services                       ,835.04,01/10/2014,REV,BIRKIN CLEANING SERVICES LTD  
325,Adult Social Care,OP 65 & Over Day Care,Pollards Hill Day Centre,E02270,Premises Related Expenditure  ,Cleaning and Domestic Supplies,BH03,Cleaning Services                       ,"3,093.61",01/10/2014,REV,BIRKIN CLEANING SERVICES LTD  
326,Adult Social Care,OP 65 & Over Day Care,Pollards Hill Day Centre,E02270,Premises Related Expenditure  ,Cleaning and Domestic Supplies,BH03,Cleaning Services                       ,"1,492.52",13/10/2014,REV,BIRKIN CLEANING SERVICES LTD  
327,Adult Social Care,OP 65 & Over Day Care,Pollards Hill Day Centre,E02270,Premises Related Expenditure  ,Cleaning and Domestic Supplies,BH03,Cleaning Services                       ,"6,596.17",01/10/2014,REV,BIRKIN CLEANING SERVICES LTD  
328,Cultural Env Reg&Plan Services,Parks & Open Spaces,E & R Buildings,E02344,Premises Related Expenditure  ,RepairsAlterations&MtceOfBldgs,BA03,DDM - Mechanical                        ,525.06,16/10/2014,REV,EUROPA NATIONWIDE TECH.SER.LTD
329,Cultural Env Reg&Plan Services,Parks & Open Spaces,E & R Buildings,E02344,Premises Related Expenditure  ,RepairsAlterations&MtceOfBldgs,BA03,DDM - Mechanical                        ,502.88,15/09/2014,REV,EUROPA NATIONWIDE TECH.SER.LTD
330,Cultural Env Reg&Plan Services,Parks & Open Spaces,E & R Buildings,E02344,Premises Related Expenditure  ,RepairsAlterations&MtceOfBldgs,BA03,DDM - Mechanical                        ,525.06,15/09/2014,REV,EUROPA NATIONWIDE TECH.SER.LTD
331,Cultural Env Reg&Plan Services,Parks & Open Spaces,E & R Buildings,E02344,Premises Related Expenditure  ,RepairsAlterations&MtceOfBldgs,BA03,DDM - Mechanical                        ,502.88,16/10/2014,REV,EUROPA NATIONWIDE TECH.SER.LTD
332,Cultural Env Reg&Plan Services,Parks & Open Spaces,E & R Buildings,E02344,Premises Related Expenditure  ,RepairsAlterations&MtceOfBldgs,BA05,DDM - Electrical                        ,"1,413.26",12/02/2014,REV,CHUBB ELECTRONIC SEC. SYSTEMS 
333,Cultural Env Reg&Plan Services,Parks & Open Spaces,E & R Buildings,E02344,Premises Related Expenditure  ,RepairsAlterations&MtceOfBldgs,BA05,DDM - Electrical                        ,"-1,641.69",01/09/2014,REV,CHUBB ELECTRONIC SEC. SYSTEMS 
334,Cultural Env Reg&Plan Services,Parks & Open Spaces,E & R Buildings,E02344,Premises Related Expenditure  ,RepairsAlterations&MtceOfBldgs,BA05,DDM - Electrical                        ,"1,413.24",14/08/2014,REV,CHUBB ELECTRONIC SEC. SYSTEMS 
335,Adult Social Care,PS u65 Day Care,C & H Buildings,E02345,Premises Related Expenditure  ,RepairsAlterations&MtceOfBldgs,BA01,DDM - General Building                  ,582.19,11/08/2014,REV,SALTASH ENTERPRISES LTD       
336,Adult Social Care,PS u65 Day Care,C & H Buildings,E02345,Premises Related Expenditure  ,RepairsAlterations&MtceOfBldgs,BA03,DDM - Mechanical                        ,961.13,30/09/2014,REV,EUROPA NATIONWIDE TECH.SER.LTD
337,Adult Social Care,PS u65 Day Care,C & H Buildings,E02345,Premises Related Expenditure  ,RepairsAlterations&MtceOfBldgs,BA06,Repairs & Maintenance General           ,"1,890.00",08/10/2014,REV,SYMES GARDEN SERVICES         
338,Cultural Env Reg&Plan Services,Parks & Open Spaces,Leisure Buildings,E02350,Premises Related Expenditure  ,RepairsAlterations&MtceOfBldgs,BA01,DDM - General Building                  ,517.86,18/09/2014,REV,SALTASH ENTERPRISES LTD       
339,Cultural Env Reg&Plan Services,Parks & Open Spaces,Leisure Buildings,E02350,Premises Related Expenditure  ,RepairsAlterations&MtceOfBldgs,BA01,DDM - General Building                  ,924.54,18/09/2014,REV,SALTASH ENTERPRISES LTD       
340,Cultural Env Reg&Plan Services,Parks & Open Spaces,Leisure Buildings,E02350,Premises Related Expenditure  ,RepairsAlterations&MtceOfBldgs,BA03,DDM - Mechanical                        ,693.29,31/07/2014,REV,EUROPA NATIONWIDE TECH.SER.LTD
341,Cultural Env Reg&Plan Services,Parks & Open Spaces,Leisure Buildings,E02350,Premises Related Expenditure  ,RepairsAlterations&MtceOfBldgs,BA03,DDM - Mechanical                        ,546.02,16/10/2014,REV,EUROPA NATIONWIDE TECH.SER.LTD
342,Cultural Env Reg&Plan Services,Parks & Open Spaces,Leisure Buildings,E02350,Premises Related Expenditure  ,RepairsAlterations&MtceOfBldgs,BA03,DDM - Mechanical                        ,546.02,15/09/2014,REV,EUROPA NATIONWIDE TECH.SER.LTD
343,Cultural Env Reg&Plan Services,Parks & Open Spaces,Leisure Buildings,E02350,Premises Related Expenditure  ,RepairsAlterations&MtceOfBldgs,BA03,DDM - Mechanical                        ,561.47,29/08/2014,REV,EUROPA NATIONWIDE TECH.SER.LTD
344,Central Services,SupS DOF,Director of Corporate Services,E04060,Employees                     ,Direct Employee Expenses      ,AA17,Agency Staff & Casual Paymts            ,"4,000.00",30/09/2014,REV,REDACTED
345,Central Services,SupS DOF,Director of Corporate Services,E04060,Employees                     ,Direct Employee Expenses      ,AA17,Agency Staff & Casual Paymts            ,"6,500.00",30/09/2014,REV,REDACTED
346,Central Services,SupS DOF,AD RESOURCES,E04061,Employees                     ,Direct Employee Expenses      ,AA17,Agency Staff & Casual Paymts            ,"9,000.00",18/09/2014,REV,REDACTED
347,Central Services,SupS DOF,AD RESOURCES,E04061,Supplies & Services           ,Services                      ,DF03,CONSULTANTS                             ,"10,120.00",06/10/2014,REV,PUBLIC SECTOR CONSULTANTS     
348,Central Services,SupS DOF,AD RESOURCES,E04061,Supplies & Services           ,Grants and Subscriptions      ,DJ04,SUBSCRIPTIONS                           ,730,05/09/2014,REV,CIPFA                         
349,Central Services,SupS  Risk and Insurance,Insurance Premiums & Funding,E05161,Supplies & Services           ,Services                      ,DF74,Insurance Premiums                      ,"11,000.00",30/09/2014,REV,ZURICH INSURANCE COMPANY      
350,Central Services,SupS Corporate Finance,Corporate Accountancy,E06209,Supplies & Services           ,Services                      ,DF58,Audit Fee                               ,"-1,103.00",22/10/2014,REV,ERNST & YOUNG LLP             
351,Central Services,SupS Strategic Finance,Treasury & Insurance,E06222,Employees                     ,Direct Employee Expenses      ,AA17,Agency Staff & Casual Paymts            ,"2,350.00",24/09/2014,REV,REDACTED
352,Central Services,SupS Strategic Finance,Treasury & Insurance,E06222,Employees                     ,Direct Employee Expenses      ,AA17,Agency Staff & Casual Paymts            ,"7,050.00",13/10/2014,REV,REDACTED
353,Central Services,GENERATED ACCOUNT,Parking Cash Collect'n Contrct,E06225,Third Party Payments          ,Private Contractors           ,EH02,Miscellaneous Hired Services            ,665.67,30/09/2014,REV,BANKING AUTOMATION LTD        
354,Central Services,GENERATED ACCOUNT,Parking Cash Collect'n Contrct,E06225,Third Party Payments          ,Private Contractors           ,EH02,Miscellaneous Hired Services            ,711.45,30/09/2014,REV,BANKING AUTOMATION LTD        
355,Central Services,GENERATED ACCOUNT,Parking Cash Collect'n Contrct,E06225,Third Party Payments          ,Private Contractors           ,EH02,Miscellaneous Hired Services            ,"9,495.84",30/09/2014,REV,BANKING AUTOMATION LTD        
356,Central Services,GENERATED ACCOUNT,Parking Cash Collect'n Contrct,E06225,Third Party Payments          ,Private Contractors           ,EH02,Miscellaneous Hired Services            ,947.54,30/09/2014,REV,BANKING AUTOMATION LTD        
357,Central Services,SupS DOF,Service Accountancy,E06227,Employees                     ,Direct Employee Expenses      ,AA17,Agency Staff & Casual Paymts            ,"5,520.00",13/10/2014,REV,REDACTED
358,Central Services,SupS DOF,Service Accountancy,E06227,Transfer Payments             ,Housing Benefits              ,FA50,Burial and Cremation                    ,"1,169.50",15/10/2014,REV,F.W. PAINE                    
359,Central Services,SupS Legal,AD CORPORATE GOVERNANCE,E10279,Supplies & Services           ,Grants and Subscriptions      ,DJ04,Subscriptions                           ,"1,201.30",21/10/2014,REV,PUBLIC CONCERN AT WORK        
360,Central Services,SupS Legal,AD CORPORATE GOVERNANCE,E10279,Supplies & Services           ,Grants and Subscriptions      ,DJ04,Subscriptions                           ,"4,150.00",23/09/2014,REV,AUDIT COMMISSION              
361,Central Services,SupS Legal,Legal Services,E10282,Supplies & Services           ,Services                      ,DF28,Court Fees                              ,775,29/10/2014,REV,REDACTED
362,Central Services,SupS Legal,Legal Services,E10282,Supplies & Services           ,Services                      ,DF28,Court Fees                              ,"2,215.00",23/10/2014,REV,REDACTED
363,Central Services,SupS Legal,Legal Services,E10282,Supplies & Services           ,Services                      ,DF28,Court Fees                              ,"4,110.00",18/09/2014,REV,REDACTED
364,Central Services,SupS Legal,Legal Services,E10282,Supplies & Services           ,Services                      ,DF28,Court Fees                              ,"2,055.00",19/09/2014,REV,REDACTED
365,Central Services,SupS Legal,Legal Services,E10282,Supplies & Services           ,Services                      ,DF28,Court Fees                              ,"2,055.00",29/10/2014,REV,REDACTED
366,Central Services,SupS Legal,Legal Services,E10282,Supplies & Services           ,Services                      ,DF28,Court Fees                              ,"2,335.00",23/09/2014,REV,REDACTED
367,Central Services,SupS Legal,Legal Services,E10282,Supplies & Services           ,Services                      ,DF28,Court Fees                              ,"2,560.00",01/10/2014,REV,REDACTED
368,Central Services,SupS Legal,Legal Services,E10282,Supplies & Services           ,Services                      ,DF28,Court Fees                              ,"2,855.00",29/10/2014,REV,REDACTED
369,Central Services,SupS Legal,Legal Services,E10282,Supplies & Services           ,Services                      ,DF28,Court Fees                              ,910,23/10/2014,REV,REDACTED
370,Central Services,Conducting elections,Election Expenses,E10284,Supplies & Services           ,Prntng Stnry Gen Off Exp      ,DE01,External Printing                       ,"4,187.00",01/07/2014,REV,FINANCIAL DATA MANAGEMENT PLC 
371,Central Services,Registration of electors,Electoral Registration,E10285,Employees                     ,Direct Employee Expenses      ,AA17,Agency Staff & Casual Paymts            ,"6,138.00",15/08/2014,REV,ASS.OF ELECTORAL ADMINISTRATOR
372,Central Services,Registration of electors,Electoral Registration,E10285,Employees                     ,Direct Employee Expenses      ,AA17,Agency Staff & Casual Paymts            ,"11,443.96",07/10/2014,REV,ASS.OF ELECTORAL ADMINISTRATOR
373,Central Services,Registration of electors,Electoral Registration,E10285,Employees                     ,Direct Employee Expenses      ,AA17,Agency Staff & Casual Paymts            ,"7,161.00",02/09/2014,REV,ASS.OF ELECTORAL ADMINISTRATOR
374,Central Services,Registration of electors,Electoral Registration,E10285,Supplies & Services           ,Comms and Computing           ,DG04,Postage - General                       ,794.12,22/09/2014,REV,ROYAL MAIL GROUP LTD          
375,Central Services,Registration of electors,Electoral Registration,E10285,Supplies & Services           ,Comms and Computing           ,DG04,Postage - General                       ,"30,776.40",27/08/2014,REV,FINANCIAL DATA MANAGEMENT PLC 
376,Central Services,Registration of electors,Electoral Registration,E10285,Supplies & Services           ,Comms and Computing           ,DG04,Postage - General                       ,"5,094.48",27/08/2014,REV,FINANCIAL DATA MANAGEMENT PLC 
377,Central Services,Registration of electors,Electoral Registration,E10285,Supplies & Services           ,Comms and Computing           ,DG04,Postage - General                       ,"1,360.84",29/09/2014,REV,FINANCIAL DATA MANAGEMENT PLC 
378,Central Services,SupS Legal,Shared Legal Service,E10288,Supplies & Services           ,Equip Furniture/Materials     ,DA80,Books                                   ,"8,400.00",25/09/2014,REV,THOMSON REUTERS               
379,Central Services,SupS Legal,Shared Legal Service,E10288,Supplies & Services           ,Prntng Stnry Gen Off Exp      ,DE03,Stationery                              ,543.6,24/10/2014,REV,OFFICE DEPOT UK LTD           
380,Central Services,SupS Legal,Shared Legal Service,E10288,Supplies & Services           ,Grants and Subscriptions      ,DJ04,Subscriptions                           ,"6,632.00",17/10/2014,REV,THE LAW SOCIETY               
381,Central Services,SupS Legal,Richmond Legal,E10289,Supplies & Services           ,Services                      ,DF11,Counsel's Fees                          ,"3,000.00",02/10/2014,REV,REDACTED
382,Central Services,SupS Legal,Richmond Legal,E10289,Supplies & Services           ,Services                      ,DF11,Counsel's Fees                          ,"1,875.00",13/10/2014,REV,REDACTED
383,Central Services,SupS Legal,Richmond Legal,E10289,Supplies & Services           ,Services                      ,DF11,Counsel's Fees                          ,"1,500.00",09/10/2014,REV,REDACTED
384,Central Services,SupS Legal,Richmond Legal,E10289,Supplies & Services           ,Services                      ,DF11,Counsel's Fees                          ,"2,025.00",28/08/2014,REV,REDACTED
385,Central Services,SupS Legal,Richmond Legal,E10289,Supplies & Services           ,Services                      ,DF95,Services from Provider                  ,"-1,500.00",07/08/2014,REV,AVIVA CENTRAL SERVICES        
386,Central Services,SupS Legal,Richmond Legal,E10289,Supplies & Services           ,Services                      ,DF95,Services from Provider                  ,"1,500.00",07/08/2014,REV,AVIVA CENTRAL SERVICES        
387,Central Services,SupS Legal,Richmond Legal,E10289,Supplies & Services           ,Services                      ,DF95,Services from Provider                  ,"2,400.00",31/08/2014,REV,SHARPE PRITCHARD SOLICITORS   
388,Central Services,SupS Legal,Richmond Legal,E10289,Supplies & Services           ,Services                      ,DF95,Services from Provider                  ,528.66,30/06/2014,REV,REDACTED
389,Central Services,SupS Legal,Richmond Legal,E10289,Supplies & Services           ,Services                      ,DF95,Services from Provider                  ,"7,262.75",30/09/2014,REV,SHARPE PRITCHARD SOLICITORS   
390,Central Services,SupS Legal,Richmond Legal,E10289,Supplies & Services           ,Services                      ,DF95,Services from Provider                  ,"15,646.20",31/07/2014,REV,SHARPE PRITCHARD SOLICITORS   
391,Central Services,SupS Legal,Richmond Legal,E10289,Supplies & Services           ,Services                      ,DF95,Services from Provider                  ,"1,190.50",17/02/2014,REV,REDACTED
392,Central Services,SupS Legal,K&S Shared Legal                        ,E10291,Supplies & Services           ,Equip Furniture/Materials     ,DA80,Books                                   ,"8,400.00",25/09/2014,REV,THOMSON REUTERS               
393,Central Services,SupS Legal,K&S Shared Legal                        ,E10291,Supplies & Services           ,Comms and Computing           ,DG08,Computer Hardware                       ,933.42,30/09/2014,REV,SPECIALIST COMPUTER CENT. PLC 
394,Central Services,SupS Legal,K&S Shared Legal                        ,E10291,Supplies & Services           ,Grants and Subscriptions      ,DJ04,Subscriptions                           ,"6,336.00",17/10/2014,REV,THE LAW SOCIETY               
395,Central Services,SupS Legal,Kingston Legal                          ,E10292,Supplies & Services           ,Services                      ,DF11,Counsel's Fees                          ,800,15/09/2014,REV,REDACTED
396,Central Services,SupS Legal,Kingston Legal                          ,E10292,Supplies & Services           ,Services                      ,DF11,Counsel's Fees                          ,"1,300.00",19/09/2014,REV,REDACTED
397,Central Services,SupS Legal,Kingston Legal                          ,E10292,Supplies & Services           ,Services                      ,DF95,Services from Provider                  ,"2,643.55",27/10/2014,REV,CUNNANE TOWN PLANNING LLP     
398,Central Services,SupS Legal,Sutton Legal                            ,E10293,Supplies & Services           ,Services                      ,DF03,Consultants                             ,"2,340.00",21/06/2014,REV,PHILLIPS & GUPTA LIMITED      
399,Central Services,SupS Legal,Sutton Legal                            ,E10293,Supplies & Services           ,Services                      ,DF11,Counsel's Fees                          ,"2,300.88",25/09/2014,REV,REDACTED
400,Central Services,SupS Legal,Sutton Legal                            ,E10293,Supplies & Services           ,Services                      ,DF11,Counsel's Fees                          ,520,04/09/2014,REV,REDACTED
401,Central Services,SupS Legal,Sutton Legal                            ,E10293,Supplies & Services           ,Services                      ,DF11,Counsel's Fees                          ,"1,120.00",29/09/2014,REV,REDACTED
402,Central Services,SupS Legal,Sutton Legal                            ,E10293,Supplies & Services           ,Services                      ,DF11,Counsel's Fees                          ,"1,567.50",01/10/2014,REV,REDACTED
403,Central Services,SupS Legal,Sutton Legal                            ,E10293,Supplies & Services           ,Services                      ,DF11,Counsel's Fees                          ,520,30/09/2014,REV,REDACTED
404,Central Services,SupS Legal,Sutton Legal                            ,E10293,Supplies & Services           ,Services                      ,DF11,Counsel's Fees                          ,520,30/09/2014,REV,REDACTED
405,Central Services,SupS Legal,Sutton Legal                            ,E10293,Supplies & Services           ,Services                      ,DF11,Counsel's Fees                          ,"2,965.72",25/09/2014,REV,REDACTED
406,Central Services,SupS Legal,Sutton Legal                            ,E10293,Supplies & Services           ,Services                      ,DF11,Counsel's Fees                          ,"1,260.00",16/10/2014,REV,REDACTED
407,Central Services,SupS Legal,Sutton Legal                            ,E10293,Supplies & Services           ,Services                      ,DF11,Counsel's Fees                          ,"1,790.00",30/09/2014,REV,REDACTED
408,Central Services,SupS Legal,Sutton Legal                            ,E10293,Supplies & Services           ,Services                      ,DF11,Counsel's Fees                          ,825,15/09/2014,REV,REDACTED
409,Central Services,SupS Legal,Sutton Legal                            ,E10293,Supplies & Services           ,Services                      ,DF11,Counsel's Fees                          ,500,10/10/2014,REV,REDACTED
410,Central Services,SupS Legal,Sutton Legal                            ,E10293,Supplies & Services           ,Services                      ,DF11,Counsel's Fees                          ,"3,610.00",01/10/2014,REV,REDACTED
411,Central Services,SupS Legal,Sutton Legal                            ,E10293,Supplies & Services           ,Services                      ,DF11,Counsel's Fees                          ,724.4,25/09/2014,REV,REDACTED
412,Central Services,SupS Legal,Sutton Legal                            ,E10293,Supplies & Services           ,Services                      ,DF11,Counsel's Fees                          ,902.5,29/09/2014,REV,REDACTED
413,Central Services,SupS Legal,Sutton Legal                            ,E10293,Supplies & Services           ,Services                      ,DF11,Counsel's Fees                          ,940,19/08/2014,REV,REDACTED
414,Central Services,SupS Legal,Sutton Legal                            ,E10293,Supplies & Services           ,Services                      ,DF11,Counsel's Fees                          ,665,01/10/2014,REV,REDACTED
415,Central Services,SupS Legal,Sutton Legal                            ,E10293,Supplies & Services           ,Services                      ,DF11,Counsel's Fees                          ,"1,265.00",01/10/2014,REV,REDACTED
416,Central Services,SupS Legal,Sutton Legal                            ,E10293,Supplies & Services           ,Services                      ,DF11,Counsel's Fees                          ,"75,050.00",31/07/2014,REV,REDACTED
417,Central Services,SupS Legal,Sutton Legal                            ,E10293,Supplies & Services           ,Services                      ,DF11,Counsel's Fees                          ,945.42,12/09/2014,REV,REDACTED
418,Central Services,SupS Legal,Sutton Legal                            ,E10293,Supplies & Services           ,Services                      ,DF11,Counsel's Fees                          ,550,04/09/2014,REV,REDACTED
419,Central Services,SupS Legal,Sutton Legal                            ,E10293,Supplies & Services           ,Services                      ,DF11,Counsel's Fees                          ,"4,189.50",11/09/2014,REV,REDACTED
420,Central Services,SupS Legal,Sutton Legal                            ,E10293,Supplies & Services           ,Services                      ,DF11,Counsel's Fees                          ,"1,306.25",01/10/2014,REV,REDACTED
421,Central Services,SupS Legal,Sutton Legal                            ,E10293,Supplies & Services           ,Services                      ,DF11,Counsel's Fees                          ,"1,258.75",01/10/2014,REV,REDACTED
422,Central Services,SupS Legal,Sutton Legal                            ,E10293,Supplies & Services           ,Services                      ,DF11,Counsel's Fees                          ,"1,045.00",01/10/2014,REV,REDACTED
423,Central Services,SupS Legal,Sutton Legal                            ,E10293,Supplies & Services           ,Services                      ,DF11,Counsel's Fees                          ,890,03/10/2014,REV,REDACTED
424,Central Services,SupS Legal,Sutton Legal                            ,E10293,Supplies & Services           ,Services                      ,DF11,Counsel's Fees                          ,"2,873.75",01/10/2014,REV,REDACTED
425,Central Services,SupS Legal,Sutton Legal                            ,E10293,Supplies & Services           ,Services                      ,DF11,Counsel's Fees                          ,"22,000.00",15/07/2014,REV,REDACTED
426,Central Services,SupS Legal,Sutton Legal                            ,E10293,Supplies & Services           ,Services                      ,DF14,Doctors and Other Fees                  ,"5,332.50",18/05/2014,REV,REDACTED
427,Central Services,SupS Legal,Sutton Legal                            ,E10293,Supplies & Services           ,Services                      ,DF14,Doctors and Other Fees                  ,"1,887.00",14/07/2014,REV,REDACTED
428,Central Services,SupS Legal,Sutton Legal                            ,E10293,Supplies & Services           ,Services                      ,DF14,Doctors and Other Fees                  ,790,22/10/2014,REV,REDACTED
429,Central Services,SupS Legal,Sutton Legal                            ,E10293,Supplies & Services           ,Services                      ,DF14,Doctors and Other Fees                  ,546,08/10/2014,REV,CONTEXTUAL CONSULTING         
430,Central Services,SupS Legal,Sutton Legal                            ,E10293,Supplies & Services           ,Services                      ,DF95,Services from Provider                  ,"11,750.00",17/10/2014,REV,SHARPE PRITCHARD SOLICITORS   
431,Central Services,SupS Legal,Sutton Legal                            ,E10293,Supplies & Services           ,Services                      ,DF95,Services from Provider                  ,"11,851.00",05/09/2014,REV,SHARPE PRITCHARD SOLICITORS   
432,Central Services,SupS Legal,Achieving for Children (AFC),E10295,Supplies & Services           ,Services                      ,DF11,Counsel's Fees                          ,"1,920.00",15/09/2014,REV,REDACTED
433,Central Services,SupS Legal,Achieving for Children (AFC),E10295,Supplies & Services           ,Services                      ,DF11,Counsel's Fees                          ,900,01/10/2014,REV,REDACTED
434,Central Services,SupS Legal,Achieving for Children (AFC),E10295,Supplies & Services           ,Services                      ,DF11,Counsel's Fees                          ,"3,461.00",01/09/2014,REV,BATES WELLS & BRAITHWAITE     
435,Central Services,SupS Legal,Achieving for Children (AFC),E10295,Supplies & Services           ,Services                      ,DF11,Counsel's Fees                          ,610,30/09/2014,REV,REDACTED
436,Central Services,SupS Legal,Achieving for Children (AFC),E10295,Supplies & Services           ,Services                      ,DF11,Counsel's Fees                          ,"1,700.00",30/09/2014,REV,REDACTED
437,Central Services,SupS Legal,Achieving for Children (AFC),E10295,Supplies & Services           ,Services                      ,DF11,Counsel's Fees                          ,555,09/10/2014,REV,REDACTED
438,Central Services,SupS Legal,Achieving for Children (AFC),E10295,Supplies & Services           ,Services                      ,DF11,Counsel's Fees                          ,520,29/09/2014,REV,REDACTED
439,Central Services,SupS Legal,Achieving for Children (AFC),E10295,Supplies & Services           ,Services                      ,DF11,Counsel's Fees                          ,"1,920.00",30/09/2014,REV,REDACTED
440,Central Services,SupS Legal,Achieving for Children (AFC),E10295,Supplies & Services           ,Services                      ,DF11,Counsel's Fees                          ,840,29/09/2014,REV,REDACTED
441,Central Services,SupS Legal,Achieving for Children (AFC),E10295,Supplies & Services           ,Services                      ,DF11,Counsel's Fees                          ,"2,375.00",30/09/2014,REV,THOMAS BINGHAM CHAMBERS       
442,Central Services,SupS Legal,Achieving for Children (AFC),E10295,Supplies & Services           ,Services                      ,DF11,Counsel's Fees                          ,890,15/09/2014,REV,REDACTED
443,Central Services,SupS Legal,Achieving for Children (AFC),E10295,Supplies & Services           ,Services                      ,DF14,Doctors and Other Fees                  ,"1,070.00",26/09/2014,REV,REDACTED
444,Central Services,SupS Legal,Achieving for Children (AFC),E10295,Supplies & Services           ,Services                      ,DF14,Doctors and Other Fees                  ,720,27/05/2014,REV,REDACTED
445,Central Services,SupS Legal,Achieving for Children (AFC),E10295,Supplies & Services           ,Services                      ,DF14,Doctors and Other Fees                  ,746.55,29/09/2014,REV,REDACTED
446,Central Services,SupS Legal,Achieving for Children (AFC),E10295,Supplies & Services           ,Services                      ,DF95,Services from Provider                  ,750,24/07/2014,REV,REDACTED
447,Central Services,SupS IT,Social Care Info System (SCI)           ,E14357,Employees                     ,Direct Employee Expenses      ,AA17,Agency Staff & Casual Paymts            ,"3,025.00",01/10/2014,REV,HAYS RECRUITING EXPERTS       
448,Central Services,SupS IT,Social Care Info System (SCI)           ,E14357,Employees                     ,Direct Employee Expenses      ,AA17,Agency Staff & Casual Paymts            ,"3,025.00",15/10/2014,REV,HAYS RECRUITING EXPERTS       
449,Central Services,SupS IT,Social Care Info System (SCI)           ,E14357,Employees                     ,Direct Employee Expenses      ,AA17,Agency Staff & Casual Paymts            ,"5,055.54",24/09/2014,REV,REDACTED
450,Central Services,SupS IT,Social Care Info System (SCI)           ,E14357,Employees                     ,Direct Employee Expenses      ,AA17,Agency Staff & Casual Paymts            ,"3,025.00",24/09/2014,REV,HAYS RECRUITING EXPERTS       
451,Central Services,SupS IT,Social Care Info System (SCI)           ,E14357,Employees                     ,Direct Employee Expenses      ,AA17,Agency Staff & Casual Paymts            ,"6,499.98",19/09/2014,REV,REDACTED
452,Central Services,SupS IT,Social Care Info System (SCI)           ,E14357,Employees                     ,Direct Employee Expenses      ,AA17,Agency Staff & Casual Paymts            ,"2,822.00",10/09/2014,REV,HAYS RECRUITING EXPERTS       
453,Central Services,SupS IT,Social Care Info System (SCI)           ,E14357,Employees                     ,Direct Employee Expenses      ,AA17,Agency Staff & Casual Paymts            ,"2,722.50",08/10/2014,REV,HAYS RECRUITING EXPERTS       
454,Central Services,SupS IT,Social Care Info System (SCI)           ,E14357,Employees                     ,Direct Employee Expenses      ,AA17,Agency Staff & Casual Paymts            ,"5,777.76",24/09/2014,REV,REDACTED
455,Central Services,SupS IT,Social Care Info System (SCI)           ,E14357,Employees                     ,Direct Employee Expenses      ,AA17,Agency Staff & Casual Paymts            ,"7,944.42",24/09/2014,REV,REDACTED
456,Central Services,SupS IT,Social Care Info System (SCI)           ,E14357,Employees                     ,Indirect Employee Expenses    ,AB02,Recruitment Adverts                     ,"2,065.00",30/09/2014,REV,PENNA COMMUNICATIONS (NO 2 A/C
457,Central Services,SupS IT,Social Care Info System (SCI)           ,E14357,Employees                     ,Indirect Employee Expenses    ,AB02,Recruitment Adverts                     ,"2,065.00",30/09/2014,REV,PENNA COMMUNICATIONS (NO 2 A/C
458,Central Services,SupS IT,AD I&T,E14363,Employees                     ,Direct Employee Expenses      ,AA17,Agency Staff & Casual Paymts            ,"11,900.00",26/09/2014,REV,GATENBYSANDERSON LIMITED      
459,Central Services,SupS IT,Systems & Projects,E14366,Employees                     ,Direct Employee Expenses      ,AA17,Agency Staff & Casual Paymts            ,838.2,02/10/2014,REV,NUMBER 10 INTERIM LTD         
460,Central Services,SupS IT,Systems & Projects,E14366,Employees                     ,Direct Employee Expenses      ,AA17,Agency Staff & Casual Paymts            ,825,22/08/2014,REV,REDACTED
461,Central Services,SupS IT,Systems & Projects,E14366,Employees                     ,Direct Employee Expenses      ,AA17,Agency Staff & Casual Paymts            ,"1,500.10",01/10/2014,REV,NUMBER 10 INTERIM LTD         
462,Central Services,SupS IT,Systems & Projects,E14366,Employees                     ,Direct Employee Expenses      ,AA17,Agency Staff & Casual Paymts            ,"1,457.24",08/10/2014,REV,NUMBER 10 INTERIM LTD         
463,Central Services,SupS IT,Systems & Projects,E14366,Employees                     ,Direct Employee Expenses      ,AA17,Agency Staff & Casual Paymts            ,"2,957.34",21/08/2014,REV,NUMBER 10 INTERIM LTD         
464,Central Services,SupS IT,Systems & Projects,E14366,Employees                     ,Direct Employee Expenses      ,AA17,Agency Staff & Casual Paymts            ,"1,200.08",23/09/2014,REV,NUMBER 10 INTERIM LTD         
465,Central Services,SupS IT,Systems & Projects,E14366,Employees                     ,Direct Employee Expenses      ,AA17,Agency Staff & Casual Paymts            ,661.9,02/10/2014,REV,NUMBER 10 INTERIM LTD         
466,Central Services,SupS IT,Systems & Projects,E14366,Employees                     ,Direct Employee Expenses      ,AA17,Agency Staff & Casual Paymts            ,"1,478.67",08/10/2014,REV,NUMBER 10 INTERIM LTD         
467,Central Services,SupS IT,Systems & Projects,E14366,Employees                     ,Direct Employee Expenses      ,AA17,Agency Staff & Casual Paymts            ,"1,375.00",12/09/2014,REV,REDACTED
468,Central Services,SupS IT,Systems & Projects,E14366,Employees                     ,Direct Employee Expenses      ,AA17,Agency Staff & Casual Paymts            ,"1,500.10",29/08/2014,REV,NUMBER 10 INTERIM LTD         
469,Central Services,SupS IT,Systems & Projects,E14366,Supplies & Services           ,Comms and Computing           ,DG63,Software Licences - Data                ,"1,660.20",19/09/2014,REV,CIVICA UK LIMITED             
470,Central Services,SupS IT,Systems & Projects,E14366,Supplies & Services           ,Comms and Computing           ,DG65,Application Licences                    ,"63,175.94",30/09/2014,REV,OPEN TEXT UK LTD              
471,Central Services,SupS IT,Systems & Projects,E14366,Supplies & Services           ,Grants and Subscriptions      ,DJ04,Subscriptions                           ,"2,873.52",03/10/2014,REV,SITE IMPROVE LTD              
472,Central Services,SupS IT,Operations & Telecomms,E14367,Employees                     ,Direct Employee Expenses      ,AA17,Agency Staff & Casual Paymts            ,"3,150.00",30/09/2014,REV,REDACTED
473,Central Services,SupS IT,Operations & Telecomms,E14367,Supplies & Services           ,Comms and Computing           ,DG14,Telephones - Mobile                     ,682.98,17/07/2014,REV,ORANGE P'MENT PRO'SING AIRTIME
474,Central Services,SupS IT,Operations & Telecomms,E14367,Supplies & Services           ,Comms and Computing           ,DG15,Network Maintenance                     ,"104,081.00",26/09/2014,REV,SYNETRIX LIMITED              
475,Central Services,SupS IT,Operations & Telecomms,E14367,Supplies & Services           ,Comms and Computing           ,DG54,Corporate Telephones                    ,"3,248.73",17/07/2014,REV,ORANGE P'MENT PRO'SING AIRTIME
476,Central Services,SupS IT,Operations & Telecomms,E14367,Supplies & Services           ,Comms and Computing           ,DG54,Corporate Telephones                    ,"5,441.00",04/10/2014,REV,T MOBILE (UK)                 
477,Central Services,SupS IT,Operations & Telecomms,E14367,Supplies & Services           ,Comms and Computing           ,DG54,Corporate Telephones                    ,"2,669.57",02/10/2014,REV,COLT TELECOMMUNICATIONS       
478,Central Services,SupS IT,Operations & Telecomms,E14367,Supplies & Services           ,Comms and Computing           ,DG54,Corporate Telephones                    ,"1,100.96",29/09/2014,REV,O2 (UK) LIMITED               
479,Central Services,SupS IT,Operations & Telecomms,E14367,Supplies & Services           ,Comms and Computing           ,DG54,Corporate Telephones                    ,"4,381.61",17/10/2014,REV,ORANGE P'MENT PRO'SING AIRTIME
480,Central Services,SupS IT,Operations & Telecomms,E14367,Supplies & Services           ,Comms and Computing           ,DG67,Distributed Kit Maintenance             ,"1,050.00",29/08/2014,REV,TWOFOLD LTD                   
481,Central Services,SupS IT,Distributed Services,E14368,Supplies & Services           ,Comms and Computing           ,DG63,Software Licences - Data                ,"5,130.00",30/09/2014,REV,VERISEC LIMITED               
482,Central Services,SupS IT,Corp Saving-IT Consolidation,E14370,Premises Related Expenditure  ,RepairsAlterations&MtceOfBldgs,BA01,DDM - General Building                  ,"5,720.00",19/09/2014,REV,NATIONCARE WINDOWS LTD        
483,Central Services,SupS IT,No longer used,E14371,Employees                     ,Direct Employee Expenses      ,AA17,Agency Staff & Casual Paymts            ,"3,390.00",26/09/2014,REV,HAYS RECRUITING EXPERTS       
484,Central Services,SupS IT,No longer used,E14371,Employees                     ,Direct Employee Expenses      ,AA17,Agency Staff & Casual Paymts            ,"3,390.00",03/09/2014,REV,HAYS RECRUITING EXPERTS       
485,Central Services,SupS IT,No longer used,E14371,Employees                     ,Direct Employee Expenses      ,AA17,Agency Staff & Casual Paymts            ,"3,390.00",17/10/2014,REV,HAYS RECRUITING EXPERTS       
486,Central Services,SupS IT,No longer used,E14371,Employees                     ,Direct Employee Expenses      ,AA17,Agency Staff & Casual Paymts            ,"3,390.00",22/10/2014,REV,HAYS RECRUITING EXPERTS       
487,Central Services,SupS IT,No longer used,E14371,Employees                     ,Direct Employee Expenses      ,AA17,Agency Staff & Casual Paymts            ,"1,648.00",02/09/2014,REV,REDACTED
488,Central Services,SupS IT,No longer used,E14371,Employees                     ,Direct Employee Expenses      ,AA17,Agency Staff & Casual Paymts            ,"2,060.00",16/09/2014,REV,REDACTED
489,Central Services,SupS IT,No longer used,E14371,Employees                     ,Direct Employee Expenses      ,AA17,Agency Staff & Casual Paymts            ,"2,060.00",19/08/2014,REV,REDACTED
490,Central Services,SupS IT,No longer used,E14371,Employees                     ,Direct Employee Expenses      ,AA17,Agency Staff & Casual Paymts            ,"3,390.00",03/09/2014,REV,HAYS RECRUITING EXPERTS       
491,Central Services,SupS IT,No longer used,E14371,Employees                     ,Direct Employee Expenses      ,AA17,Agency Staff & Casual Paymts            ,"23,400.00",20/10/2014,REV,MILESTONES COMMUNICATIONS LTD 
492,Central Services,SupS IT,No longer used,E14371,Employees                     ,Direct Employee Expenses      ,AA17,Agency Staff & Casual Paymts            ,"2,060.00",30/09/2014,REV,REDACTED
493,Central Services,SupS IT,No longer used,E14371,Supplies & Services           ,Services                      ,DF03,Consultants                             ,"10,700.00",10/09/2014,REV,V4 SERVICES LIMITED           
494,Central Services,SupS IT,No longer used,E14371,Supplies & Services           ,Services                      ,DF03,Consultants                             ,"7,566.25",06/10/2014,REV,V4 SERVICES LIMITED           
495,Cultural Env Reg&Plan Services,Mgt & Support (Env),ES Support & Development,G00070,Supplies & Services           ,Equip Furniture/Materials     ,DA01,Equipment - R & M                       ,"1,485.00",01/10/2014,REV,SPEECHWRITE SUPPORT LTD       
496,Cultural Env Reg&Plan Services,Housing Standards,Shared Regulatory Service Proj          ,G00091,Supplies & Services           ,Services                      ,DF03,Consultants                             ,"12,600.00",26/09/2014,REV,GATENBYSANDERSON LIMITED      
497,Cultural Env Reg&Plan Services,Housing Standards,Shared Regulatory Service Proj          ,G00091,Supplies & Services           ,Services                      ,DF95,Services from Provider                  ,"2,074.00",30/07/2014,REV,REDACTED
498,Highways & Transport Services,Hwys/Rds (struct) not split,Surf Water Drainage,G00123,Third Party Payments          ,Private Contractors           ,EH56,Carriageway/Fway Maint                  ,594.32,17/10/2014,REV,FM CONWAY LTD                 
499,Highways & Transport Services,Repair prin/oth rds not split,Carriageway Patching,G00125,Third Party Payments          ,Private Contractors           ,EH56,Carriageway/Fway Maint                  ,959.1,22/10/2014,REV,FM CONWAY LTD                 
500,Highways & Transport Services,Repair prin/oth rds not split,Walk Sheets,G00127,Third Party Payments          ,Private Contractors           ,EH10,Contract Payments                       ,"4,362.50",02/10/2014,REV,FM CONWAY LTD                 
501,Highways & Transport Services,Repair prin/oth rds not split,Walk Sheets,G00127,Third Party Payments          ,Private Contractors           ,EH56,Carriageway/Fway Maint                  ,"3,972.76",22/10/2014,REV,FM CONWAY LTD                 
502,Highways & Transport Services,Repair prin/oth rds not split,Walk Sheets,G00127,Third Party Payments          ,Private Contractors           ,EH56,Carriageway/Fway Maint                  ,"12,221.00",22/10/2014,REV,FM CONWAY LTD                 
503,Highways & Transport Services,Repair prin/oth rds not split,Walk Sheets,G00127,Third Party Payments          ,Private Contractors           ,EH56,Carriageway/Fway Maint                  ,"9,250.05",23/10/2014,REV,FM CONWAY LTD                 
504,Highways & Transport Services,Repair prin/oth rds not split,Walk Sheets,G00127,Third Party Payments          ,Private Contractors           ,EH56,Carriageway/Fway Maint                  ,840.32,22/10/2014,REV,FM CONWAY LTD                 
505,Highways & Transport Services,Repair prin/oth rds not split,Walk Sheets,G00127,Third Party Payments          ,Private Contractors           ,EH56,Carriageway/Fway Maint                  ,"4,301.18",02/10/2014,REV,FM CONWAY LTD                 
506,Highways & Transport Services,Repair prin/oth rds not split,Walk Sheets,G00127,Third Party Payments          ,Private Contractors           ,EH56,Carriageway/Fway Maint                  ,"16,759.59",17/10/2014,REV,FM CONWAY LTD                 
507,Highways & Transport Services,Repair prin/oth rds not split,Walk Sheets,G00127,Third Party Payments          ,Private Contractors           ,EH56,Carriageway/Fway Maint                  ,"6,193.25",17/10/2014,REV,FM CONWAY LTD                 
508,Highways & Transport Services,Repair prin/oth rds not split,Walk Sheets,G00127,Third Party Payments          ,Private Contractors           ,EH56,Carriageway/Fway Maint                  ,"11,229.00",17/10/2014,REV,FM CONWAY LTD                 
509,Highways & Transport Services,Hwys/Rds (struct) not split,"Br., H'ways & Struct",G00128,Third Party Payments          ,Private Contractors           ,EH56,Carriageway/Fway Maint                  ,"14,371.88",27/06/2014,REV,HYDER CONSULTING (UK) LTD     
510,Highways & Transport Services,Saf mtc prin/oth rds not split,Traffic Signs.,G00160,Third Party Payments          ,Private Contractors           ,EH01,Miscellaneous Agency Services           ,901.88,02/10/2014,REV,FM CONWAY LTD                 
511,Highways & Transport Services,Saf mtc prin/oth rds not split,Traffic Signs.,G00160,Third Party Payments          ,Private Contractors           ,EH01,Miscellaneous Agency Services           ,713.05,03/10/2014,REV,MAY GURNEY LTD T/A CARTLEDGE  
512,Highways & Transport Services,Saf mtc prin/oth rds not split,Traffic Signs.,G00160,Third Party Payments          ,Private Contractors           ,EH01,Miscellaneous Agency Services           ,"1,308.87",22/10/2014,REV,FM CONWAY LTD                 
513,Highways & Transport Services,Saf mtc prin/oth rds not split,Traffic Signs.,G00160,Third Party Payments          ,Private Contractors           ,EH01,Miscellaneous Agency Services           ,"1,652.65",17/10/2014,REV,FM CONWAY LTD                 
514,Highways & Transport Services,Saf mtc prin/oth rds not split,Traffic Signs.,G00160,Third Party Payments          ,Private Contractors           ,EH56,Carriageway/Fway Maint                  ,510.92,08/10/2014,REV,SIGNWAY SUPPLIES              
515,Highways & Transport Services,Saf mtc prin/oth rds not split,Traffic Signals .,G00170,Third Party Payments          ,Other Agencies                ,EJ57,Traffic Signals Control Unit            ,"84,903.04",16/10/2014,REV,TRANSPORT FOR LONDON          
516,Highways & Transport Services,Transport Plg/Policy/Strategy,CPZ implementation & Consultat,G00211,Third Party Payments          ,Private Contractors           ,EH56,Carriageway/Fway Maint                  ,"3,234.14",02/10/2014,REV,FM CONWAY LTD                 
517,Highways & Transport Services,Traffic Management,Tr Man & Accid Sch,G00220,Supplies & Services           ,Equip Furniture/Materials     ,DA09,Equip-Purchases                         ,627,10/10/2014,REV,EXCITECH LIMITED              
518,Highways & Transport Services,Street Lighting.,Street Lighting .,G00260,Premises Related Expenditure  ,Energy Costs                  ,BB02,Electricity                             ,"-49,044.75",04/08/2014,REV,SCOTTISHPOWER                 
519,Highways & Transport Services,Street Lighting.,Street Lighting .,G00260,Premises Related Expenditure  ,Energy Costs                  ,BB02,Electricity                             ,"-46,516.14",05/05/2014,REV,SCOTTISHPOWER                 
520,Highways & Transport Services,Street Lighting.,Street Lighting .,G00260,Premises Related Expenditure  ,Energy Costs                  ,BB02,Electricity                             ,"-45,053.02",03/07/2014,REV,SCOTTISHPOWER                 
521,Highways & Transport Services,Street Lighting.,Street Lighting .,G00260,Premises Related Expenditure  ,Energy Costs                  ,BB02,Electricity                             ,"-49,044.75",03/09/2014,REV,SCOTTISHPOWER                 
522,Highways & Transport Services,Street Lighting.,Street Lighting .,G00260,Premises Related Expenditure  ,Energy Costs                  ,BB02,Electricity                             ,"47,185.12",03/10/2014,REV,SCOTTISHPOWER                 
523,Highways & Transport Services,Street Lighting.,Street Lighting .,G00260,Premises Related Expenditure  ,Energy Costs                  ,BB02,Electricity                             ,"-47,124.49",03/06/2014,REV,SCOTTISHPOWER                 
524,Highways & Transport Services,Street Lighting.,Street Lighting .,G00260,Third Party Payments          ,Private Contractors           ,EH01,Miscellaneous Agency Services           ,642,10/10/2014,REV,UK POWER NETWORKS (OPERATIONS)
525,Highways & Transport Services,Street Lighting.,Street Lighting .,G00260,Third Party Payments          ,Private Contractors           ,EH01,Miscellaneous Agency Services           ,"10,216.39",16/10/2014,REV,MAY GURNEY LTD T/A CARTLEDGE  
526,Highways & Transport Services,Street Lighting.,Street Lighting .,G00260,Third Party Payments          ,Private Contractors           ,EH01,Miscellaneous Agency Services           ,642,10/10/2014,REV,UK POWER NETWORKS (OPERATIONS)
527,Highways & Transport Services,Street Lighting.,Street Lighting .,G00260,Third Party Payments          ,Private Contractors           ,EH01,Miscellaneous Agency Services           ,934.34,03/10/2014,REV,MAY GURNEY LTD T/A CARTLEDGE  
528,Highways & Transport Services,Street Lighting.,Street Lighting .,G00260,Third Party Payments          ,Private Contractors           ,EH01,Miscellaneous Agency Services           ,"5,500.00",29/09/2014,REV,MAY GURNEY LTD T/A CARTLEDGE  
529,Highways & Transport Services,Street Lighting.,Street Lighting .,G00260,Third Party Payments          ,Private Contractors           ,EH01,Miscellaneous Agency Services           ,642,02/10/2014,REV,UK POWER NETWORKS (OPERATIONS)
530,Highways & Transport Services,Street Lighting.,Street Lighting .,G00260,Third Party Payments          ,Private Contractors           ,EH01,Miscellaneous Agency Services           ,957.47,03/10/2014,REV,MAY GURNEY LTD T/A CARTLEDGE  
531,Highways & Transport Services,Street Lighting.,Street Lighting .,G00260,Third Party Payments          ,Private Contractors           ,EH01,Miscellaneous Agency Services           ,642,10/10/2014,REV,UK POWER NETWORKS (OPERATIONS)
532,Highways & Transport Services,Street Lighting.,Street Lighting .,G00260,Third Party Payments          ,Private Contractors           ,EH01,Miscellaneous Agency Services           ,642,02/10/2014,REV,UK POWER NETWORKS (OPERATIONS)
533,Highways & Transport Services,Street Lighting.,Street Lighting .,G00260,Third Party Payments          ,Private Contractors           ,EH01,Miscellaneous Agency Services           ,"1,464.28",29/09/2014,REV,MAY GURNEY LTD T/A CARTLEDGE  
534,Highways & Transport Services,Street Lighting.,Street Lighting .,G00260,Third Party Payments          ,Private Contractors           ,EH01,Miscellaneous Agency Services           ,642,02/10/2014,REV,UK POWER NETWORKS (OPERATIONS)
535,Highways & Transport Services,Street Lighting.,Street Lighting .,G00260,Third Party Payments          ,Private Contractors           ,EH01,Miscellaneous Agency Services           ,"13,182.00",29/09/2014,REV,MAY GURNEY LTD T/A CARTLEDGE  
536,Highways & Transport Services,Street Lighting.,Street Lighting .,G00260,Third Party Payments          ,Private Contractors           ,EH01,Miscellaneous Agency Services           ,642,22/09/2014,REV,UK POWER NETWORKS (OPERATIONS)
537,Highways & Transport Services,Street Lighting.,Street Lighting .,G00260,Third Party Payments          ,Private Contractors           ,EH01,Miscellaneous Agency Services           ,734,10/10/2014,REV,UK POWER NETWORKS (OPERATIONS)
538,Highways & Transport Services,Street Lighting.,Street Lighting .,G00260,Third Party Payments          ,Private Contractors           ,EH01,Miscellaneous Agency Services           ,"1,417.53",29/09/2014,REV,MAY GURNEY LTD T/A CARTLEDGE  
539,Highways & Transport Services,Street Lighting.,Street Lighting .,G00260,Third Party Payments          ,Private Contractors           ,EH01,Miscellaneous Agency Services           ,734,02/10/2014,REV,UK POWER NETWORKS (OPERATIONS)
540,Highways & Transport Services,Street Lighting.,Street Lighting .,G00260,Third Party Payments          ,Private Contractors           ,EH01,Miscellaneous Agency Services           ,642,10/10/2014,REV,UK POWER NETWORKS (OPERATIONS)
541,Highways & Transport Services,Street Lighting.,Street Lighting .,G00260,Third Party Payments          ,Private Contractors           ,EH01,Miscellaneous Agency Services           ,"2,130.68",16/10/2014,REV,MAY GURNEY LTD T/A CARTLEDGE  
542,Highways & Transport Services,Off-street parking,St. Georges Car Park WEST M/S,G00302,Premises Related Expenditure  ,Energy Costs                  ,BB02,Electricity                             ,625.8,01/10/2014,REV,SCOTTISHPOWER                 
543,Highways & Transport Services,On-street parking,On Street Parking.,G00311,Premises Related Expenditure  ,RepairsAlterations&MtceOfBldgs,BA06,Repairs & Maintenance General           ,"1,246.59",23/09/2014,REV,TEASDALE GROUP LTD            
544,Highways & Transport Services,Safe routes inc schl x patrol,DFT Inclusive Mobility,G00323,Supplies & Services           ,Services                      ,DF03,Consultants                             ,578.48,06/10/2014,REV,PAYE STONEWK & RESTORATION LTD
545,Highways & Transport Services,Safe routes inc schl x patrol,DFT Inclusive Mobility,G00323,Supplies & Services           ,Services                      ,DF03,Consultants                             ,"8,329.00",29/08/2014,REV,MUSEUM OF LONDON              
546,Highways & Transport Services,Safe routes inc schl x patrol,DFT Child Pedestrian,G00324,Supplies & Services           ,Services                      ,DF03,Consultants                             ,"2,500.00",05/08/2014,REV,TRANSPORT INITIATIVES LLP     
547,Highways & Transport Services,Road Safety Education,TFL CAPT SPEND (REV),G00326,Supplies & Services           ,Services                      ,DF03,Consultants                             ,"3,997.00",22/09/2014,REV,JACOBS                        
548,Highways & Transport Services,Parking Enforcement not split,Civil Enforcement Officers,G00330,Supplies & Services           ,Equip Furniture/Materials     ,DA09,Equip-Purchases                         ,877.5,03/09/2014,REV,QUARTIX                       
549,Highways & Transport Services,Parking Enforcement not split,Operational Running Costs,G00331,Supplies & Services           ,Prntng Stnry Gen Off Exp      ,DE01,External Printing                       ,"2,620.80",20/10/2014,REV,NAGELS UK LTD                 
550,Highways & Transport Services,Parking Enforcement not split,Operational Running Costs,G00331,Third Party Payments          ,Other Agencies                ,EJ58,Parking Cttee for London                ,"22,671.83",15/10/2014,REV,LONDON COUNCILS               
551,Highways & Transport Services,Hwys/Rds (struct) not split,Footpath Crossings.,G00390,Third Party Payments          ,Private Contractors           ,EH56,Carriageway/Fway Maint                  ,705.13,22/10/2014,REV,FM CONWAY LTD                 
552,Highways & Transport Services,Hwys/Rds (struct) not split,Footpath Crossings.,G00390,Third Party Payments          ,Private Contractors           ,EH56,Carriageway/Fway Maint                  ,"5,315.83",02/10/2014,REV,FM CONWAY LTD                 
553,Highways & Transport Services,Hwys/Rds (struct) not split,Footpath Crossings.,G00390,Third Party Payments          ,Private Contractors           ,EH56,Carriageway/Fway Maint                  ,734,02/10/2014,REV,UK POWER NETWORKS (OPERATIONS)
554,Highways & Transport Services,Hwys/Rds (struct) not split,Footpath Crossings.,G00390,Third Party Payments          ,Private Contractors           ,EH56,Carriageway/Fway Maint                  ,"2,459.84",22/10/2014,REV,FM CONWAY LTD                 
555,Highways & Transport Services,Hwys/Rds (struct) not split,Footpath Crossings.,G00390,Third Party Payments          ,Private Contractors           ,EH56,Carriageway/Fway Maint                  ,"2,122.10",02/10/2014,REV,FM CONWAY LTD                 
556,Cultural Env Reg&Plan Services,Street Clean - Not highways,Street Cleansing (Inc. Gully),G00492,Employees                     ,Direct Employee Expenses      ,AA96,SALARY SACRIFICE (TEACHERS)             ,833.33,04/09/2014,REV,F.W.EVANS CYCLES (UK) LTD.    
557,Cultural Env Reg&Plan Services,Street Clean - Not highways,Street Cleansing (Inc. Gully),G00492,Premises Related Expenditure  ,Rents                         ,BC01,Miscellaneous Rents                     ,990.34,15/08/2014,REV,MERTON PRIORY HOMES (RENT)    
558,Cultural Env Reg&Plan Services,Street Clean - Not highways,Street Cleansing (Inc. Gully),G00492,Premises Related Expenditure  ,Rents                         ,BC01,Miscellaneous Rents                     ,990.34,15/08/2014,REV,MERTON PRIORY HOMES (RENT)    
559,Cultural Env Reg&Plan Services,Street Clean - Not highways,Street Cleansing (Inc. Gully),G00492,Supplies & Services           ,Equip Furniture/Materials     ,DA31,Waste Sacks & Bags                      ,832,25/09/2014,REV,POLARIS PLASTICS LTD          
560,Cultural Env Reg&Plan Services,Street Clean - Not highways,Street Cleansing (Inc. Gully),G00492,Supplies & Services           ,Equip Furniture/Materials     ,DA31,Waste Sacks & Bags                      ,"1,713.60",25/09/2014,REV,POLARIS PLASTICS LTD          
561,Cultural Env Reg&Plan Services,Street Clean - Not highways,Street Cleansing (Inc. Gully),G00492,Supplies & Services           ,Equip Furniture/Materials     ,DA32,Wheeled Bins                            ,"2,320.00",11/07/2014,REV,UK CONTAINER MAINTENANCE LTD  
562,Cultural Env Reg&Plan Services,Street Clean - Not highways,Street Cleansing (Inc. Gully),G00492,Supplies & Services           ,Equip Furniture/Materials     ,DA32,Wheeled Bins                            ,960,16/09/2014,REV,UK CONTAINER MAINTENANCE LTD  
563,Cultural Env Reg&Plan Services,Street Clean - Not highways,Street Cleansing (Inc. Gully),G00492,Supplies & Services           ,Clothing Unfrms Laundry       ,DC02,Clothing & Uniforms                     ,"1,283.40",29/09/2014,REV,SAFETY MANAGEMENT             
564,Cultural Env Reg&Plan Services,Waste Disposal (not separated),Waste Disposal .,G00550,Third Party Payments          ,Private Contractors           ,EH04,C1 Viridor SLWP Landfill Contract       ,"413,770.00",24/09/2014,REV,KINGSTON CORPORATION          
565,Cultural Env Reg&Plan Services,Waste Disposal (not separated),Waste Disposal .,G00550,Third Party Payments          ,Private Contractors           ,EH04,C1 Viridor SLWP Landfill Contract       ,"431,574.76",24/09/2014,REV,KINGSTON CORPORATION          
566,Cultural Env Reg&Plan Services,Waste Disposal (not separated),Waste Disposal .,G00550,Third Party Payments          ,Private Contractors           ,EH04,C1 Viridor SLWP Landfill Contract       ,"414,289.80",24/09/2014,REV,KINGSTON CORPORATION          
567,Cultural Env Reg&Plan Services,Waste Disposal (not separated),Waste Disposal .,G00550,Third Party Payments          ,Private Contractors           ,EH63,SLWP C3 EFW Gate Fees                   ,"2,371.76",24/09/2014,REV,KINGSTON CORPORATION          
568,Cultural Env Reg&Plan Services,Waste Disposal (not separated),Waste Disposal .,G00550,Third Party Payments          ,Private Contractors           ,EH66,Clinical Waste Disposal                 ,790.86,30/09/2014,REV,S.GRUNDON (WASTE) LTD.        
569,Cultural Env Reg&Plan Services,Waste Disposal (not separated),Waste Disposal .,G00550,Third Party Payments          ,Private Contractors           ,EH91,Disposal of Asbestos                    ,"3,404.70",16/10/2014,REV,CITY OF LONDON CORPORATION    
570,Cultural Env Reg&Plan Services,Waste Disposal (not separated),Waste Disposal .,G00550,Third Party Payments          ,Private Contractors           ,EH96,GULLY DISPOSAL                          ,"1,120.46",30/09/2014,REV,CORY ENVIRONMENTAL LIMITED    
571,Cultural Env Reg&Plan Services,Civic Amenity Sites,Garth Road Site,G00580,Premises Related Expenditure  ,Energy Costs                  ,BB02,Electricity                             ,"1,043.49",24/09/2014,REV,SCOTTISHPOWER                 
572,Cultural Env Reg&Plan Services,Civic Amenity Sites,Garth Road Site,G00580,Premises Related Expenditure  ,Water Services                ,BE01,Use of Water (Metered)                  ,"1,392.21",26/09/2014,REV,SUTTON & EAST SURREY WATER PLC
573,Highways & Transport Services,Hwys/Rds (struct) not split,Grass Cut/Tr Mtce,G00600,Premises Related Expenditure  ,Ground Maintenance Costs      ,BL03,Maintenance of Grounds                  ,578.24,17/10/2014,REV,FM CONWAY LTD                 
574,Highways & Transport Services,Hwys/Rds (struct) not split,Grass Cut/Tr Mtce,G00600,Premises Related Expenditure  ,Ground Maintenance Costs      ,BL03,Maintenance of Grounds                  ,578.24,17/10/2014,REV,FM CONWAY LTD                 
575,Highways & Transport Services,Hwys/Rds (struct) not split,Grass Cut/Tr Mtce,G00600,Third Party Payments          ,Private Contractors           ,EH56,Carriageway/Fway Maint                  ,"4,800.00",17/10/2014,REV,FM CONWAY LTD                 
576,Cultural Env Reg&Plan Services,Public Health,Dog Control.,G00620,Third Party Payments          ,Private Contractors           ,EH02,Miscellaneous Hired Services            ,"2,861.50",15/09/2014,REV,NOAH'S ARK ENVIRONMENTAL SERV.
577,Cultural Env Reg&Plan Services,Recycling (Collection),Recycling Activities,G00640,Third Party Payments          ,Private Contractors           ,EH08,SLWP C1 Haulage Dry Recyclable          ,"30,877.27",24/09/2014,REV,KINGSTON CORPORATION          
578,Cultural Env Reg&Plan Services,Recycling (Collection),Recycling Activities,G00640,Third Party Payments          ,Private Contractors           ,EH08,SLWP C1 Haulage Dry Recyclable          ,"33,345.48",24/09/2014,REV,KINGSTON CORPORATION          
579,Cultural Env Reg&Plan Services,Recycling (Collection),Recycling Activities,G00640,Third Party Payments          ,Private Contractors           ,EH08,SLWP C1 Haulage Dry Recyclable          ,"32,055.33",24/09/2014,REV,KINGSTON CORPORATION          
580,Cultural Env Reg&Plan Services,Recycling (Collection),Recycling Activities,G00640,Third Party Payments          ,Private Contractors           ,EH61,Green Waste Disposal                    ,"11,123.42",24/09/2014,REV,KINGSTON CORPORATION          
581,Cultural Env Reg&Plan Services,Recycling (Collection),Recycling Activities,G00640,Third Party Payments          ,Private Contractors           ,EH94,C1 DRY RECYCLING ACCEPTANCE & BULK      ,"6,978.78",24/09/2014,REV,KINGSTON CORPORATION          
582,Cultural Env Reg&Plan Services,Recycling (Collection),Recycling Activities,G00640,Third Party Payments          ,Private Contractors           ,EH94,C1 DRY RECYCLING ACCEPTANCE & BULK      ,"7,253.21",24/09/2014,REV,KINGSTON CORPORATION          
583,Cultural Env Reg&Plan Services,Recycling (Collection),Recycling Activities,G00640,Third Party Payments          ,Private Contractors           ,EH94,C1 DRY RECYCLING ACCEPTANCE & BULK      ,"6,722.30",24/09/2014,REV,KINGSTON CORPORATION          
584,Cultural Env Reg&Plan Services,Recycling (Collection),Garden Waste Service,G00647,Third Party Payments          ,Private Contractors           ,EH61,Green Waste Disposal                    ,"7,389.63",24/09/2014,REV,KINGSTON CORPORATION          
585,Cultural Env Reg&Plan Services,Recycling (Collection),Garden Waste Service,G00647,Third Party Payments          ,Private Contractors           ,EH61,Green Waste Disposal                    ,"3,910.41",24/09/2014,REV,KINGSTON CORPORATION          
586,Cultural Env Reg&Plan Services,Recycling (Collection),Food Waste Service,G00648,Supplies & Services           ,Equip Furniture/Materials     ,DA32,Wheeled Bins                            ,"2,718.00",31/03/2014,REV,MATTIUSSI UK                  
587,Cultural Env Reg&Plan Services,Recycling (Collection),Food Waste Service,G00648,Third Party Payments          ,Private Contractors           ,EH18,SLWP C3 Food Waste Gate Fees            ,"8,811.85",24/09/2014,REV,KINGSTON CORPORATION          
588,Cultural Env Reg&Plan Services,Recycling (Collection),Food Waste Service,G00648,Third Party Payments          ,Private Contractors           ,EH19,SLWP C3 FOOD WASTE HAULAGE              ,"6,247.73",24/09/2014,REV,KINGSTON CORPORATION          
589,Cultural Env Reg&Plan Services,Recycling (Collection),Food Waste Service,G00648,Third Party Payments          ,Private Contractors           ,EH19,SLWP C3 FOOD WASTE HAULAGE              ,"5,766.28",24/09/2014,REV,KINGSTON CORPORATION          
590,Cultural Env Reg&Plan Services,Recycling (Collection),Food Waste Service,G00648,Third Party Payments          ,Private Contractors           ,EH19,SLWP C3 FOOD WASTE HAULAGE              ,"6,111.33",24/09/2014,REV,KINGSTON CORPORATION          
591,Cultural Env Reg&Plan Services,Household Waste Collection,Refuse Collection (Operations),G00661,Transport Related Expenditure ,Direct Transport Costs        ,CA52,Reps Vehicles Ins Claims                ,"1,500.00",13/10/2014,REV,S.E.T.S SERVICES              
592,Cultural Env Reg&Plan Services,Household Waste Collection,Refuse Collection (Operations),G00661,Supplies & Services           ,Equip Furniture/Materials     ,DA08,Tools-Purchase                          ,"1,264.70",23/09/2014,REV,BELL BRUSH                    
593,Cultural Env Reg&Plan Services,Household Waste Collection,Refuse Collection (Operations),G00661,Supplies & Services           ,Equip Furniture/Materials     ,DA09,Equip-Purchases                         ,710,29/09/2014,REV,GRANGEWOOD PLASTIC PACKAGING  
594,Cultural Env Reg&Plan Services,Trade Waste Collection,Commercial Waste,G00663,Supplies & Services           ,Services                      ,DF03,Consultants                             ,"9,562.75",28/08/2014,REV,EUNOMIA RESEARCH & CONSULTING 
595,Cultural Env Reg&Plan Services,Trade Waste Collection,Commercial Waste Collection,G00665,Supplies & Services           ,Equip Furniture/Materials     ,DA32,Wheeled Bins                            ,"1,782.52",26/06/2014,REV,UK CONTAINER MAINTENANCE LTD  
596,Cultural Env Reg&Plan Services,Street Clean - Not highways,Waste Enforcement,G00680,Third Party Payments          ,Private Contractors           ,EH02,Miscellaneous Hired Services            ,"24,615.00",31/07/2014,REV,PCL SECURITY LTD              
597,Cultural Env Reg&Plan Services,Inspect/Enforce (Consumer P),Trading Standards,G00690,Third Party Payments          ,Other Local Authorities       ,EB52,GLMCA Contribution                      ,"4,892.98",11/04/2014,REV,KINGSTON CORPORATION          
598,Cultural Env Reg&Plan Services,Food Safety,Health & Safety,G00697,Third Party Payments          ,Private Contractors           ,EH10,Contract Payments                       ,940,30/09/2014,REV,PUBLIC ANALYST SCIENTIFIC SER.
599,Cultural Env Reg&Plan Services,Pest Control,Pest Control,G00724,Supplies & Services           ,Equip Furniture/Materials     ,DA04,Materials                               ,"1,554.42",17/06/2014,REV,KILLGERM CHEMICALS LIMITED    
600,Cultural Env Reg&Plan Services,Housing Standards,Contaminated Land Grant,G00734,Supplies & Services           ,Services                      ,DF03,Consultants                             ,500,17/05/2014,REV,STM ENVIRONMENTAL CONSULTANTS 
601,Cultural Env Reg&Plan Services,Community Develop't (Plg),N.E.Mitcham Community Asso,G18250,Supplies & Services           ,Grants and Subscriptions      ,DJ01,Grants                                  ,"18,640.00",01/10/2014,REV,NORTH EAST MITCHAM COMM ASSOC 
602,Cultural Env Reg&Plan Services,Community Develop't (Plg),Colliers Wood Community Asso,G18251,Supplies & Services           ,Grants and Subscriptions      ,DJ01,Grants                                  ,"6,170.00",01/10/2014,REV,COLLIERS WOOD COMMUNITY ASSOC 
603,Cultural Env Reg&Plan Services,Community Develop't (Plg),S Mitcham Community Asso,G18253,Supplies & Services           ,Grants and Subscriptions      ,DJ01,Grants                                  ,"19,320.00",01/10/2014,REV,SOUTH MITCHAM COMMUNITY ASS   
604,Cultural Env Reg&Plan Services,Community Develop't (Plg),S Wimbledon Community Asso,G18254,Supplies & Services           ,Grants and Subscriptions      ,DJ01,Grants                                  ,"2,735.00",01/10/2014,REV,SOUTH WIMBLEDON COMMUNITY ASSO
605,Cultural Env Reg&Plan Services,Community Develop't (Plg),St. Marks Family Cntr,G18257,Supplies & Services           ,Grants and Subscriptions      ,DJ01,Grants                                  ,"27,050.00",01/10/2014,REV,ST MARKS FAMILY CENTRE        
606,Cultural Env Reg&Plan Services,Museums & Galleries,Wandle Industrial Museum,G19289,Supplies & Services           ,Grants and Subscriptions      ,DJ01,Grants                                  ,"1,975.00",01/10/2014,REV,THE WANDLE INDUSTRIAL MUSEUM  
607,Central Services,Grants - Voluntary Groups,Vestry Hall,G19290,Employees                     ,Direct Employee Expenses      ,AA17,Agency Staff & Casual Paymts            ,734.41,30/09/2014,REV,REDACTED
608,Central Services,Grants - Voluntary Groups,Vestry Hall,G19290,Employees                     ,Direct Employee Expenses      ,AA17,Agency Staff & Casual Paymts            ,"5,148.13",10/10/2014,REV,REDACTED
609,Central Services,Grants - Voluntary Groups,Vestry Hall,G19290,Premises Related Expenditure  ,Energy Costs                  ,BB02,Electricity                             ,545.35,01/10/2014,REV,SCOTTISHPOWER                 
610,Central Services,Grants - Voluntary Groups,Vestry Hall,G19290,Premises Related Expenditure  ,Energy Costs                  ,BB02,Electricity                             ,518.95,01/09/2014,REV,SCOTTISHPOWER                 
611,Central Services,Grants - Voluntary Groups,Vestry Hall,G19290,Premises Related Expenditure  ,Water Services                ,BE01,Use of Water (Metered)                  ,668.86,03/09/2014,REV,THAMES WATER UTILITIES LTD    
612,Central Services,Grants - Voluntary Groups,Vestry Hall,G19290,Premises Related Expenditure  ,Cleaning and Domestic Supplies,BH03,Cleaning Services                       ,"1,383.56",01/10/2014,REV,BIRKIN CLEANING SERVICES LTD  
613,Central Services,Grants - Voluntary Groups,Vestry Hall,G19290,Supplies & Services           ,Equip Furniture/Materials     ,DA09,Equip-Purchases                         ,"3,520.00",03/10/2014,REV,UNIQUE OFFICE SOLUTIONS LTD   
614,Highways & Transport Services,Transport Plg/Policy/Strategy,Transport Planning,H01070,Supplies & Services           ,Services                      ,DF03,Consultants                             ,750,15/10/2014,REV,SANDBERG LLP                  
615,Highways & Transport Services,Transport Plg/Policy/Strategy,Strategic Corridor Mitcham TFL          ,H01077,Employees                     ,Direct Employee Expenses      ,AA17,Agency Staff & Casual Paymts            ,"1,087.50",08/09/2014,REV,REDACTED
616,Highways & Transport Services,Transport Plg/Policy/Strategy,Strategic Corridor Mitcham TFL          ,H01077,Supplies & Services           ,Services                      ,DF35,Graphic Design                          ,"1,750.00",21/10/2014,REV,SKYLINE CG LTD                
617,Highways & Transport Services,Safe routes inc schl x patrol,School & Road Safety TFL                ,H01083,Supplies & Services           ,Equip Furniture/Materials     ,DA04,Materials                               ,512,17/09/2014,REV,BLAKES DRIVER TRAINING        
618,Highways & Transport Services,Safe routes inc schl x patrol,School & Road Safety TFL                ,H01083,Supplies & Services           ,Equip Furniture/Materials     ,DA04,Materials                               ,500,15/10/2014,REV,DYNAMIC INITIATIVES           
619,Cultural Env Reg&Plan Services,BC Regs & Other not split,Building Control,H01100,Customer and client receipts  ,Fees                          ,RB52,Building Regs Fees S                    ,563.9,30/10/2014,REV,ANDREW JONES ASSOCIATES LTD   
620,Cultural Env Reg&Plan Services,DC Advice Apps & Reg not split,Development Control,H01130,Supplies & Services           ,Services                      ,DF02,Misc Advertising/Publicity              ,588.12,20/08/2014,REV,NEWSQUEST (LONDON)LTD         
621,Cultural Env Reg&Plan Services,DC Advice Apps & Reg not split,Development Control,H01130,Supplies & Services           ,Services                      ,DF02,Misc Advertising/Publicity              ,989.44,24/09/2014,REV,FM CONWAY LTD                 
622,Cultural Env Reg&Plan Services,DC Advice Apps & Reg not split,Development Control,H01130,Supplies & Services           ,Services                      ,DF02,Misc Advertising/Publicity              ,565.5,26/09/2014,REV,NEWSQUEST (LONDON)LTD         
623,Cultural Env Reg&Plan Services,DC Advice Apps & Reg not split,Development Control,H01130,Supplies & Services           ,Services                      ,DF02,Misc Advertising/Publicity              ,572.02,23/10/2014,REV,FM CONWAY LTD                 
624,Cultural Env Reg&Plan Services,DC Advice Apps & Reg not split,Development Control,H01130,Supplies & Services           ,Comms and Computing           ,DG08,Computer Hardware                       ,730,20/10/2014,REV,TOTAL COMPUTER NETWORKS       
625,Cultural Env Reg&Plan Services,DC Advice Apps & Reg not split,Development Control,H01130,Customer and client receipts  ,Fees                          ,RB03,Miscellaneous Fees S                    ,965,10/10/2014,REV,ASHTON PAUL LIMITED           
626,Cultural Env Reg&Plan Services,Planning Policy not split,Spatial Policy,H01173,Third Party Payments          ,Private Contractors           ,EH10,Contract Payments                       ,"9,900.00",25/07/2014,REV,BBP REGENERATION              
627,Cultural Env Reg&Plan Services,Planning Policy not split,HPDG - Physical Regeneration,H01178,Supplies & Services           ,Services                      ,DF03,Consultants                             ,"4,900.00",17/10/2014,REV,THE FIFTH SECTOR LTD          
628,Cultural Env Reg&Plan Services,Planning Policy not split,HPDG - Spatial Policy,H01183,Supplies & Services           ,Services                      ,DF03,Consultants                             ,"4,400.00",09/09/2014,REV,REDACTED
629,Cultural Env Reg&Plan Services,Planning Policy not split,HPDG - Spatial Policy,H01183,Supplies & Services           ,Services                      ,DF03,Consultants                             ,"3,000.00",01/10/2014,REV,REDACTED
630,Cultural Env Reg&Plan Services,Economic Dev (Not separated),REG &  PARTNERSHIPS STAFFING,H01200,Supplies & Services           ,Grants and Subscriptions      ,DJ01,Grants                                  ,"5,000.00",24/09/2014,REV,GRENFELL HOUSING ASSOCIATION  
631,Cultural Env Reg&Plan Services,Economic Dev (Not separated),REG &  PARTNERSHIPS STAFFING,H01200,Supplies & Services           ,Grants and Subscriptions      ,DJ01,Grants                                  ,"5,125.00",24/09/2014,REV,GRENFELL HOUSING ASSOCIATION  
632,CS -Oth Operating Inc & Expend,Extraordinary Items & PY Adj.,MILES RD GENERATOR,H01203,Premises Related Expenditure  ,Fixtures and Fittings         ,BF01,Fixtures and Fittings                   ,"5,322.08",13/08/2014,REV,AQUARIUS BLINDS               
633,Cultural Env Reg&Plan Services,Economic Dev (Not separated),(LABGI)-BUSINESS SUPPORT,H01210,Supplies & Services           ,Grants and Subscriptions      ,DJ01,Grants                                  ,"6,000.00",16/10/2014,REV,THE VINE PROJECT              
634,Cultural Env Reg&Plan Services,Economic Dev (Not separated),(LABGI)-BUSINESS SUPPORT,H01210,Supplies & Services           ,Grants and Subscriptions      ,DJ01,Grants                                  ,"7,170.00",20/10/2014,REV,EARCANDY                      
635,Cultural Env Reg&Plan Services,Economic Dev (Not separated),LABGI-BUSINESS SUPPORT SERVICE,H01219,Third Party Payments          ,Private Contractors           ,EH02,Miscellaneous Hired Services            ,"50,000.00",10/10/2014,REV,MERTON CHAMBER OF COMMERCE    
636,Cultural Env Reg&Plan Services,Economic Dev (Not separated),GO GREEN PLUS (S106),H01225,Supplies & Services           ,Grants and Subscriptions      ,DJ54,Contributions                           ,"2,085.04",30/09/2014,REV,MERTON CHAMBER OF COMMERCE    
637,Cultural Env Reg&Plan Services,Economic Dev (Not separated),Mitcham Means Business,H01230,Supplies & Services           ,Services                      ,DF03,Consultants                             ,700,29/08/2014,REV,STUDIO WEAVE LTD              
638,CS -Oth Operating Inc & Expend,T/A Vehicle Maintenance etc,Transport-Contract Hire,J01374,Premises Related Expenditure  ,RepairsAlterations&MtceOfBldgs,BA05,DDM - Electrical                        ,554.08,01/07/2014,REV,EUROPA NATIONWIDE TECH.SER.LTD
639,CS -Oth Operating Inc & Expend,T/A Vehicle Maintenance etc,Transport-Contract Hire,J01374,Transport Related Expenditure ,Direct Transport Costs        ,CA01,Petrol Derv & Oil                       ,600,14/08/2014,REV,EUROCAR PARTS                 
640,CS -Oth Operating Inc & Expend,T/A Vehicle Maintenance etc,Transport-Contract Hire,J01374,Transport Related Expenditure ,Direct Transport Costs        ,CA01,Petrol Derv & Oil                       ,"37,155.60",29/09/2014,REV,HARVEST ENERGY LIMITED        
641,CS -Oth Operating Inc & Expend,T/A Vehicle Maintenance etc,Transport-Contract Hire,J01374,Transport Related Expenditure ,Direct Transport Costs        ,CA01,Petrol Derv & Oil                       ,"31,132.34",16/10/2014,REV,HARVEST ENERGY LIMITED        
642,CS -Oth Operating Inc & Expend,T/A Vehicle Maintenance etc,Transport-Contract Hire,J01374,Transport Related Expenditure ,Direct Transport Costs        ,CA52,Reps Vehicles Ins Claims                ,500,29/09/2014,REV,FLEETSPEED COACHWORKS LTD.    
643,CS -Oth Operating Inc & Expend,T/A Vehicle Maintenance etc,Transport-Contract Hire,J01374,Transport Related Expenditure ,Direct Transport Costs        ,CA52,Reps Vehicles Ins Claims                ,500,06/10/2014,REV,FLEETSPEED COACHWORKS LTD.    
644,CS -Oth Operating Inc & Expend,T/A Vehicle Maintenance etc,Transport-Contract Hire,J01374,Transport Related Expenditure ,Contract Hire and Op Leasing  ,CC53,Plant Hire for MRCS                     ,610,30/09/2014,REV,PFB HIRE LTD                  
645,CS -Oth Operating Inc & Expend,T/A Vehicle Maintenance etc,Transport-Contract Hire,J01374,Transport Related Expenditure ,Contract Hire and Op Leasing  ,CC53,Plant Hire for MRCS                     ,925,17/10/2014,REV,DRM MUNICIPAL SERVICES LIMITED
646,CS -Oth Operating Inc & Expend,T/A Vehicle Maintenance etc,Transport-Contract Hire,J01374,Transport Related Expenditure ,Contract Hire and Op Leasing  ,CC53,Plant Hire for MRCS                     ,925,26/09/2014,REV,DRM MUNICIPAL SERVICES LIMITED
647,CS -Oth Operating Inc & Expend,T/A Vehicle Maintenance etc,Transport-Contract Hire,J01374,Transport Related Expenditure ,Contract Hire and Op Leasing  ,CC53,Plant Hire for MRCS                     ,726,30/09/2014,REV,REDACTED
648,CS -Oth Operating Inc & Expend,T/A Vehicle Maintenance etc,Transport-Contract Hire,J01374,Transport Related Expenditure ,Contract Hire and Op Leasing  ,CC53,Plant Hire for MRCS                     ,610,14/10/2014,REV,PFB HIRE LTD                  
649,CS -Oth Operating Inc & Expend,T/A Vehicle Maintenance etc,Transport-Contract Hire,J01374,Transport Related Expenditure ,Contract Hire and Op Leasing  ,CC53,Plant Hire for MRCS                     ,610,07/10/2014,REV,PFB HIRE LTD                  
650,CS -Oth Operating Inc & Expend,T/A Vehicle Maintenance etc,Transport-Contract Hire,J01374,Transport Related Expenditure ,Contract Hire and Op Leasing  ,CC53,Plant Hire for MRCS                     ,925,24/10/2014,REV,DRM MUNICIPAL SERVICES LIMITED
651,CS -Oth Operating Inc & Expend,T/A Vehicle Maintenance etc,Transport-Contract Hire,J01374,Transport Related Expenditure ,Contract Hire and Op Leasing  ,CC53,Plant Hire for MRCS                     ,726,30/09/2014,REV,REDACTED
652,CS -Oth Operating Inc & Expend,T/A Vehicle Maintenance etc,Transport-Contract Hire,J01374,Transport Related Expenditure ,Contract Hire and Op Leasing  ,CC53,Plant Hire for MRCS                     ,925,12/10/2014,REV,DRM MUNICIPAL SERVICES LIMITED
653,CS -Oth Operating Inc & Expend,T/A Vehicle Maintenance etc,Transport-Contract Hire,J01374,Transport Related Expenditure ,Contract Hire and Op Leasing  ,CC53,Plant Hire for MRCS                     ,925,03/10/2014,REV,DRM MUNICIPAL SERVICES LIMITED
654,CS -Oth Operating Inc & Expend,T/A Vehicle Maintenance etc,Transport-Contract Hire,J01374,Transport Related Expenditure ,Contract Hire and Op Leasing  ,CC56,Plant Hire for Leisure                  ,"1,755.00",30/09/2014,REV,REDACTED
655,CS -Oth Operating Inc & Expend,T/A Vehicle Maintenance etc,Transport-Contract Hire,J01374,Transport Related Expenditure ,Contract Hire and Op Leasing  ,CC57,Pland Hire for Housing                  ,940,30/09/2014,REV,REDACTED
656,CS -Oth Operating Inc & Expend,T/A Vehicle Maintenance etc,Transport-Contract Hire,J01374,Transport Related Expenditure ,Contract Hire and Op Leasing  ,CC58,Plant Hire - Ad Hoc                     ,622.74,23/09/2014,REV,ARVAL UK LTD                  
657,CS -Oth Operating Inc & Expend,T/A Vehicle Maintenance etc,Transport-Contract Hire,J01374,Transport Related Expenditure ,Contract Hire and Op Leasing  ,CC59,HIRING TRANSPORT OPERATIONS             ,"2,238.32",30/09/2014,REV,REDACTED
658,CS -Oth Operating Inc & Expend,T/A Vehicle Maintenance etc,Transport-Contract Hire,J01374,Transport Related Expenditure ,Contract Hire and Op Leasing  ,CC59,HIRING TRANSPORT OPERATIONS             ,"1,452.00",30/09/2014,REV,BURNT TREE VEHICLE RENTAL     
659,CS -Oth Operating Inc & Expend,T/A Vehicle Maintenance etc,Transport-Contract Hire,J01374,Transport Related Expenditure ,Contract Hire and Op Leasing  ,CC59,HIRING TRANSPORT OPERATIONS             ,"1,452.00",30/09/2014,REV,BURNT TREE VEHICLE RENTAL     
660,CS -Oth Operating Inc & Expend,T/A Vehicle Maintenance etc,Transport-Contract Hire,J01374,Transport Related Expenditure ,Contract Hire and Op Leasing  ,CC59,HIRING TRANSPORT OPERATIONS             ,"1,452.00",30/09/2014,REV,BURNT TREE VEHICLE RENTAL     
661,CS -Oth Operating Inc & Expend,T/A Vehicle Maintenance etc,Transport-Contract Hire,J01374,Transport Related Expenditure ,Contract Hire and Op Leasing  ,CC64,HIRING TRANSPORT SEN CABS               ,"1,710.00",30/09/2014,REV,SHERWOOD TRANSPORT GROUP      
662,CS -Oth Operating Inc & Expend,T/A Vehicle Maintenance etc,Transport-Contract Hire,J01374,Transport Related Expenditure ,Contract Hire and Op Leasing  ,CC64,HIRING TRANSPORT SEN CABS               ,"1,680.00",30/09/2014,REV,NVCAR HIRE LTD                
663,CS -Oth Operating Inc & Expend,T/A Vehicle Maintenance etc,Transport-Contract Hire,J01374,Transport Related Expenditure ,Contract Hire and Op Leasing  ,CC64,HIRING TRANSPORT SEN CABS               ,"1,360.00",30/09/2014,REV,GALPINS SERVICE               
664,CS -Oth Operating Inc & Expend,T/A Vehicle Maintenance etc,Transport-Contract Hire,J01374,Transport Related Expenditure ,Contract Hire and Op Leasing  ,CC64,HIRING TRANSPORT SEN CABS               ,"2,173.00",30/09/2014,REV,SILVERBURN FINANCE (UK) LTD   
665,CS -Oth Operating Inc & Expend,T/A Vehicle Maintenance etc,Transport-Contract Hire,J01374,Transport Related Expenditure ,Contract Hire and Op Leasing  ,CC64,HIRING TRANSPORT SEN CABS               ,"2,660.00",30/09/2014,REV,NVCAR HIRE LTD                
666,CS -Oth Operating Inc & Expend,T/A Vehicle Maintenance etc,Transport-Contract Hire,J01374,Transport Related Expenditure ,Contract Hire and Op Leasing  ,CC64,HIRING TRANSPORT SEN CABS               ,"1,512.00",30/09/2014,REV,NVCAR HIRE LTD                
667,CS -Oth Operating Inc & Expend,T/A Vehicle Maintenance etc,Transport-Contract Hire,J01374,Transport Related Expenditure ,Contract Hire and Op Leasing  ,CC64,HIRING TRANSPORT SEN CABS               ,"1,968.00",30/09/2014,REV,BARCLAYS ASSET & SALES FINANCE
668,CS -Oth Operating Inc & Expend,T/A Vehicle Maintenance etc,Transport-Contract Hire,J01374,Transport Related Expenditure ,Contract Hire and Op Leasing  ,CC64,HIRING TRANSPORT SEN CABS               ,901,30/09/2014,REV,SHERWOOD TRANSPORT GROUP      
669,CS -Oth Operating Inc & Expend,T/A Vehicle Maintenance etc,Transport-Contract Hire,J01374,Transport Related Expenditure ,Contract Hire and Op Leasing  ,CC64,HIRING TRANSPORT SEN CABS               ,"1,638.00",30/09/2014,REV,CAPITAL CARS                  
670,CS -Oth Operating Inc & Expend,T/A Vehicle Maintenance etc,Transport-Contract Hire,J01374,Transport Related Expenditure ,Contract Hire and Op Leasing  ,CC64,HIRING TRANSPORT SEN CABS               ,"1,305.00",30/09/2014,REV,NVCAR HIRE LTD                
671,CS -Oth Operating Inc & Expend,T/A Vehicle Maintenance etc,Transport-Contract Hire,J01374,Transport Related Expenditure ,Contract Hire and Op Leasing  ,CC64,HIRING TRANSPORT SEN CABS               ,945,30/09/2014,REV,CHEAM STATION CARS            
672,CS -Oth Operating Inc & Expend,T/A Vehicle Maintenance etc,Transport-Contract Hire,J01374,Transport Related Expenditure ,Contract Hire and Op Leasing  ,CC64,HIRING TRANSPORT SEN CABS               ,"3,583.60",30/09/2014,REV,KINGSTON ACCESSIBILITY TRAN LT
673,CS -Oth Operating Inc & Expend,T/A Vehicle Maintenance etc,Transport-Contract Hire,J01374,Transport Related Expenditure ,Contract Hire and Op Leasing  ,CC64,HIRING TRANSPORT SEN CABS               ,"2,000.00",30/09/2014,REV,NVCAR HIRE LTD                
674,CS -Oth Operating Inc & Expend,T/A Vehicle Maintenance etc,Transport-Contract Hire,J01374,Transport Related Expenditure ,Contract Hire and Op Leasing  ,CC64,HIRING TRANSPORT SEN CABS               ,760,27/09/2014,REV,WALLINGTON CARS & COURIERS LTD
675,CS -Oth Operating Inc & Expend,T/A Vehicle Maintenance etc,Transport-Contract Hire,J01374,Transport Related Expenditure ,Contract Hire and Op Leasing  ,CC64,HIRING TRANSPORT SEN CABS               ,"1,845.00",30/09/2014,REV,NVCAR HIRE LTD                
676,CS -Oth Operating Inc & Expend,T/A Vehicle Maintenance etc,Transport-Contract Hire,J01374,Transport Related Expenditure ,Contract Hire and Op Leasing  ,CC64,HIRING TRANSPORT SEN CABS               ,"1,403.64",31/10/2014,REV,KINGSTON ACCESSIBILITY TRAN LT
677,CS -Oth Operating Inc & Expend,T/A Vehicle Maintenance etc,Transport-Contract Hire,J01374,Transport Related Expenditure ,Contract Hire and Op Leasing  ,CC64,HIRING TRANSPORT SEN CABS               ,"1,360.80",30/09/2014,REV,KINGSTON ACCESSIBILITY TRAN LT
678,CS -Oth Operating Inc & Expend,T/A Vehicle Maintenance etc,Transport-Contract Hire,J01374,Transport Related Expenditure ,Contract Hire and Op Leasing  ,CC64,HIRING TRANSPORT SEN CABS               ,"1,960.00",30/09/2014,REV,NVCAR HIRE LTD                
679,CS -Oth Operating Inc & Expend,T/A Vehicle Maintenance etc,Transport-Contract Hire,J01374,Transport Related Expenditure ,Contract Hire and Op Leasing  ,CC64,HIRING TRANSPORT SEN CABS               ,"1,882.44",31/10/2014,REV,KINGSTON ACCESSIBILITY TRAN LT
680,CS -Oth Operating Inc & Expend,T/A Vehicle Maintenance etc,Transport-Contract Hire,J01374,Transport Related Expenditure ,Contract Hire and Op Leasing  ,CC64,HIRING TRANSPORT SEN CABS               ,"1,098.00",31/10/2014,REV,KINGSTON ACCESSIBILITY TRAN LT
681,CS -Oth Operating Inc & Expend,T/A Vehicle Maintenance etc,Transport-Contract Hire,J01374,Transport Related Expenditure ,Contract Hire and Op Leasing  ,CC64,HIRING TRANSPORT SEN CABS               ,"1,166.40",31/10/2014,REV,KINGSTON ACCESSIBILITY TRAN LT
682,CS -Oth Operating Inc & Expend,T/A Vehicle Maintenance etc,Transport-Contract Hire,J01374,Transport Related Expenditure ,Contract Hire and Op Leasing  ,CC64,HIRING TRANSPORT SEN CABS               ,"1,102.00",30/09/2014,REV,NVCAR HIRE LTD                
683,CS -Oth Operating Inc & Expend,T/A Vehicle Maintenance etc,Transport-Contract Hire,J01374,Transport Related Expenditure ,Contract Hire and Op Leasing  ,CC64,HIRING TRANSPORT SEN CABS               ,"2,600.00",30/09/2014,REV,CAPITAL CARS                  
684,CS -Oth Operating Inc & Expend,T/A Vehicle Maintenance etc,Transport-Contract Hire,J01374,Transport Related Expenditure ,Contract Hire and Op Leasing  ,CC64,HIRING TRANSPORT SEN CABS               ,624,30/09/2014,REV,CAPITAL CARS                  
685,CS -Oth Operating Inc & Expend,T/A Vehicle Maintenance etc,Transport-Contract Hire,J01374,Transport Related Expenditure ,Contract Hire and Op Leasing  ,CC64,HIRING TRANSPORT SEN CABS               ,714,30/09/2014,REV,NVCAR HIRE LTD                
686,CS -Oth Operating Inc & Expend,T/A Vehicle Maintenance etc,Transport-Contract Hire,J01374,Transport Related Expenditure ,Contract Hire and Op Leasing  ,CC64,HIRING TRANSPORT SEN CABS               ,"3,239.60",30/09/2014,REV,KINGSTON ACCESSIBILITY TRAN LT
687,CS -Oth Operating Inc & Expend,T/A Vehicle Maintenance etc,Transport-Contract Hire,J01374,Transport Related Expenditure ,Contract Hire and Op Leasing  ,CC64,HIRING TRANSPORT SEN CABS               ,"1,800.00",30/09/2014,REV,CAPITAL CARS                  
688,CS -Oth Operating Inc & Expend,T/A Vehicle Maintenance etc,Transport-Contract Hire,J01374,Transport Related Expenditure ,Contract Hire and Op Leasing  ,CC64,HIRING TRANSPORT SEN CABS               ,"2,151.00",31/10/2014,REV,KINGSTON ACCESSIBILITY TRAN LT
689,CS -Oth Operating Inc & Expend,T/A Vehicle Maintenance etc,Transport-Contract Hire,J01374,Transport Related Expenditure ,Contract Hire and Op Leasing  ,CC64,HIRING TRANSPORT SEN CABS               ,"2,730.00",30/09/2014,REV,BARCLAYS ASSET & SALES FINANCE
690,CS -Oth Operating Inc & Expend,T/A Vehicle Maintenance etc,Transport-Contract Hire,J01374,Transport Related Expenditure ,Contract Hire and Op Leasing  ,CC64,HIRING TRANSPORT SEN CABS               ,"1,708.20",31/10/2014,REV,KINGSTON ACCESSIBILITY TRAN LT
691,CS -Oth Operating Inc & Expend,T/A Vehicle Maintenance etc,Transport-Contract Hire,J01374,Transport Related Expenditure ,Contract Hire and Op Leasing  ,CC64,HIRING TRANSPORT SEN CABS               ,"1,060.00",30/09/2014,REV,BARCLAYS ASSET & SALES FINANCE
692,CS -Oth Operating Inc & Expend,T/A Vehicle Maintenance etc,Transport-Contract Hire,J01374,Transport Related Expenditure ,Contract Hire and Op Leasing  ,CC64,HIRING TRANSPORT SEN CABS               ,"1,675.38",30/09/2014,REV,KINGSTON ACCESSIBILITY TRAN LT
693,CS -Oth Operating Inc & Expend,T/A Vehicle Maintenance etc,Transport-Contract Hire,J01374,Transport Related Expenditure ,Contract Hire and Op Leasing  ,CC64,HIRING TRANSPORT SEN CABS               ,504,30/09/2014,REV,CHEAM STATION CARS            
694,CS -Oth Operating Inc & Expend,T/A Vehicle Maintenance etc,Transport-Contract Hire,J01374,Transport Related Expenditure ,Contract Hire and Op Leasing  ,CC64,HIRING TRANSPORT SEN CABS               ,"1,803.10",30/09/2014,REV,KINGSTON ACCESSIBILITY TRAN LT
695,CS -Oth Operating Inc & Expend,T/A Vehicle Maintenance etc,Transport-Contract Hire,J01374,Transport Related Expenditure ,Contract Hire and Op Leasing  ,CC64,HIRING TRANSPORT SEN CABS               ,"1,768.00",30/09/2014,REV,A STAR TRANSPORT LIMITED      
696,CS -Oth Operating Inc & Expend,T/A Vehicle Maintenance etc,Transport-Contract Hire,J01374,Transport Related Expenditure ,Contract Hire and Op Leasing  ,CC64,HIRING TRANSPORT SEN CABS               ,"1,559.60",30/09/2014,REV,KINGSTON ACCESSIBILITY TRAN LT
697,CS -Oth Operating Inc & Expend,T/A Vehicle Maintenance etc,Transport-Contract Hire,J01374,Transport Related Expenditure ,Contract Hire and Op Leasing  ,CC64,HIRING TRANSPORT SEN CABS               ,"1,219.52",30/09/2014,REV,KINGSTON ACCESSIBILITY TRAN LT
698,CS -Oth Operating Inc & Expend,T/A Vehicle Maintenance etc,Transport-Contract Hire,J01374,Transport Related Expenditure ,Contract Hire and Op Leasing  ,CC64,HIRING TRANSPORT SEN CABS               ,"1,155.00",30/09/2014,REV,SHERWOOD TRANSPORT GROUP      
699,CS -Oth Operating Inc & Expend,T/A Vehicle Maintenance etc,Transport-Contract Hire,J01374,Transport Related Expenditure ,Contract Hire and Op Leasing  ,CC64,HIRING TRANSPORT SEN CABS               ,"2,940.00",30/09/2014,REV,BARCLAYS ASSET & SALES FINANCE
700,CS -Oth Operating Inc & Expend,T/A Vehicle Maintenance etc,Transport-Contract Hire,J01374,Transport Related Expenditure ,Contract Hire and Op Leasing  ,CC64,HIRING TRANSPORT SEN CABS               ,"3,528.00",30/09/2014,REV,SILVERBURN FINANCE (UK) LTD   
701,CS -Oth Operating Inc & Expend,T/A Vehicle Maintenance etc,Transport-Contract Hire,J01374,Transport Related Expenditure ,Contract Hire and Op Leasing  ,CC64,HIRING TRANSPORT SEN CABS               ,"2,310.00",30/09/2014,REV,BARCLAYS ASSET & SALES FINANCE
702,CS -Oth Operating Inc & Expend,T/A Vehicle Maintenance etc,Transport-Contract Hire,J01374,Transport Related Expenditure ,Contract Hire and Op Leasing  ,CC64,HIRING TRANSPORT SEN CABS               ,845,30/09/2014,REV,SILVERBURN FINANCE (UK) LTD   
703,CS -Oth Operating Inc & Expend,T/A Vehicle Maintenance etc,Transport-Contract Hire,J01374,Transport Related Expenditure ,Contract Hire and Op Leasing  ,CC64,HIRING TRANSPORT SEN CABS               ,"2,028.00",06/10/2014,REV,BARCLAYS ASSET & SALES FINANCE
704,CS -Oth Operating Inc & Expend,T/A Vehicle Maintenance etc,Transport-Contract Hire,J01374,Transport Related Expenditure ,Contract Hire and Op Leasing  ,CC64,HIRING TRANSPORT SEN CABS               ,"2,410.40",03/10/2014,REV,SHERWOOD TRANSPORT GROUP      
705,CS -Oth Operating Inc & Expend,T/A Vehicle Maintenance etc,Transport-Contract Hire,J01374,Transport Related Expenditure ,Contract Hire and Op Leasing  ,CC64,HIRING TRANSPORT SEN CABS               ,"1,160.00",30/09/2014,REV,SILVERBURN FINANCE (UK) LTD   
706,CS -Oth Operating Inc & Expend,T/A Vehicle Maintenance etc,Transport-Contract Hire,J01374,Transport Related Expenditure ,Contract Hire and Op Leasing  ,CC64,HIRING TRANSPORT SEN CABS               ,"1,010.00",30/09/2014,REV,GALPINS SERVICE               
707,CS -Oth Operating Inc & Expend,T/A Vehicle Maintenance etc,Transport-Contract Hire,J01374,Transport Related Expenditure ,Contract Hire and Op Leasing  ,CC64,HIRING TRANSPORT SEN CABS               ,"1,560.00",30/09/2014,REV,SILVERBURN FINANCE (UK) LTD   
708,CS -Oth Operating Inc & Expend,T/A Vehicle Maintenance etc,Transport-Contract Hire,J01374,Transport Related Expenditure ,Contract Hire and Op Leasing  ,CC64,HIRING TRANSPORT SEN CABS               ,"1,050.00",30/09/2014,REV,CHEAM STATION CARS            
709,CS -Oth Operating Inc & Expend,T/A Vehicle Maintenance etc,Transport-Contract Hire,J01374,Transport Related Expenditure ,Contract Hire and Op Leasing  ,CC64,HIRING TRANSPORT SEN CABS               ,"1,364.00",30/09/2014,REV,CHEAM STATION CARS            
710,CS -Oth Operating Inc & Expend,T/A Vehicle Maintenance etc,Transport-Contract Hire,J01374,Transport Related Expenditure ,Contract Hire and Op Leasing  ,CC64,HIRING TRANSPORT SEN CABS               ,"2,448.00",30/09/2014,REV,CAPITAL CARS                  
711,CS -Oth Operating Inc & Expend,T/A Vehicle Maintenance etc,Transport-Contract Hire,J01374,Transport Related Expenditure ,Contract Hire and Op Leasing  ,CC64,HIRING TRANSPORT SEN CABS               ,"2,346.00",27/09/2014,REV,WALLINGTON CARS & COURIERS LTD
712,CS -Oth Operating Inc & Expend,T/A Vehicle Maintenance etc,Transport-Contract Hire,J01374,Transport Related Expenditure ,Contract Hire and Op Leasing  ,CC64,HIRING TRANSPORT SEN CABS               ,550,30/09/2014,REV,CAPITAL CARS                  
713,CS -Oth Operating Inc & Expend,T/A Vehicle Maintenance etc,Transport-Contract Hire,J01374,Transport Related Expenditure ,Contract Hire and Op Leasing  ,CC64,HIRING TRANSPORT SEN CABS               ,"1,960.00",30/09/2014,REV,KINGSTON ACCESSIBILITY TRAN LT
714,CS -Oth Operating Inc & Expend,T/A Vehicle Maintenance etc,Transport-Contract Hire,J01374,Transport Related Expenditure ,Contract Hire and Op Leasing  ,CC64,HIRING TRANSPORT SEN CABS               ,"2,194.20",31/10/2014,REV,KINGSTON ACCESSIBILITY TRAN LT
715,CS -Oth Operating Inc & Expend,T/A Vehicle Maintenance etc,Transport-Contract Hire,J01374,Transport Related Expenditure ,Contract Hire and Op Leasing  ,CC64,HIRING TRANSPORT SEN CABS               ,"1,582.00",30/09/2014,REV,SILVERBURN FINANCE (UK) LTD   
716,CS -Oth Operating Inc & Expend,T/A Vehicle Maintenance etc,Transport-Contract Hire,J01374,Transport Related Expenditure ,Contract Hire and Op Leasing  ,CC64,HIRING TRANSPORT SEN CABS               ,"1,972.00",30/09/2014,REV,CAPITAL CARS                  
717,CS -Oth Operating Inc & Expend,T/A Vehicle Maintenance etc,Transport-Contract Hire,J01374,Transport Related Expenditure ,Contract Hire and Op Leasing  ,CC64,HIRING TRANSPORT SEN CABS               ,"2,224.18",30/09/2014,REV,KINGSTON ACCESSIBILITY TRAN LT
718,CS -Oth Operating Inc & Expend,T/A Vehicle Maintenance etc,Transport-Contract Hire,J01374,Transport Related Expenditure ,Contract Hire and Op Leasing  ,CC64,HIRING TRANSPORT SEN CABS               ,"1,839.20",30/09/2014,REV,SHERWOOD TRANSPORT GROUP      
719,CS -Oth Operating Inc & Expend,T/A Vehicle Maintenance etc,Transport-Contract Hire,J01374,Transport Related Expenditure ,Contract Hire and Op Leasing  ,CC64,HIRING TRANSPORT SEN CABS               ,"2,915.64",31/10/2014,REV,KINGSTON ACCESSIBILITY TRAN LT
720,CS -Oth Operating Inc & Expend,T/A Vehicle Maintenance etc,Transport-Contract Hire,J01374,Transport Related Expenditure ,Contract Hire and Op Leasing  ,CC64,HIRING TRANSPORT SEN CABS               ,"3,170.00",30/09/2014,REV,SHERWOOD TRANSPORT GROUP      
721,CS -Oth Operating Inc & Expend,T/A Vehicle Maintenance etc,Transport-Contract Hire,J01374,Transport Related Expenditure ,Contract Hire and Op Leasing  ,CC64,HIRING TRANSPORT SEN CABS               ,"5,000.00",30/09/2014,REV,SHERWOOD TRANSPORT GROUP      
722,CS -Oth Operating Inc & Expend,T/A Vehicle Maintenance etc,Transport-Contract Hire,J01374,Transport Related Expenditure ,Contract Hire and Op Leasing  ,CC64,HIRING TRANSPORT SEN CABS               ,"2,107.00",30/09/2014,REV,SHERWOOD TRANSPORT GROUP      
723,CS -Oth Operating Inc & Expend,T/A Vehicle Maintenance etc,Transport-Contract Hire,J01374,Transport Related Expenditure ,Contract Hire and Op Leasing  ,CC64,HIRING TRANSPORT SEN CABS               ,"1,628.00",30/09/2014,REV,SHERWOOD TRANSPORT GROUP      
724,CS -Oth Operating Inc & Expend,T/A Vehicle Maintenance etc,Transport-Contract Hire,J01374,Transport Related Expenditure ,Contract Hire and Op Leasing  ,CC64,HIRING TRANSPORT SEN CABS               ,"2,099.58",30/09/2014,REV,KINGSTON ACCESSIBILITY TRAN LT
725,CS -Oth Operating Inc & Expend,T/A Vehicle Maintenance etc,Transport-Contract Hire,J01374,Transport Related Expenditure ,Contract Hire and Op Leasing  ,CC64,HIRING TRANSPORT SEN CABS               ,"2,685.24",31/10/2014,REV,KINGSTON ACCESSIBILITY TRAN LT
726,CS -Oth Operating Inc & Expend,T/A Vehicle Maintenance etc,Transport-Contract Hire,J01374,Transport Related Expenditure ,Contract Hire and Op Leasing  ,CC64,HIRING TRANSPORT SEN CABS               ,"3,164.00",30/09/2014,REV,BARCLAYS ASSET & SALES FINANCE
727,CS -Oth Operating Inc & Expend,T/A Vehicle Maintenance etc,Transport-Contract Hire,J01374,Transport Related Expenditure ,Contract Hire and Op Leasing  ,CC64,HIRING TRANSPORT SEN CABS               ,"1,220.00",30/09/2014,REV,NVCAR HIRE LTD                
728,CS -Oth Operating Inc & Expend,T/A Vehicle Maintenance etc,Transport-Contract Hire,J01374,Transport Related Expenditure ,Contract Hire and Op Leasing  ,CC64,HIRING TRANSPORT SEN CABS               ,"1,710.00",30/09/2014,REV,CAPITAL CARS                  
729,CS -Oth Operating Inc & Expend,T/A Vehicle Maintenance etc,Transport-Contract Hire,J01374,Transport Related Expenditure ,Contract Hire and Op Leasing  ,CC64,HIRING TRANSPORT SEN CABS               ,"2,682.42",30/09/2014,REV,KINGSTON ACCESSIBILITY TRAN LT
730,CS -Oth Operating Inc & Expend,T/A Vehicle Maintenance etc,Transport-Contract Hire,J01374,Transport Related Expenditure ,Contract Hire and Op Leasing  ,CC64,HIRING TRANSPORT SEN CABS               ,"1,799.64",31/10/2014,REV,KINGSTON ACCESSIBILITY TRAN LT
731,CS -Oth Operating Inc & Expend,T/A Vehicle Maintenance etc,Transport-Contract Hire,J01374,Transport Related Expenditure ,Contract Hire and Op Leasing  ,CC64,HIRING TRANSPORT SEN CABS               ,762.5,30/09/2014,REV,GALPINS SERVICE               
732,CS -Oth Operating Inc & Expend,T/A Vehicle Maintenance etc,Transport-Contract Hire,J01374,Transport Related Expenditure ,Contract Hire and Op Leasing  ,CC64,HIRING TRANSPORT SEN CABS               ,"1,210.00",30/09/2014,REV,KINGSTON ACCESSIBILITY TRAN LT
733,CS -Oth Operating Inc & Expend,T/A Vehicle Maintenance etc,Transport-Contract Hire,J01374,Transport Related Expenditure ,Contract Hire and Op Leasing  ,CC64,HIRING TRANSPORT SEN CABS               ,665,01/10/2014,REV,AERIAL CAR SERVICES LTD       
734,CS -Oth Operating Inc & Expend,T/A Vehicle Maintenance etc,Transport-Contract Hire,J01374,Transport Related Expenditure ,Contract Hire and Op Leasing  ,CC64,HIRING TRANSPORT SEN CABS               ,"2,859.90",27/09/2014,REV,WALLINGTON CARS & COURIERS LTD
735,CS -Oth Operating Inc & Expend,T/A Vehicle Maintenance etc,Transport-Contract Hire,J01374,Transport Related Expenditure ,Contract Hire and Op Leasing  ,CC64,HIRING TRANSPORT SEN CABS               ,"2,134.86",31/10/2014,REV,KINGSTON ACCESSIBILITY TRAN LT
736,CS -Oth Operating Inc & Expend,T/A Vehicle Maintenance etc,Transport-Contract Hire,J01374,Transport Related Expenditure ,Contract Hire and Op Leasing  ,CC64,HIRING TRANSPORT SEN CABS               ,"1,980.00",30/09/2014,REV,SHERWOOD TRANSPORT GROUP      
737,CS -Oth Operating Inc & Expend,T/A Vehicle Maintenance etc,Transport-Contract Hire,J01374,Transport Related Expenditure ,Contract Hire and Op Leasing  ,CC64,HIRING TRANSPORT SEN CABS               ,"3,040.00",30/09/2014,REV,SILVERBURN FINANCE (UK) LTD   
738,CS -Oth Operating Inc & Expend,T/A Vehicle Maintenance etc,Transport-Contract Hire,J01374,Transport Related Expenditure ,Contract Hire and Op Leasing  ,CC64,HIRING TRANSPORT SEN CABS               ,"1,110.00",30/09/2014,REV,CAPITAL CARS                  
739,CS -Oth Operating Inc & Expend,T/A Vehicle Maintenance etc,Transport-Contract Hire,J01374,Transport Related Expenditure ,Contract Hire and Op Leasing  ,CC64,HIRING TRANSPORT SEN CABS               ,760,30/09/2014,REV,SILVERBURN FINANCE (UK) LTD   
740,CS -Oth Operating Inc & Expend,T/A Vehicle Maintenance etc,Transport-Contract Hire,J01374,Transport Related Expenditure ,Contract Hire and Op Leasing  ,CC64,HIRING TRANSPORT SEN CABS               ,836,30/09/2014,REV,NVCAR HIRE LTD                
741,CS -Oth Operating Inc & Expend,T/A Vehicle Maintenance etc,Transport-Contract Hire,J01374,Transport Related Expenditure ,Contract Hire and Op Leasing  ,CC64,HIRING TRANSPORT SEN CABS               ,"2,380.00",30/09/2014,REV,BARCLAYS ASSET & SALES FINANCE
742,CS -Oth Operating Inc & Expend,T/A Vehicle Maintenance etc,Transport-Contract Hire,J01374,Transport Related Expenditure ,Contract Hire and Op Leasing  ,CC64,HIRING TRANSPORT SEN CABS               ,"1,710.00",30/09/2014,REV,BARCLAYS ASSET & SALES FINANCE
743,CS -Oth Operating Inc & Expend,T/A Vehicle Maintenance etc,Transport-Contract Hire,J01374,Transport Related Expenditure ,Contract Hire and Op Leasing  ,CC64,HIRING TRANSPORT SEN CABS               ,"1,596.00",30/09/2014,REV,CAPITAL CARS                  
744,CS -Oth Operating Inc & Expend,T/A Vehicle Maintenance etc,Transport-Contract Hire,J01374,Transport Related Expenditure ,Contract Hire and Op Leasing  ,CC64,HIRING TRANSPORT SEN CABS               ,"1,400.00",30/09/2014,REV,SILVERBURN FINANCE (UK) LTD   
745,CS -Oth Operating Inc & Expend,T/A Vehicle Maintenance etc,Transport-Contract Hire,J01374,Transport Related Expenditure ,Contract Hire and Op Leasing  ,CC64,HIRING TRANSPORT SEN CABS               ,"1,218.00",30/09/2014,REV,NVCAR HIRE LTD                
746,CS -Oth Operating Inc & Expend,T/A Vehicle Maintenance etc,Transport-Contract Hire,J01374,Transport Related Expenditure ,Contract Hire and Op Leasing  ,CC64,HIRING TRANSPORT SEN CABS               ,"1,045.00",30/09/2014,REV,SHERWOOD TRANSPORT GROUP      
747,CS -Oth Operating Inc & Expend,T/A Vehicle Maintenance etc,Transport-Contract Hire,J01374,Transport Related Expenditure ,Contract Hire and Op Leasing  ,CC64,HIRING TRANSPORT SEN CABS               ,"2,016.00",24/09/2014,REV,CALVERTON FACTORS LTD         
748,CS -Oth Operating Inc & Expend,T/A Vehicle Maintenance etc,Transport-Contract Hire,J01374,Transport Related Expenditure ,Contract Hire and Op Leasing  ,CC64,HIRING TRANSPORT SEN CABS               ,"1,135.08",31/10/2014,REV,KINGSTON ACCESSIBILITY TRAN LT
749,CS -Oth Operating Inc & Expend,T/A Vehicle Maintenance etc,Transport-Contract Hire,J01374,Transport Related Expenditure ,Contract Hire and Op Leasing  ,CC64,HIRING TRANSPORT SEN CABS               ,"1,428.00",30/09/2014,REV,NVCAR HIRE LTD                
750,CS -Oth Operating Inc & Expend,T/A Vehicle Maintenance etc,Transport-Contract Hire,J01374,Transport Related Expenditure ,Contract Hire and Op Leasing  ,CC64,HIRING TRANSPORT SEN CABS               ,"1,250.00",30/09/2014,REV,NVCAR HIRE LTD                
751,CS -Oth Operating Inc & Expend,T/A Vehicle Maintenance etc,Transport-Contract Hire,J01374,Transport Related Expenditure ,Contract Hire and Op Leasing  ,CC64,HIRING TRANSPORT SEN CABS               ,912,30/09/2014,REV,NVCAR HIRE LTD                
752,CS -Oth Operating Inc & Expend,T/A Vehicle Maintenance etc,Transport-Contract Hire,J01374,Transport Related Expenditure ,Contract Hire and Op Leasing  ,CC64,HIRING TRANSPORT SEN CABS               ,"3,180.00",30/09/2014,REV,SHERWOOD TRANSPORT GROUP      
753,CS -Oth Operating Inc & Expend,T/A Vehicle Maintenance etc,Transport-Contract Hire,J01374,Transport Related Expenditure ,Contract Hire and Op Leasing  ,CC64,HIRING TRANSPORT SEN CABS               ,"1,386.00",30/09/2014,REV,NVCAR HIRE LTD                
754,CS -Oth Operating Inc & Expend,T/A Vehicle Maintenance etc,Transport-Contract Hire,J01374,Transport Related Expenditure ,Contract Hire and Op Leasing  ,CC64,HIRING TRANSPORT SEN CABS               ,"2,380.00",30/09/2014,REV,BRUNSWICK CARS LTD            
755,CS -Oth Operating Inc & Expend,T/A Vehicle Maintenance etc,Transport-Contract Hire,J01374,Transport Related Expenditure ,Contract Hire and Op Leasing  ,CC64,HIRING TRANSPORT SEN CABS               ,962,30/09/2014,REV,CAPITAL CARS                  
756,CS -Oth Operating Inc & Expend,T/A Vehicle Maintenance etc,Transport-Contract Hire,J01374,Transport Related Expenditure ,Contract Hire and Op Leasing  ,CC64,HIRING TRANSPORT SEN CABS               ,"1,000.00",30/09/2014,REV,NVCAR HIRE LTD                
757,CS -Oth Operating Inc & Expend,T/A Vehicle Maintenance etc,Transport-Contract Hire,J01374,Transport Related Expenditure ,Contract Hire and Op Leasing  ,CC64,HIRING TRANSPORT SEN CABS               ,990,30/09/2014,REV,CAPITAL CARS                  
758,CS -Oth Operating Inc & Expend,T/A Vehicle Maintenance etc,Transport-Contract Hire,J01374,Transport Related Expenditure ,Contract Hire and Op Leasing  ,CC64,HIRING TRANSPORT SEN CABS               ,"1,920.00",30/09/2014,REV,CHEAM STATION CARS            
759,CS -Oth Operating Inc & Expend,T/A Vehicle Maintenance etc,Transport-Contract Hire,J01374,Transport Related Expenditure ,Contract Hire and Op Leasing  ,CC64,HIRING TRANSPORT SEN CABS               ,"1,582.00",30/09/2014,REV,SILVERBURN FINANCE (UK) LTD   
760,CS -Oth Operating Inc & Expend,T/A Vehicle Maintenance etc,Transport-Contract Hire,J01374,Transport Related Expenditure ,Contract Hire and Op Leasing  ,CC64,HIRING TRANSPORT SEN CABS               ,"1,920.00",30/09/2014,REV,SILVERBURN FINANCE (UK) LTD   
761,CS -Oth Operating Inc & Expend,T/A Vehicle Maintenance etc,Transport-Contract Hire,J01374,Transport Related Expenditure ,Contract Hire and Op Leasing  ,CC64,HIRING TRANSPORT SEN CABS               ,"2,722.42",30/09/2014,REV,KINGSTON ACCESSIBILITY TRAN LT
762,CS -Oth Operating Inc & Expend,T/A Vehicle Maintenance etc,Transport-Contract Hire,J01374,Transport Related Expenditure ,Contract Hire and Op Leasing  ,CC64,HIRING TRANSPORT SEN CABS               ,"1,118.00",30/09/2014,REV,NVCAR HIRE LTD                
763,CS -Oth Operating Inc & Expend,T/A Vehicle Maintenance etc,Transport-Contract Hire,J01374,Transport Related Expenditure ,Contract Hire and Op Leasing  ,CC64,HIRING TRANSPORT SEN CABS               ,"2,688.00",30/09/2014,REV,A STAR TRANSPORT LIMITED      
764,CS -Oth Operating Inc & Expend,T/A Vehicle Maintenance etc,Transport-Contract Hire,J01374,Transport Related Expenditure ,Contract Hire and Op Leasing  ,CC64,HIRING TRANSPORT SEN CABS               ,"1,798.20",31/10/2014,REV,KINGSTON ACCESSIBILITY TRAN LT
765,CS -Oth Operating Inc & Expend,T/A Vehicle Maintenance etc,Transport-Contract Hire,J01374,Transport Related Expenditure ,Contract Hire and Op Leasing  ,CC64,HIRING TRANSPORT SEN CABS               ,"2,072.30",30/09/2014,REV,KINGSTON ACCESSIBILITY TRAN LT
766,CS -Oth Operating Inc & Expend,T/A Vehicle Maintenance etc,Transport-Contract Hire,J01374,Transport Related Expenditure ,Contract Hire and Op Leasing  ,CC64,HIRING TRANSPORT SEN CABS               ,"1,356.26",31/10/2014,REV,KINGSTON ACCESSIBILITY TRAN LT
767,CS -Oth Operating Inc & Expend,T/A Vehicle Maintenance etc,Transport-Contract Hire,J01374,Transport Related Expenditure ,Contract Hire and Op Leasing  ,CC64,HIRING TRANSPORT SEN CABS               ,"2,509.50",30/09/2014,REV,KINGSTON ACCESSIBILITY TRAN LT
768,CS -Oth Operating Inc & Expend,T/A Vehicle Maintenance etc,Transport-Contract Hire,J01374,Transport Related Expenditure ,Contract Hire and Op Leasing  ,CC64,HIRING TRANSPORT SEN CABS               ,"1,111.50",30/09/2014,REV,SHERWOOD TRANSPORT GROUP      
769,CS -Oth Operating Inc & Expend,T/A Vehicle Maintenance etc,Transport-Contract Hire,J01374,Transport Related Expenditure ,Contract Hire and Op Leasing  ,CC64,HIRING TRANSPORT SEN CABS               ,"1,880.00",30/09/2014,REV,CAPITAL CARS                  
770,CS -Oth Operating Inc & Expend,T/A Vehicle Maintenance etc,Transport-Contract Hire,J01374,Transport Related Expenditure ,Contract Hire and Op Leasing  ,CC64,HIRING TRANSPORT SEN CABS               ,"2,009.28",30/09/2014,REV,KINGSTON ACCESSIBILITY TRAN LT
771,CS -Oth Operating Inc & Expend,T/A Vehicle Maintenance etc,Transport-Contract Hire,J01374,Transport Related Expenditure ,Contract Hire and Op Leasing  ,CC64,HIRING TRANSPORT SEN CABS               ,580,30/09/2014,REV,GALPINS SERVICE               
772,CS -Oth Operating Inc & Expend,T/A Vehicle Maintenance etc,Transport-Contract Hire,J01374,Transport Related Expenditure ,Contract Hire and Op Leasing  ,CC64,HIRING TRANSPORT SEN CABS               ,"1,449.00",30/09/2014,REV,NVCAR HIRE LTD                
773,CS -Oth Operating Inc & Expend,T/A Vehicle Maintenance etc,Transport-Contract Hire,J01374,Transport Related Expenditure ,Contract Hire and Op Leasing  ,CC64,HIRING TRANSPORT SEN CABS               ,"2,600.00",30/09/2014,REV,CAPITAL CARS                  
774,CS -Oth Operating Inc & Expend,T/A Vehicle Maintenance etc,Transport-Contract Hire,J01374,Transport Related Expenditure ,Contract Hire and Op Leasing  ,CC64,HIRING TRANSPORT SEN CABS               ,"5,603.00",30/09/2014,REV,PREMIER CARS                  
775,CS -Oth Operating Inc & Expend,T/A Vehicle Maintenance etc,Transport-Contract Hire,J01374,Transport Related Expenditure ,Contract Hire and Op Leasing  ,CC64,HIRING TRANSPORT SEN CABS               ,"3,120.00",30/09/2014,REV,BRUNSWICK CARS LTD            
776,CS -Oth Operating Inc & Expend,T/A Vehicle Maintenance etc,Transport-Contract Hire,J01374,Transport Related Expenditure ,Contract Hire and Op Leasing  ,CC64,HIRING TRANSPORT SEN CABS               ,"1,778.00",30/09/2014,REV,CHEAM STATION CARS            
777,CS -Oth Operating Inc & Expend,T/A Vehicle Maintenance etc,Transport-Contract Hire,J01374,Transport Related Expenditure ,Contract Hire and Op Leasing  ,CC64,HIRING TRANSPORT SEN CABS               ,"1,712.00",30/09/2014,REV,A STAR TRANSPORT LIMITED      
778,CS -Oth Operating Inc & Expend,T/A Vehicle Maintenance etc,Transport-Contract Hire,J01374,Transport Related Expenditure ,Contract Hire and Op Leasing  ,CC64,HIRING TRANSPORT SEN CABS               ,"1,580.00",30/09/2014,REV,SHERWOOD TRANSPORT GROUP      
779,CS -Oth Operating Inc & Expend,T/A Vehicle Maintenance etc,Transport-Contract Hire,J01374,Transport Related Expenditure ,Contract Hire and Op Leasing  ,CC64,HIRING TRANSPORT SEN CABS               ,780,30/09/2014,REV,SILVERBURN FINANCE (UK) LTD   
780,CS -Oth Operating Inc & Expend,T/A Vehicle Maintenance etc,Transport-Contract Hire,J01374,Transport Related Expenditure ,Contract Hire and Op Leasing  ,CC64,HIRING TRANSPORT SEN CABS               ,836,01/10/2014,REV,AERIAL CAR SERVICES LTD       
781,CS -Oth Operating Inc & Expend,T/A Vehicle Maintenance etc,Transport-Contract Hire,J01374,Transport Related Expenditure ,Contract Hire and Op Leasing  ,CC64,HIRING TRANSPORT SEN CABS               ,"2,278.00",30/09/2014,REV,NVCAR HIRE LTD                
782,CS -Oth Operating Inc & Expend,T/A Vehicle Maintenance etc,Transport-Contract Hire,J01374,Transport Related Expenditure ,Contract Hire and Op Leasing  ,CC64,HIRING TRANSPORT SEN CABS               ,866.46,30/09/2014,REV,KINGSTON ACCESSIBILITY TRAN LT
783,CS -Oth Operating Inc & Expend,T/A Vehicle Maintenance etc,Transport-Contract Hire,J01374,Transport Related Expenditure ,Contract Hire and Op Leasing  ,CC64,HIRING TRANSPORT SEN CABS               ,"2,228.04",31/10/2014,REV,KINGSTON ACCESSIBILITY TRAN LT
784,CS -Oth Operating Inc & Expend,T/A Vehicle Maintenance etc,Transport-Contract Hire,J01374,Transport Related Expenditure ,Contract Hire and Op Leasing  ,CC64,HIRING TRANSPORT SEN CABS               ,"1,764.00",31/10/2014,REV,KINGSTON ACCESSIBILITY TRAN LT
785,CS -Oth Operating Inc & Expend,T/A Vehicle Maintenance etc,Transport-Contract Hire,J01374,Transport Related Expenditure ,Contract Hire and Op Leasing  ,CC64,HIRING TRANSPORT SEN CABS               ,"2,097.90",30/09/2014,REV,KINGSTON ACCESSIBILITY TRAN LT
786,CS -Oth Operating Inc & Expend,T/A Vehicle Maintenance etc,Transport-Contract Hire,J01374,Transport Related Expenditure ,Contract Hire and Op Leasing  ,CC64,HIRING TRANSPORT SEN CABS               ,"1,570.00",30/09/2014,REV,CAPITAL CARS                  
787,CS -Oth Operating Inc & Expend,T/A Vehicle Maintenance etc,Transport-Contract Hire,J01374,Transport Related Expenditure ,Contract Hire and Op Leasing  ,CC64,HIRING TRANSPORT SEN CABS               ,"2,014.00",30/09/2014,REV,CAPITAL CARS                  
788,CS -Oth Operating Inc & Expend,T/A Vehicle Maintenance etc,Transport-Contract Hire,J01374,Transport Related Expenditure ,Contract Hire and Op Leasing  ,CC64,HIRING TRANSPORT SEN CABS               ,"2,541.24",31/10/2014,REV,KINGSTON ACCESSIBILITY TRAN LT
789,CS -Oth Operating Inc & Expend,T/A Vehicle Maintenance etc,Transport-Contract Hire,J01374,Transport Related Expenditure ,Contract Hire and Op Leasing  ,CC64,HIRING TRANSPORT SEN CABS               ,"1,363.00",30/09/2014,REV,CAPITAL CARS                  
790,CS -Oth Operating Inc & Expend,T/A Vehicle Maintenance etc,Transport-Contract Hire,J01374,Transport Related Expenditure ,Contract Hire and Op Leasing  ,CC64,HIRING TRANSPORT SEN CABS               ,"1,760.00",30/09/2014,REV,SILVERBURN FINANCE (UK) LTD   
791,CS -Oth Operating Inc & Expend,T/A Vehicle Maintenance etc,Transport-Contract Hire,J01374,Transport Related Expenditure ,Contract Hire and Op Leasing  ,CC64,HIRING TRANSPORT SEN CABS               ,"3,314.83",31/10/2014,REV,KINGSTON ACCESSIBILITY TRAN LT
792,CS -Oth Operating Inc & Expend,T/A Vehicle Maintenance etc,Transport-Contract Hire,J01374,Transport Related Expenditure ,Contract Hire and Op Leasing  ,CC64,HIRING TRANSPORT SEN CABS               ,"2,800.00",06/10/2014,REV,BARCLAYS ASSET & SALES FINANCE
793,CS -Oth Operating Inc & Expend,T/A Vehicle Maintenance etc,Transport-Contract Hire,J01374,Transport Related Expenditure ,Contract Hire and Op Leasing  ,CC64,HIRING TRANSPORT SEN CABS               ,"1,134.00",30/09/2014,REV,NVCAR HIRE LTD                
794,CS -Oth Operating Inc & Expend,T/A Vehicle Maintenance etc,Transport-Contract Hire,J01374,Transport Related Expenditure ,Contract Hire and Op Leasing  ,CC64,HIRING TRANSPORT SEN CABS               ,"3,885.00",09/10/2014,REV,THE IMPACT GROUP PLC          
795,CS -Oth Operating Inc & Expend,T/A Vehicle Maintenance etc,Transport-Contract Hire,J01374,Transport Related Expenditure ,Contract Hire and Op Leasing  ,CC64,HIRING TRANSPORT SEN CABS               ,"1,704.00",30/09/2014,REV,CAPITAL CARS                  
796,CS -Oth Operating Inc & Expend,T/A Vehicle Maintenance etc,Transport-Contract Hire,J01374,Transport Related Expenditure ,Contract Hire and Op Leasing  ,CC67,HIRING TRANSPORT H&SS CAB ADULTS        ,666,30/09/2014,REV,CAPITAL CARS                  
797,CS -Oth Operating Inc & Expend,T/A Vehicle Maintenance etc,Transport-Contract Hire,J01374,Transport Related Expenditure ,Contract Hire and Op Leasing  ,CC67,HIRING TRANSPORT H&SS CAB ADULTS        ,841,30/09/2014,REV,NVCAR HIRE LTD                
798,CS -Oth Operating Inc & Expend,T/A Vehicle Maintenance etc,Transport-Contract Hire,J01374,Transport Related Expenditure ,Contract Hire and Op Leasing  ,CC67,HIRING TRANSPORT H&SS CAB ADULTS        ,893,30/09/2014,REV,CAPITAL CARS                  
799,CS -Oth Operating Inc & Expend,T/A Vehicle Maintenance etc,Transport-Contract Hire,J01374,Transport Related Expenditure ,Contract Hire and Op Leasing  ,CC67,HIRING TRANSPORT H&SS CAB ADULTS        ,980,30/09/2014,REV,KINGSTON ACCESSIBILITY TRAN LT
800,CS -Oth Operating Inc & Expend,T/A Vehicle Maintenance etc,Transport-Contract Hire,J01374,Transport Related Expenditure ,Contract Hire and Op Leasing  ,CC67,HIRING TRANSPORT H&SS CAB ADULTS        ,828,30/09/2014,REV,SILVERBURN FINANCE (UK) LTD   
801,CS -Oth Operating Inc & Expend,T/A Vehicle Maintenance etc,Transport-Contract Hire,J01374,Transport Related Expenditure ,Contract Hire and Op Leasing  ,CC67,HIRING TRANSPORT H&SS CAB ADULTS        ,702,30/09/2014,REV,NVCAR HIRE LTD                
802,CS -Oth Operating Inc & Expend,T/A Vehicle Maintenance etc,Transport-Contract Hire,J01374,Transport Related Expenditure ,Contract Hire and Op Leasing  ,CC67,HIRING TRANSPORT H&SS CAB ADULTS        ,924,30/09/2014,REV,A STAR TRANSPORT LIMITED      
803,CS -Oth Operating Inc & Expend,T/A Vehicle Maintenance etc,Transport-Contract Hire,J01374,Transport Related Expenditure ,Contract Hire and Op Leasing  ,CC67,HIRING TRANSPORT H&SS CAB ADULTS        ,966,30/09/2014,REV,CAPITAL CARS                  
804,CS -Oth Operating Inc & Expend,T/A Vehicle Maintenance etc,Transport-Contract Hire,J01374,Transport Related Expenditure ,Contract Hire and Op Leasing  ,CC67,HIRING TRANSPORT H&SS CAB ADULTS        ,560,30/09/2014,REV,BARCLAYS ASSET & SALES FINANCE
805,CS -Oth Operating Inc & Expend,T/A Vehicle Maintenance etc,Transport-Contract Hire,J01374,Transport Related Expenditure ,Contract Hire and Op Leasing  ,CC67,HIRING TRANSPORT H&SS CAB ADULTS        ,662.5,30/09/2014,REV,KINGSTON ACCESSIBILITY TRAN LT
806,CS -Oth Operating Inc & Expend,T/A Vehicle Maintenance etc,Transport-Contract Hire,J01374,Transport Related Expenditure ,Contract Hire and Op Leasing  ,CC67,HIRING TRANSPORT H&SS CAB ADULTS        ,"1,457.50",31/10/2014,REV,KINGSTON ACCESSIBILITY TRAN LT
807,CS -Oth Operating Inc & Expend,T/A Vehicle Maintenance etc,Transport-Contract Hire,J01374,Transport Related Expenditure ,Contract Hire and Op Leasing  ,CC67,HIRING TRANSPORT H&SS CAB ADULTS        ,"1,088.00",30/09/2014,REV,A STAR TRANSPORT LIMITED      
808,CS -Oth Operating Inc & Expend,T/A Vehicle Maintenance etc,Transport-Contract Hire,J01374,Transport Related Expenditure ,Contract Hire and Op Leasing  ,CC67,HIRING TRANSPORT H&SS CAB ADULTS        ,"1,750.00",30/09/2014,REV,SHERWOOD TRANSPORT GROUP      
809,CS -Oth Operating Inc & Expend,T/A Vehicle Maintenance etc,Transport-Contract Hire,J01374,Transport Related Expenditure ,Contract Hire and Op Leasing  ,CC67,HIRING TRANSPORT H&SS CAB ADULTS        ,669.8,30/09/2014,REV,KINGSTON ACCESSIBILITY TRAN LT
810,CS -Oth Operating Inc & Expend,T/A Vehicle Maintenance etc,Transport-Contract Hire,J01374,Transport Related Expenditure ,Contract Hire and Op Leasing  ,CC67,HIRING TRANSPORT H&SS CAB ADULTS        ,"1,104.00",09/10/2014,REV,CAPITAL CARS                  
811,CS -Oth Operating Inc & Expend,T/A Vehicle Maintenance etc,Transport-Contract Hire,J01374,Transport Related Expenditure ,Contract Hire and Op Leasing  ,CC67,HIRING TRANSPORT H&SS CAB ADULTS        ,"1,088.00",30/09/2014,REV,CHEAM STATION CARS            
812,CS -Oth Operating Inc & Expend,T/A Vehicle Maintenance etc,Transport-Contract Hire,J01374,Transport Related Expenditure ,Contract Hire and Op Leasing  ,CC67,HIRING TRANSPORT H&SS CAB ADULTS        ,880,01/10/2014,REV,AERIAL CAR SERVICES LTD       
813,CS -Oth Operating Inc & Expend,T/A Vehicle Maintenance etc,Transport-Contract Hire,J01374,Transport Related Expenditure ,Contract Hire and Op Leasing  ,CC67,HIRING TRANSPORT H&SS CAB ADULTS        ,684,30/09/2014,REV,NVCAR HIRE LTD                
814,CS -Oth Operating Inc & Expend,T/A Vehicle Maintenance etc,Transport-Contract Hire,J01374,Transport Related Expenditure ,Contract Hire and Op Leasing  ,CC67,HIRING TRANSPORT H&SS CAB ADULTS        ,"1,329.60",31/10/2014,REV,KINGSTON ACCESSIBILITY TRAN LT
815,CS -Oth Operating Inc & Expend,T/A Vehicle Maintenance etc,Transport-Contract Hire,J01374,Transport Related Expenditure ,Contract Hire and Op Leasing  ,CC67,HIRING TRANSPORT H&SS CAB ADULTS        ,756,30/09/2014,REV,CAPITAL CARS                  
816,CS -Oth Operating Inc & Expend,T/A Vehicle Maintenance etc,Transport-Contract Hire,J01374,Transport Related Expenditure ,Contract Hire and Op Leasing  ,CC67,HIRING TRANSPORT H&SS CAB ADULTS        ,602,30/09/2014,REV,SILVERBURN FINANCE (UK) LTD   
817,CS -Oth Operating Inc & Expend,T/A Vehicle Maintenance etc,Transport-Contract Hire,J01374,Transport Related Expenditure ,Contract Hire and Op Leasing  ,CC67,HIRING TRANSPORT H&SS CAB ADULTS        ,"1,820.00",30/09/2014,REV,SHERWOOD TRANSPORT GROUP      
818,CS -Oth Operating Inc & Expend,T/A Vehicle Maintenance etc,Transport-Contract Hire,J01374,Transport Related Expenditure ,Contract Hire and Op Leasing  ,CC67,HIRING TRANSPORT H&SS CAB ADULTS        ,910,31/10/2014,REV,KINGSTON ACCESSIBILITY TRAN LT
819,CS -Oth Operating Inc & Expend,T/A Vehicle Maintenance etc,Transport-Contract Hire,J01374,Transport Related Expenditure ,Contract Hire and Op Leasing  ,CC67,HIRING TRANSPORT H&SS CAB ADULTS        ,"1,172.00",30/09/2014,REV,NVCAR HIRE LTD                
820,CS -Oth Operating Inc & Expend,T/A Vehicle Maintenance etc,Transport-Contract Hire,J01374,Transport Related Expenditure ,Contract Hire and Op Leasing  ,CC67,HIRING TRANSPORT H&SS CAB ADULTS        ,"1,180.00",30/09/2014,REV,CAPITAL CARS                  
821,CS -Oth Operating Inc & Expend,T/A Vehicle Maintenance etc,Transport-Contract Hire,J01374,Transport Related Expenditure ,Contract Hire and Op Leasing  ,CC68,HIRING TRANSPORT SEN COLLEGES CABS      ,660,30/09/2014,REV,PREMIER CARS                  
822,CS -Oth Operating Inc & Expend,T/A Vehicle Maintenance etc,Transport-Contract Hire,J01374,Transport Related Expenditure ,Contract Hire and Op Leasing  ,CC68,HIRING TRANSPORT SEN COLLEGES CABS      ,"1,973.70",30/09/2014,REV,KINGSTON ACCESSIBILITY TRAN LT
823,CS -Oth Operating Inc & Expend,T/A Vehicle Maintenance etc,Transport-Contract Hire,J01374,Transport Related Expenditure ,Contract Hire and Op Leasing  ,CC68,HIRING TRANSPORT SEN COLLEGES CABS      ,700,30/09/2014,REV,NVCAR HIRE LTD                
824,CS -Oth Operating Inc & Expend,T/A Vehicle Maintenance etc,Transport-Contract Hire,J01374,Transport Related Expenditure ,Contract Hire and Op Leasing  ,CC68,HIRING TRANSPORT SEN COLLEGES CABS      ,981.6,30/09/2014,REV,SILVERBURN FINANCE (UK) LTD   
825,CS -Oth Operating Inc & Expend,T/A Vehicle Maintenance etc,Transport-Contract Hire,J01374,Transport Related Expenditure ,Contract Hire and Op Leasing  ,CC68,HIRING TRANSPORT SEN COLLEGES CABS      ,"1,038.00",30/09/2014,REV,SILVERBURN FINANCE (UK) LTD   
826,CS -Oth Operating Inc & Expend,T/A Vehicle Maintenance etc,Transport-Contract Hire,J01374,Transport Related Expenditure ,Contract Hire and Op Leasing  ,CC68,HIRING TRANSPORT SEN COLLEGES CABS      ,"2,368.44",31/10/2014,REV,KINGSTON ACCESSIBILITY TRAN LT
827,CS -Oth Operating Inc & Expend,T/A Vehicle Maintenance etc,Transport-Contract Hire,J01374,Transport Related Expenditure ,Contract Hire and Op Leasing  ,CC68,HIRING TRANSPORT SEN COLLEGES CABS      ,"1,840.00",30/09/2014,REV,SILVERBURN FINANCE (UK) LTD   
828,CS -Oth Operating Inc & Expend,T/A Vehicle Maintenance etc,Transport-Workshop,J01376,Employees                     ,Indirect Employee Expenses    ,AB02,Recruitment Adverts                     ,564,30/09/2014,REV,PENNA COMMUNICATIONS (NO 2 A/C
829,CS -Oth Operating Inc & Expend,T/A Vehicle Maintenance etc,Transport-Workshop,J01376,Transport Related Expenditure ,Contract Hire and Op Leasing  ,CC60,Vehicle Hire for LB Sutton              ,"2,480.00",30/09/2014,REV,BARCLAYS ASSET & SALES FINANCE
830,CS -Oth Operating Inc & Expend,T/A Vehicle Maintenance etc,Transport-Workshop,J01376,Transport Related Expenditure ,Contract Hire and Op Leasing  ,CC60,Vehicle Hire for LB Sutton              ,"2,584.00",30/09/2014,REV,CAPITAL CARS                  
831,CS -Oth Operating Inc & Expend,T/A Vehicle Maintenance etc,Transport-Workshop,J01376,Transport Related Expenditure ,Contract Hire and Op Leasing  ,CC60,Vehicle Hire for LB Sutton              ,"5,456.00",30/09/2014,REV,BARCLAYS ASSET & SALES FINANCE
832,CS -Oth Operating Inc & Expend,T/A Vehicle Maintenance etc,Transport-Workshop,J01376,Transport Related Expenditure ,Contract Hire and Op Leasing  ,CC65,Vehicle Hire for Education              ,"2,352.00",30/09/2014,REV,BARCLAYS ASSET & SALES FINANCE
833,CS -Oth Operating Inc & Expend,T/A Vehicle Maintenance etc,Transport-Workshop,J01376,Supplies & Services           ,Comms and Computing           ,DG07,Computer Software                       ,"7,147.55",01/10/2014,REV,KAPPA LAMBDA SQUARED LTD      
834,CS -Oth Operating Inc & Expend,T/A Vehicle Maintenance etc,Vehicle Workshops,J01378,Employees                     ,Direct Employee Expenses      ,AA17,Agency Staff & Casual Paymts            ,640,24/09/2014,REV,REDACTED
835,CS -Oth Operating Inc & Expend,T/A Vehicle Maintenance etc,Vehicle Workshops,J01378,Employees                     ,Direct Employee Expenses      ,AA17,Agency Staff & Casual Paymts            ,660,15/10/2014,REV,REDACTED
836,CS -Oth Operating Inc & Expend,T/A Vehicle Maintenance etc,Vehicle Workshops,J01378,Employees                     ,Direct Employee Expenses      ,AA17,Agency Staff & Casual Paymts            ,660,24/09/2014,REV,REDACTED
837,CS -Oth Operating Inc & Expend,T/A Vehicle Maintenance etc,Vehicle Workshops,J01378,Employees                     ,Direct Employee Expenses      ,AA17,Agency Staff & Casual Paymts            ,660,08/10/2014,REV,REDACTED
838,CS -Oth Operating Inc & Expend,T/A Vehicle Maintenance etc,Vehicle Workshops,J01378,Employees                     ,Direct Employee Expenses      ,AA17,Agency Staff & Casual Paymts            ,640,08/10/2014,REV,REDACTED
839,CS -Oth Operating Inc & Expend,T/A Vehicle Maintenance etc,Vehicle Workshops,J01378,Employees                     ,Direct Employee Expenses      ,AA17,Agency Staff & Casual Paymts            ,693,01/10/2014,REV,REDACTED
840,CS -Oth Operating Inc & Expend,T/A Vehicle Maintenance etc,Vehicle Workshops,J01378,Employees                     ,Direct Employee Expenses      ,AA17,Agency Staff & Casual Paymts            ,640,01/10/2014,REV,REDACTED
841,CS -Oth Operating Inc & Expend,T/A Vehicle Maintenance etc,Vehicle Workshops,J01378,Employees                     ,Direct Employee Expenses      ,AA17,Agency Staff & Casual Paymts            ,640,15/10/2014,REV,REDACTED
842,CS -Oth Operating Inc & Expend,T/A Vehicle Maintenance etc,Vehicle Workshops,J01378,Employees                     ,Indirect Employee Expenses    ,AB02,Recruitment Adverts                     ,"1,349.00",23/09/2014,REV,PENNA COMMUNICATIONS (NO 2 A/C
843,CS -Oth Operating Inc & Expend,T/A Vehicle Maintenance etc,Vehicle Workshops,J01378,Transport Related Expenditure ,Direct Transport Costs        ,CA02,Tyres                                   ,"1,430.00",03/10/2014,REV,MORDEN TYRE SERVICES LTD      
844,CS -Oth Operating Inc & Expend,T/A Vehicle Maintenance etc,Vehicle Workshops,J01378,Transport Related Expenditure ,Direct Transport Costs        ,CA02,Tyres                                   ,"2,180.00",25/09/2014,REV,MORDEN TYRE SERVICES LTD      
845,CS -Oth Operating Inc & Expend,T/A Vehicle Maintenance etc,Vehicle Workshops,J01378,Transport Related Expenditure ,Direct Transport Costs        ,CA02,Tyres                                   ,795,17/10/2014,REV,MORDEN TYRE SERVICES LTD      
846,CS -Oth Operating Inc & Expend,T/A Vehicle Maintenance etc,Vehicle Workshops,J01378,Transport Related Expenditure ,Direct Transport Costs        ,CA02,Tyres                                   ,960,20/10/2014,REV,MORDEN TYRE SERVICES LTD      
847,CS -Oth Operating Inc & Expend,T/A Vehicle Maintenance etc,Vehicle Workshops,J01378,Transport Related Expenditure ,Direct Transport Costs        ,CA02,Tyres                                   ,"1,720.00",20/10/2014,REV,MORDEN TYRE SERVICES LTD      
848,CS -Oth Operating Inc & Expend,T/A Vehicle Maintenance etc,Vehicle Workshops,J01378,Transport Related Expenditure ,Direct Transport Costs        ,CA02,Tyres                                   ,935,26/09/2014,REV,MORDEN TYRE SERVICES LTD      
849,CS -Oth Operating Inc & Expend,T/A Vehicle Maintenance etc,Vehicle Workshops,J01378,Transport Related Expenditure ,Direct Transport Costs        ,CA04,R & M of Veh - General                  ,"2,240.00",30/09/2014,REV,FREIGHT TRANSPORT ASSOCIATION 
850,CS -Oth Operating Inc & Expend,T/A Vehicle Maintenance etc,Vehicle Workshops,J01378,Transport Related Expenditure ,Direct Transport Costs        ,CA04,R & M of Veh - General                  ,"2,033.20",03/10/2014,REV,FREIGHT TRANSPORT ASSOCIATION 
851,CS -Oth Operating Inc & Expend,T/A Vehicle Maintenance etc,Vehicle Workshops,J01378,Transport Related Expenditure ,Direct Transport Costs        ,CA55,Specialist Maint. (Off Site)            ,518.77,15/09/2014,REV,KINGSLEY COMM COMPONENTS LTD  
852,CS -Oth Operating Inc & Expend,T/A Vehicle Maintenance etc,Vehicle Workshops,J01378,Transport Related Expenditure ,Direct Transport Costs        ,CA55,Specialist Maint. (Off Site)            ,696,15/09/2014,REV,KINGSLEY COMM COMPONENTS LTD  
853,CS -Oth Operating Inc & Expend,T/A Vehicle Maintenance etc,Vehicle Workshops,J01378,Transport Related Expenditure ,Direct Transport Costs        ,CA55,Specialist Maint. (Off Site)            ,741.41,29/09/2014,REV,KINGSLEY COMM COMPONENTS LTD  
854,CS -Oth Operating Inc & Expend,T/A Vehicle Maintenance etc,Vehicle Workshops,J01378,Transport Related Expenditure ,Direct Transport Costs        ,CA55,Specialist Maint. (Off Site)            ,599.66,19/09/2014,REV,KINGSLEY COMM COMPONENTS LTD  
855,CS -Oth Operating Inc & Expend,T/A Vehicle Maintenance etc,Vehicle Workshops,J01378,Transport Related Expenditure ,Direct Transport Costs        ,CA55,Specialist Maint. (Off Site)            ,592.77,29/09/2014,REV,KINGSLEY COMM COMPONENTS LTD  
856,CS -Oth Operating Inc & Expend,T/A Vehicle Maintenance etc,Vehicle Workshops,J01378,Transport Related Expenditure ,Direct Transport Costs        ,CA56,Specialist Maint. (On Site)             ,653.75,15/10/2014,REV,R.J.H.WELDING                 
857,CS -Oth Operating Inc & Expend,T/A Vehicle Maintenance etc,Vehicle Workshops,J01378,Transport Related Expenditure ,Direct Transport Costs        ,CA56,Specialist Maint. (On Site)             ,"2,594.50",11/10/2014,REV,AIR-WEIGH EUROPE              
858,CS -Oth Operating Inc & Expend,T/A Vehicle Maintenance etc,Vehicle Workshops,J01378,Transport Related Expenditure ,Direct Transport Costs        ,CA56,Specialist Maint. (On Site)             ,740,15/10/2014,REV,R.J.H.WELDING                 
859,CS -Oth Operating Inc & Expend,T/A Vehicle Maintenance etc,Vehicle Workshops,J01378,Transport Related Expenditure ,Direct Transport Costs        ,CA56,Specialist Maint. (On Site)             ,921.45,21/10/2014,REV,REDACTED
860,CS -Oth Operating Inc & Expend,T/A Vehicle Maintenance etc,Vehicle Workshops,J01378,Transport Related Expenditure ,Direct Transport Costs        ,CA56,Specialist Maint. (On Site)             ,507.15,05/10/2014,REV,REDACTED
861,CS -Oth Operating Inc & Expend,T/A Vehicle Maintenance etc,Vehicle Workshops,J01378,Transport Related Expenditure ,Direct Transport Costs        ,CA56,Specialist Maint. (On Site)             ,770.15,05/10/2014,REV,REDACTED
862,CS -Oth Operating Inc & Expend,T/A Vehicle Maintenance etc,Vehicle Workshops,J01378,Transport Related Expenditure ,Direct Transport Costs        ,CA56,Specialist Maint. (On Site)             ,552.3,19/10/2014,REV,REDACTED
863,CS -Oth Operating Inc & Expend,T/A Vehicle Maintenance etc,Vehicle Workshops,J01378,Transport Related Expenditure ,Direct Transport Costs        ,CA72,Vehicle Parts                           ,581.34,26/09/2014,REV,SIGNS EXPRESS (CROYDON)       
864,CS -Oth Operating Inc & Expend,T/A Vehicle Maintenance etc,Vehicle Workshops,J01378,Transport Related Expenditure ,Direct Transport Costs        ,CA72,Vehicle Parts                           ,519.59,25/09/2014,REV,TENSID UK PLC                 
865,CS -Oth Operating Inc & Expend,T/A Vehicle Maintenance etc,Vehicle Workshops,J01378,Transport Related Expenditure ,Direct Transport Costs        ,CA72,Vehicle Parts                           ,"1,227.64",25/09/2014,REV,NTM GB LIMITED                
866,CS -Oth Operating Inc & Expend,T/A Vehicle Maintenance etc,Vehicle Workshops,J01378,Transport Related Expenditure ,Direct Transport Costs        ,CA72,Vehicle Parts                           ,929.35,20/10/2014,REV,COMMERCIAL & PLANT LTD        
867,CS -Oth Operating Inc & Expend,T/A Vehicle Maintenance etc,Vehicle Workshops,J01378,Transport Related Expenditure ,Direct Transport Costs        ,CA72,Vehicle Parts                           ,"1,144.89",19/09/2014,REV,GEESINK NORBA                 
868,CS -Oth Operating Inc & Expend,T/A Vehicle Maintenance etc,Vehicle Workshops,J01378,Transport Related Expenditure ,Direct Transport Costs        ,CA72,Vehicle Parts                           ,510.74,17/10/2014,REV,JOHNSTON SWEEPERS LIMITED     
869,CS -Oth Operating Inc & Expend,T/A Vehicle Maintenance etc,Vehicle Workshops,J01378,Transport Related Expenditure ,Direct Transport Costs        ,CA72,Vehicle Parts                           ,604.8,01/10/2014,REV,REDACTED
870,CS -Oth Operating Inc & Expend,T/A Vehicle Maintenance etc,Vehicle Workshops,J01378,Transport Related Expenditure ,Direct Transport Costs        ,CA72,Vehicle Parts                           ,593.3,29/09/2014,REV,JD ASSOCIATES                 
871,CS -Oth Operating Inc & Expend,T/A Vehicle Maintenance etc,Vehicle Workshops,J01378,Transport Related Expenditure ,Direct Transport Costs        ,CA72,Vehicle Parts                           ,939.6,14/10/2014,REV,REDACTED
872,CS -Oth Operating Inc & Expend,T/A Vehicle Maintenance etc,Vehicle Workshops,J01378,Transport Related Expenditure ,Direct Transport Costs        ,CA72,Vehicle Parts                           ,"2,581.05",08/10/2014,REV,DENNIS EAGLE LIMITED          
873,CS -Oth Operating Inc & Expend,T/A Vehicle Maintenance etc,Vehicle Workshops,J01378,Transport Related Expenditure ,Direct Transport Costs        ,CA72,Vehicle Parts                           ,"2,930.50",03/10/2014,REV,CBOC LUBRICANTS               
874,CS -Oth Operating Inc & Expend,T/A Vehicle Maintenance etc,Vehicle Workshops,J01378,Transport Related Expenditure ,Direct Transport Costs        ,CA72,Vehicle Parts                           ,"1,561.52",06/10/2014,REV,GEESINK NORBA                 
875,CS -Oth Operating Inc & Expend,T/A Vehicle Maintenance etc,Vehicle Workshops,J01378,Transport Related Expenditure ,Direct Transport Costs        ,CA72,Vehicle Parts                           ,537.52,22/09/2014,REV,DENNIS EAGLE LIMITED          
876,CS -Oth Operating Inc & Expend,T/A Vehicle Maintenance etc,Vehicle Workshops,J01378,Transport Related Expenditure ,Direct Transport Costs        ,CA72,Vehicle Parts                           ,570.2,13/10/2014,REV,COMMERCIAL & PLANT LTD        
877,CS -Oth Operating Inc & Expend,T/A Vehicle Maintenance etc,Vehicle Workshops,J01378,Supplies & Services           ,Equip Furniture/Materials     ,DA01,Equipment - R & M                       ,755,26/09/2014,REV,BOLTON GATE SERVICES LTD      
878,CS -Oth Operating Inc & Expend,T/A Vehicle Maintenance etc,Vehicle Workshops,J01378,Supplies & Services           ,Clothing Unfrms Laundry       ,DC01,Laundry                                 ,526.96,01/10/2014,REV,SUNLIGHT SERVICE GROUP LTD    
879,CS -Oth Operating Inc & Expend,T/A Vehicle Maintenance etc,Vehicle Workshops,J01378,Supplies & Services           ,Clothing Unfrms Laundry       ,DC02,Clothing & Uniforms                     ,751.27,09/10/2014,REV,SAFETY MANAGEMENT             
880,Cultural Env Reg&Plan Services,Mgt & Support (Env),Estates Mgt,J01420,Supplies & Services           ,Grants and Subscriptions      ,DJ04,SUBSCRIPTION                            ,750,23/09/2014,REV,CIPFA BUSINESS LTD            
881,CS -Oth Operating Inc & Expend,Extraordinary Items & PY Adj.,Other Misc Props Budget,J01526,Premises Related Expenditure  ,Energy Costs                  ,BB03,GAS (INCL. BUTANE)                      ,"1,496.73",15/10/2014,REV,SOUTHERN ELECTRIC             
882,CS -Oth Operating Inc & Expend,Extraordinary Items & PY Adj.,Housing Shops,J01533,Premises Related Expenditure  ,RepairsAlterations&MtceOfBldgs,BA29,BUILD MAINT MGT FEES                    ,"1,598.00",31/08/2014,REV,FORMARK SCAFFOLDING LTD       
883,CS -Oth Operating Inc & Expend,Extraordinary Items & PY Adj.,South Mitcham Comm Assoc,J08071,Premises Related Expenditure  ,RepairsAlterations&MtceOfBldgs,BA01,DDM - General Building                  ,750,23/10/2014,REV,SALTASH ENTERPRISES LTD       
884,CS -Oth Operating Inc & Expend,Extraordinary Items & PY Adj.,Pollards Hill Comm Cntre,J08074,Premises Related Expenditure  ,RepairsAlterations&MtceOfBldgs,BA03,DDM - Mechanical                        ,602.28,16/10/2014,REV,EUROPA NATIONWIDE TECH.SER.LTD
885,CS -Oth Operating Inc & Expend,Extraordinary Items & PY Adj.,Pollards Hill Comm Cntre,J08074,Premises Related Expenditure  ,RepairsAlterations&MtceOfBldgs,BA03,DDM - Mechanical                        ,602.28,15/09/2014,REV,EUROPA NATIONWIDE TECH.SER.LTD
886,Childrens & Education Services,Statutory & Regulatory Duties,Senior Mngt & Support Services,K01005,Employees                     ,Indirect Employee Expenses    ,AB02,Recruitment Adverts                     ,"4,166.00",30/09/2014,REV,PENNA PLC                     
887,Childrens & Education Services,Statutory & Regulatory Duties,Senior Mngt & Support Services,K01005,Supplies & Services           ,Services                      ,DF11,Counsel's Fees                          ,"4,500.00",22/10/2014,REV,REDACTED
888,Childrens & Education Services,Statutory & Regulatory Duties,Senior Mngt & Support Services,K01005,Supplies & Services           ,Services                      ,DF11,Counsel's Fees                          ,610,15/09/2014,REV,REDACTED
889,Childrens & Education Services,Statutory & Regulatory Duties,Senior Mngt & Support Services,K01005,Supplies & Services           ,Services                      ,DF11,Counsel's Fees                          ,520,29/09/2014,REV,REDACTED
890,Childrens & Education Services,Statutory & Regulatory Duties,Senior Mngt & Support Services,K01005,Supplies & Services           ,Services                      ,DF11,Counsel's Fees                          ,700,15/09/2014,REV,REDACTED
891,Childrens & Education Services,Statutory & Regulatory Duties,Senior Mngt & Support Services,K01005,Supplies & Services           ,Services                      ,DF11,Counsel's Fees                          ,"3,275.00",08/10/2014,REV,REDACTED
892,Childrens & Education Services,Statutory & Regulatory Duties,Senior Mngt & Support Services,K01005,Supplies & Services           ,Services                      ,DF11,Counsel's Fees                          ,"1,460.00",19/08/2014,REV,REDACTED
893,Childrens & Education Services,Statutory & Regulatory Duties,Senior Mngt & Support Services,K01005,Supplies & Services           ,Services                      ,DF11,Counsel's Fees                          ,"1,180.00",15/09/2014,REV,REDACTED
894,Childrens & Education Services,Statutory & Regulatory Duties,Senior Mngt & Support Services,K01005,Supplies & Services           ,Services                      ,DF11,Counsel's Fees                          ,655,15/09/2014,REV,REDACTED
895,Childrens & Education Services,Statutory & Regulatory Duties,Senior Mngt & Support Services,K01005,Supplies & Services           ,Services                      ,DF11,Counsel's Fees                          ,"1,065.00",29/09/2014,REV,REDACTED
896,Childrens & Education Services,Statutory & Regulatory Duties,Senior Mngt & Support Services,K01005,Supplies & Services           ,Services                      ,DF11,Counsel's Fees                          ,610,09/10/2014,REV,REDACTED
897,Childrens & Education Services,Statutory & Regulatory Duties,Schools IT Support,K02008,Supplies & Services           ,Comms and Computing           ,DG50,Other IT Expenditure                    ,"1,025.00",12/10/2014,REV,ATOMWIDE LTD                  
898,Childrens & Education Services,Statutory & Regulatory Duties,Schools IT Support,K02008,Supplies & Services           ,Comms and Computing           ,DG50,Other IT Expenditure                    ,800,17/10/2014,REV,ATOMWIDE LTD                  
899,Childrens & Education Services,Statutory & Regulatory Duties,Schools IT Support,K02008,Supplies & Services           ,Comms and Computing           ,DG50,Other IT Expenditure                    ,"3,000.00",01/04/2014,REV,ATOMWIDE LTD                  
900,Childrens & Education Services,Statutory & Regulatory Duties,Schools IT Support,K02008,Supplies & Services           ,Comms and Computing           ,DG50,Other IT Expenditure                    ,"1,569.00",14/10/2014,REV,NEC (UK) LTD                  
901,Childrens & Education Services,Statutory & Regulatory Duties,Schools IT Support,K02008,Supplies & Services           ,Comms and Computing           ,DG50,Other IT Expenditure                    ,"2,100.00",14/10/2014,REV,NEC (UK) LTD                  
902,Childrens & Education Services,Statutory & Regulatory Duties,Schools IT Support,K02008,Supplies & Services           ,Comms and Computing           ,DG50,Other IT Expenditure                    ,600,01/04/2014,REV,ATOMWIDE LTD                  
903,Childrens & Education Services,Statutory & Regulatory Duties,Schools IT Support,K02008,Supplies & Services           ,Comms and Computing           ,DG50,Other IT Expenditure                    ,650,12/10/2014,REV,ATOMWIDE LTD                  
904,Childrens & Education Services,Statutory & Regulatory Duties,Schools IT Support,K02008,Supplies & Services           ,Comms and Computing           ,DG50,Other IT Expenditure                    ,800,01/04/2014,REV,ATOMWIDE LTD                  
905,Childrens & Education Services,Statutory & Regulatory Duties,Schools IT Support,K02008,Supplies & Services           ,Comms and Computing           ,DG50,Other IT Expenditure                    ,"3,150.00",01/04/2014,REV,ATOMWIDE LTD                  
906,Childrens & Education Services,Statutory & Regulatory Duties,Commissioning Manager,K03001,Supplies & Services           ,Expenses                      ,DH02,Conferences                             ,558.4,07/10/2014,REV,CAPITA CONFERENCES            
907,Childrens & Education Services,Statutory & Regulatory Duties,Teenage Pregnancy                       ,K03007,Third Party Payments          ,Private Contractors           ,EH01,Miscellaneous Contrct Services          ,"2,187.00",23/09/2014,REV,THE CREATIVE TEAM             
908,Childrens & Education Services,Statutory & Regulatory Duties,Teenage Pregnancy                       ,K03007,Third Party Payments          ,Private Contractors           ,EH01,Miscellaneous Contrct Services          ,"7,980.00",06/10/2014,REV,CWP RESOURCES                 
909,Childrens & Education Services,Asset Management,PFI Unitary Charges,K03023,Third Party Payments          ,Private Contractors           ,EH02,Miscellaneous Hired Services            ,"8,522.55",03/10/2014,REV,NEWSCHOOLS (MERTON) LIMITED   
910,Childrens & Education Services,Asset Management,PFI Unitary Charges,K03023,Third Party Payments          ,Private Contractors           ,EH02,Miscellaneous Hired Services            ,668.05,31/01/2014,REV,NEWSCHOOLS (MERTON) LIMITED   
911,Childrens & Education Services,Asset Management,PFI Unitary Charges,K03023,Third Party Payments          ,Private Contractors           ,EH02,Miscellaneous Hired Services            ,"1,240.88",14/10/2013,REV,NEWSCHOOLS (MERTON) LIMITED   
912,Childrens & Education Services,Asset Management,PFI Unitary Charges,K03023,Third Party Payments          ,Private Contractors           ,EH02,Miscellaneous Hired Services            ,643.85,30/09/2014,REV,STAND-BY-FIRE PROTECTION      
913,Childrens & Education Services,Asset Management,PFI Unitary Charges,K03023,Third Party Payments          ,Private Contractors           ,EH10,Contract Payments                       ,"4,390.00",03/10/2014,REV,NEWSCHOOLS (MERTON) LIMITED   
914,Childrens & Education Services,Statutory & Regulatory Duties,Head of Special Educatn Needs,K04017,Supplies & Services           ,Services                      ,DF03,Consultants                             ,"2,057.00",21/08/2014,REV,MERTON MENCAP                 
915,Childrens & Education Services,Education Psychology Service,Education Psychology.,K04018,Employees                     ,Direct Employee Expenses      ,AA17,Agency Staff & Casual Paymts            ,"2,800.00",09/10/2014,REV,REDACTED
916,Childrens & Education Services,Education Psychology Service,Education Psychology.,K04018,Employees                     ,Direct Employee Expenses      ,AA17,Agency Staff & Casual Paymts            ,"8,800.00",30/09/2014,REV,REDACTED
917,Childrens & Education Services,Education Psychology Service,Education Psychology.,K04018,Employees                     ,Direct Employee Expenses      ,AA17,Agency Staff & Casual Paymts            ,"1,600.00",19/09/2014,REV,REDACTED
918,Childrens & Education Services,Support for SEN Pupils,Statementing-Transport,K04023,Transport Related Expenditure ,Public Transport              ,CD50,Home Sch/Coll Trans(Trav Exps)          ,"1,280.00",01/10/2014,REV,REDACTED
919,Childrens & Education Services,Pupil Referral Units,Expanded Pupil Referral Unit,K05099,Third Party Payments          ,Private Contractors           ,EH01,Miscellaneous Agency Services           ,"4,879.11",29/09/2014,REV,SW LONDON ST GEORGES NHS TRUST
920,Childrens & Education Services,Oth U5s Provn Not Prim or Spec,GSSG Workforce Development,K05111,Employees                     ,Indirect Employee Expenses    ,AB56,Internal Training Costs                 ,550,20/10/2014,REV,UNIVERSITY OF READING         
921,Childrens & Education Services,GENERATED ACCOUNT,Children's centres,K05137,Supplies & Services           ,Services                      ,DF03,Consultants                             ,"1,250.00",06/06/2014,REV,SKILLS FOR LOCAL AUTHORITIES  
922,Childrens & Education Services,GENERATED ACCOUNT,Mitcham MAT (Premises),K05412,Premises Related Expenditure  ,RepairsAlterations&MtceOfBldgs,BA06,Repairs & Maintenance General           ,"5,595.00",29/09/2014,REV,SYMES GARDEN SERVICES         
923,Childrens & Education Services,GENERATED ACCOUNT,Mitcham MAT (Premises),K05412,Premises Related Expenditure  ,Energy Costs                  ,BB02,Electricity                             ,"2,271.21",14/04/2014,REV,EDF ENERGY 1 LIMITED          
924,Childrens & Education Services,GENERATED ACCOUNT,Mitcham MAT (Premises),K05412,Premises Related Expenditure  ,Energy Costs                  ,BB02,Electricity                             ,"1,324.78",24/07/2014,REV,SCOTTISHPOWER                 
925,Childrens & Education Services,GENERATED ACCOUNT,Mitcham MAT (Premises),K05412,Premises Related Expenditure  ,Cleaning and Domestic Supplies,BH03,Cleaning Services                       ,"1,208.78",01/10/2014,REV,BIRKIN CLEANING SERVICES LTD  
926,Childrens & Education Services,GENERATED ACCOUNT,Morden MAT,K05413,Premises Related Expenditure  ,RepairsAlterations&MtceOfBldgs,BA01,DDM - General Building                  ,"1,090.00",01/10/2014,REV,SYMES FENCING                 
927,Childrens & Education Services,GENERATED ACCOUNT,Morden MAT,K05413,Premises Related Expenditure  ,RepairsAlterations&MtceOfBldgs,BA79,Security of Premises                    ,627.4,15/10/2014,REV,CHUBB ELECTRONIC SEC. SYSTEMS 
